BODY,BODY NAME,SERVICE CODE,ORGANISATIONAL UNIT,ORGANISATIONAL UNIT CODE,EXPENDITURE CATEGORY,EXPENDITURE CODE,DATE (POSTING DATE),TRANSACTION NUMBER,AMOUNT,SUPPLIER NAME,SUPPLIER ID
WARRINGTON BOROUGH COUNCIL,http://opendatacommunities.org/id/unitary-authority/warrington,ENO,Environment & Regeneration Other,82002,Consult.& Prof. Serv,440000,22/02/2019,5100384095,1831,Frank Whittle Partnership,110231
WARRINGTON BOROUGH COUNCIL,http://opendatacommunities.org/id/unitary-authority/warrington,ENO,Environment & Regeneration Other,82002,Consult.& Prof. Serv,440000,04/02/2019,5100383277,7861.99,Bradshaw Gass & Hope,115103
WARRINGTON BOROUGH COUNCIL,http://opendatacommunities.org/id/unitary-authority/warrington,ENO,Environment & Regeneration Other,82002,Consult.& Prof. Serv,440000,04/02/2019,5100383275,7980,Bradshaw Gass & Hope,115103
WARRINGTON BOROUGH COUNCIL,http://opendatacommunities.org/id/unitary-authority/warrington,ENO,Highways LTP,82004,Equipment Purchase & Contract,400000,08/02/2019,5100382534,896.56,AECOM Infrastructure & Environment,112506
WARRINGTON BOROUGH COUNCIL,http://opendatacommunities.org/id/unitary-authority/warrington,PIO,People & Improvement Other,85002,Consult.& Prof. Serv,440000,20/02/2019,5100376506,8670,Mpulse Ltd,101462
WARRINGTON BOROUGH COUNCIL,http://opendatacommunities.org/id/unitary-authority/warrington,EE1,Street Lighting Client,44241,Lighting Energy Char,531550,09/07/2018,5100361656,3898.58,Npower Electricity,101884
WARRINGTON BOROUGH COUNCIL,http://opendatacommunities.org/id/unitary-authority/warrington,CYP,Childrens & Young People,81000,Specific Work,200200,05/02/2019,5100380621,6267.6,Gables (Uk) Ltd,105363
WARRINGTON BOROUGH COUNCIL,http://opendatacommunities.org/id/unitary-authority/warrington,NEO,Neighbourhood & Community Other,83002,Maintenance of Plant & Machinery,250050,23/02/2019,5100385245,6277.42,Clovemead Ltd,105336
WARRINGTON BOROUGH COUNCIL,http://opendatacommunities.org/id/unitary-authority/warrington,ENO,Environment & Regeneration Other,82002,Consult.& Prof. Serv,440000,04/02/2019,5100383276,569.69,Bradshaw Gass & Hope,115103
WARRINGTON BOROUGH COUNCIL,http://opendatacommunities.org/id/unitary-authority/warrington,PIO,People & Improvement Other,85002,Consult.& Prof. Serv,440000,14/02/2019,5100382769,7735,Baker Mallett LLP,116160
WARRINGTON BOROUGH COUNCIL,http://opendatacommunities.org/id/unitary-authority/warrington,CYP,Childrens & Young People,81000,Specific Work,200200,07/02/2019,5100368840,20930.9,Fulwood Roofing Serv (Northern) Ltd,105362
WARRINGTON BOROUGH COUNCIL,http://opendatacommunities.org/id/unitary-authority/warrington,ENO,Environment & Regeneration Other,82002,Consult.& Prof. Serv,440000,10/01/2019,5100380741,529,Blackett-Ord Conservation Ltd,115109
WARRINGTON BOROUGH COUNCIL,http://opendatacommunities.org/id/unitary-authority/warrington,ENO,Highways Other,82005,Consult.& Prof. Serv,440000,08/02/2019,5100378265,4753.98,Aecom Limited,101037
WARRINGTON BOROUGH COUNCIL,http://opendatacommunities.org/id/unitary-authority/warrington,CYP,Childrens & Young People,81000,Maintenance Work - Sub Contractors,301150,18/01/2019,5100381609,80975,Robertson Group Ltd,114645
WARRINGTON BOROUGH COUNCIL,http://opendatacommunities.org/id/unitary-authority/warrington,PIO,People & Improvement Other,85002,Consult.& Prof. Serv,440000,13/01/2019,5100381018,4760,Baker Mallett LLP,116160
WARRINGTON BOROUGH COUNCIL,http://opendatacommunities.org/id/unitary-authority/warrington,ENP,Environment & Regeneration,82000,Building Work,200850,22/02/2019,5100384309,3152185,Vinci Construction UK Ltd,108760
WARRINGTON BOROUGH COUNCIL,http://opendatacommunities.org/id/unitary-authority/warrington,FWB,Special Guardianship Support Fund,31118,Looked after children in Warrington,301000,04/02/2019,5100383377,1330,Chroma Therapies Ltd,116190
WARRINGTON BOROUGH COUNCIL,http://opendatacommunities.org/id/unitary-authority/warrington,PIO,People & Improvement Other,85002,Consult.& Prof. Serv,440000,11/02/2019,5100384040,1000,NHC Management Ltd,115808
WARRINGTON BOROUGH COUNCIL,http://opendatacommunities.org/id/unitary-authority/warrington,PIO,People & Improvement Other,85002,Consult.& Prof. Serv,440000,13/01/2019,5100381063,6920,Walker Simpson Architects,115058
WARRINGTON BOROUGH COUNCIL,http://opendatacommunities.org/id/unitary-authority/warrington,ENO,Open Spaces,82006,Materials,400500,08/02/2019,5100380538,682,Wicksteed Leisure Ltd,105436
WARRINGTON BOROUGH COUNCIL,http://opendatacommunities.org/id/unitary-authority/warrington,EE0,Ph4 Waterfront - West Link,40016,Consult.& Prof. Serv,440000,12/02/2019,5100384177,1131,TLT Solicitors,115669
WARRINGTON BOROUGH COUNCIL,http://opendatacommunities.org/id/unitary-authority/warrington,EE0,Ph4 Waterfront - West Link,40016,Consult.& Prof. Serv,440000,11/02/2019,5100383987,884.5,TLT Solicitors,115669
WARRINGTON BOROUGH COUNCIL,http://opendatacommunities.org/id/unitary-authority/warrington,FWB,DSG Independent School Fees,32011,Fees (Including Agents Fees),441450,31/01/2019,5100382778,5424,Wargrave House School,400175
WARRINGTON BOROUGH COUNCIL,http://opendatacommunities.org/id/unitary-authority/warrington,ENO,Highways Other,82005,Environmental Works,531050,22/02/2019,5100383919,15844.07,United Utlilities Ltd,104402
WARRINGTON BOROUGH COUNCIL,http://opendatacommunities.org/id/unitary-authority/warrington,FWB,Care Purchase West Team,54080,Accommodation Allowance,550650,04/02/2019,5100383399,1161.21,The Patten Arms Hotel,115465
WARRINGTON BOROUGH COUNCIL,http://opendatacommunities.org/id/unitary-authority/warrington,ENO,Highways Other,82005,Consult.& Prof. Serv,440000,13/01/2019,5100381105,623.5,TLT Solicitors,115669
WARRINGTON BOROUGH COUNCIL,http://opendatacommunities.org/id/unitary-authority/warrington,ENO,Highways Other,82005,Consult.& Prof. Serv,440000,13/01/2019,5100381100,2030,TLT Solicitors,115669
WARRINGTON BOROUGH COUNCIL,http://opendatacommunities.org/id/unitary-authority/warrington,ENO,Highways Other,82005,Environmental Works,531050,08/02/2019,5100381603,54478.16,Dowhigh Ltd,105350
WARRINGTON BOROUGH COUNCIL,http://opendatacommunities.org/id/unitary-authority/warrington,ENO,Environment & Regeneration Other,82002,Building Work,200850,19/02/2019,5100384882,164376.75,Rosslee Construction,116408
WARRINGTON BOROUGH COUNCIL,http://opendatacommunities.org/id/unitary-authority/warrington,FWB,Contracts - OM HPHL Team,55940,Public Health Contract Payments,540000,16/01/2019,5100381471,6250,DXS (UK) Ltd,116424
WARRINGTON BOROUGH COUNCIL,http://opendatacommunities.org/id/unitary-authority/warrington,FWB,Contracts - OM HPHL Team,55940,Public Health Contract Payments,540000,16/01/2019,5100381471,1080,DXS (UK) Ltd,116424
WARRINGTON BOROUGH COUNCIL,http://opendatacommunities.org/id/unitary-authority/warrington,ENO,Highways Other,82005,Other Advertising & Publicity,450050,07/02/2019,5100383740,636.22,TMP UK Ltd,108498
WARRINGTON BOROUGH COUNCIL,http://opendatacommunities.org/id/unitary-authority/warrington,EE0,Transport Holding Account,41311,Training,190150,22/02/2019,5100382201,532.5,Enterprise Driver Recruitment & Tra,116412
WARRINGTON BOROUGH COUNCIL,http://opendatacommunities.org/id/unitary-authority/warrington,ENO,Environment & Regeneration Other,82002,Consult.& Prof. Serv,440000,19/02/2019,5100384663,1189,Hickton Consultants,101484
WARRINGTON BOROUGH COUNCIL,http://opendatacommunities.org/id/unitary-authority/warrington,EE0,Ph4 Waterfront - West Link,40016,Consult.& Prof. Serv,440000,25/02/2019,5100377951,2586.5,Mott Macdonald Ltd,104950
WARRINGTON BOROUGH COUNCIL,http://opendatacommunities.org/id/unitary-authority/warrington,FWB,Homelessness,43650,Security Systems,250000,19/02/2019,5100384675,565.6,Golden Gates Housing Trust,101005
WARRINGTON BOROUGH COUNCIL,http://opendatacommunities.org/id/unitary-authority/warrington,EE0,Transport Holding Account,41311,Maintenance Work - Sub Contractors,301150,04/02/2019,5100376558,577.5,Quartix Ltd,115590
WARRINGTON BOROUGH COUNCIL,http://opendatacommunities.org/id/unitary-authority/warrington,EE0,Transport Holding Account,41311,Maintenance Work - Sub Contractors,301150,04/02/2019,5100383402,577.5,Quartix Ltd,115590
WARRINGTON BOROUGH COUNCIL,http://opendatacommunities.org/id/unitary-authority/warrington,EE0,NPIF Warrington East Phase 3,40027,Consult.& Prof. Serv,440000,08/02/2019,5100381291,34637.63,Mott Macdonald Ltd,104950
WARRINGTON BOROUGH COUNCIL,http://opendatacommunities.org/id/unitary-authority/warrington,EE0,Warrington East Ph 2 - 4,40020,Consult.& Prof. Serv,440000,08/02/2019,5100381293,15178.6,Mott Macdonald Ltd,104950
WARRINGTON BOROUGH COUNCIL,http://opendatacommunities.org/id/unitary-authority/warrington,EE0,Warrington East Ph 2 - 4,40020,Consult.& Prof. Serv,440000,08/02/2019,5100381292,9619.25,Mott Macdonald Ltd,104950
WARRINGTON BOROUGH COUNCIL,http://opendatacommunities.org/id/unitary-authority/warrington,FWB,Equipment Store,54930,Minor Adaptations<750,400700,05/02/2019,5100383469,1169.82,Prism Medical UK,108616
WARRINGTON BOROUGH COUNCIL,http://opendatacommunities.org/id/unitary-authority/warrington,FWB,Equipment Store,54930,Rent Of Premises,220000,05/02/2019,5100383504,1300,Warrington & District Society for D,111699
WARRINGTON BOROUGH COUNCIL,http://opendatacommunities.org/id/unitary-authority/warrington,COR,Markets,43711,Hazardous Waste,530600,12/02/2019,5100384235,4564.2,Fresco Environmental Limited,114525
WARRINGTON BOROUGH COUNCIL,http://opendatacommunities.org/id/unitary-authority/warrington,COR,Markets,43711,Hazardous Waste,530600,19/02/2019,5100384858,5330.7,Fresco Environmental Limited,114525
WARRINGTON BOROUGH COUNCIL,http://opendatacommunities.org/id/unitary-authority/warrington,EE0,Schools (Street Scene),41733,Materials,400500,23/02/2019,5100385249,820,M C & M A Stewart Haulage Ltd,105159
WARRINGTON BOROUGH COUNCIL,http://opendatacommunities.org/id/unitary-authority/warrington,EE0,Crematorium,41411,Consult.& Prof. Serv,440000,05/02/2019,5100383458,1837.5,Dr David Robertson,100073
WARRINGTON BOROUGH COUNCIL,http://opendatacommunities.org/id/unitary-authority/warrington,RSC,Parish Elections,11580,Hire Of Pools,220100,17/10/2018,5100371920,575,Wynsors World of Shoes,106227
WARRINGTON BOROUGH COUNCIL,http://opendatacommunities.org/id/unitary-authority/warrington,RSC,Parish Elections,11580,Hire Of Pools,220100,25/02/2019,5100385365,575,Wynsors World of Shoes,106227
WARRINGTON BOROUGH COUNCIL,http://opendatacommunities.org/id/unitary-authority/warrington,EE0,Development Control,43430,Other Advertising & Publicity,450050,22/02/2019,5100385166,538,TMP UK Ltd,108498
WARRINGTON BOROUGH COUNCIL,http://opendatacommunities.org/id/unitary-authority/warrington,EE0,Development Control,43430,Other Advertising & Publicity,450050,18/02/2019,5100376674,538,TMP UK Ltd,108498
WARRINGTON BOROUGH COUNCIL,http://opendatacommunities.org/id/unitary-authority/warrington,EE0,Development Control,43430,Other Advertising & Publicity,450050,08/02/2019,5100381830,802.12,TMP UK Ltd,108498
WARRINGTON BOROUGH COUNCIL,http://opendatacommunities.org/id/unitary-authority/warrington,EE0,Development Control,43430,Other Advertising & Publicity,450050,14/01/2019,5100381192,590.42,TMP UK Ltd,108498
WARRINGTON BOROUGH COUNCIL,http://opendatacommunities.org/id/unitary-authority/warrington,EE0,Development Control,43430,Other Advertising & Publicity,450050,06/02/2019,5100381096,992.65,TMP UK Ltd,108498
WARRINGTON BOROUGH COUNCIL,http://opendatacommunities.org/id/unitary-authority/warrington,EE0,Development Control,43430,Other Advertising & Publicity,450050,08/02/2019,5100382606,992.65,TMP UK Ltd,108498
WARRINGTON BOROUGH COUNCIL,http://opendatacommunities.org/id/unitary-authority/warrington,RSC,Welfare Support,10360,"Campaigns,  Projects and Events",491950,20/02/2019,5100385020,563.33,Bruce The Bed King,102448
WARRINGTON BOROUGH COUNCIL,http://opendatacommunities.org/id/unitary-authority/warrington,ENO,Highways LTP,82004,Other Advertising & Publicity,450050,04/02/2019,5100379781,724.5,TMP UK Ltd,108498
WARRINGTON BOROUGH COUNCIL,http://opendatacommunities.org/id/unitary-authority/warrington,ENO,Highways LTP,82004,Other Advertising & Publicity,450050,04/02/2019,5100375583,668.23,TMP UK Ltd,108498
WARRINGTON BOROUGH COUNCIL,http://opendatacommunities.org/id/unitary-authority/warrington,EE0,Traffic and Safety,44350,Permanent Traffic Regulation Orders,442350,22/02/2019,5100382634,2103.55,TMP UK Ltd,108498
WARRINGTON BOROUGH COUNCIL,http://opendatacommunities.org/id/unitary-authority/warrington,EE0,Project Delivery & Communications,43830,Consult.& Prof. Serv,440000,12/02/2019,5100384167,4307.12,Mickledore Ltd,106398
WARRINGTON BOROUGH COUNCIL,http://opendatacommunities.org/id/unitary-authority/warrington,FWB,Equipment Store,54930,Equipment Purchase & Contract,400000,07/02/2019,5100383645,651,Healthcare Matters,110751
WARRINGTON BOROUGH COUNCIL,http://opendatacommunities.org/id/unitary-authority/warrington,FWB,Equipment Store,54930,Equipment Purchase & Contract,400000,07/02/2019,5100383648,651,Healthcare Matters,110751
WARRINGTON BOROUGH COUNCIL,http://opendatacommunities.org/id/unitary-authority/warrington,FWB,DSG - Medical Needs,32002,Eotas Pupil Funding,490350,11/02/2019,5100384049,2275,Priory Group Pennine Care In Patien,112988
WARRINGTON BOROUGH COUNCIL,http://opendatacommunities.org/id/unitary-authority/warrington,FWB,DSG - Medical Needs,32002,Eotas Pupil Funding,490350,19/02/2019,5100384864,2265,Cygnet Health Care,103249
WARRINGTON BOROUGH COUNCIL,http://opendatacommunities.org/id/unitary-authority/warrington,FWB,DSG - Medical Needs,32002,Eotas Pupil Funding,490350,12/02/2019,5100384222,2800,Cheadle Royal Hospital,109262
WARRINGTON BOROUGH COUNCIL,http://opendatacommunities.org/id/unitary-authority/warrington,EE0,Core Operational Business,41730,Materials,400500,25/02/2019,5100385321,784.39,M C & M A Stewart Haulage Ltd,105159
WARRINGTON BOROUGH COUNCIL,http://opendatacommunities.org/id/unitary-authority/warrington,FWB,Outreach,54090,Rent Of Premises,220000,20/02/2019,5100385001,1146,Culture Warrington,100957
WARRINGTON BOROUGH COUNCIL,http://opendatacommunities.org/id/unitary-authority/warrington,FWB,Outreach,54090,Rent Of Premises,220000,20/02/2019,5100385002,1026,Culture Warrington,100957
WARRINGTON BOROUGH COUNCIL,http://opendatacommunities.org/id/unitary-authority/warrington,FWB,Outreach,54090,Rent Of Premises,220000,20/02/2019,5100385003,1002,Culture Warrington,100957
WARRINGTON BOROUGH COUNCIL,http://opendatacommunities.org/id/unitary-authority/warrington,FWB,Outreach,54090,Rent Of Premises,220000,20/02/2019,5100385004,876,Culture Warrington,100957
WARRINGTON BOROUGH COUNCIL,http://opendatacommunities.org/id/unitary-authority/warrington,FWB,Outreach,54090,Rent Of Premises,220000,20/02/2019,5100385005,948,Culture Warrington,100957
WARRINGTON BOROUGH COUNCIL,http://opendatacommunities.org/id/unitary-authority/warrington,FWB,Contracts - SM Commissioning Team 1,55910,Public Health Contract Payments,540000,05/01/2019,5100379742,5167,Warrington And Halton Nhs Ft,440132
WARRINGTON BOROUGH COUNCIL,http://opendatacommunities.org/id/unitary-authority/warrington,FWB,Contracts - SM Commissioning Team 1,55910,Public Health Contract Payments,540000,16/01/2019,5100381381,5167,Warrington And Halton Nhs Ft,440132
WARRINGTON BOROUGH COUNCIL,http://opendatacommunities.org/id/unitary-authority/warrington,FWB,Contracts - SM Commissioning Team 1,55910,Public Health Contract Payments,540000,12/02/2019,5100384225,5167,Warrington And Halton Nhs Ft,440132
WARRINGTON BOROUGH COUNCIL,http://opendatacommunities.org/id/unitary-authority/warrington,FWB,Contracts - SM Commissioning Team 1,55910,Public Health Contract Payments,540000,12/02/2019,5100384218,3454,Bridgewater Community Healthcare,108932
WARRINGTON BOROUGH COUNCIL,http://opendatacommunities.org/id/unitary-authority/warrington,FWB,Contracts - SM Commissioning Team 1,55910,Public Health Contract Payments,540000,01/02/2019,5100382257,3454,Bridgewater Community Healthcare,108932
WARRINGTON BOROUGH COUNCIL,http://opendatacommunities.org/id/unitary-authority/warrington,EE0,PW&F Management Operations,41427,Kennel Fees,440550,19/02/2019,5100384726,833.33,Manchester & District Home For Lost,102062
WARRINGTON BOROUGH COUNCIL,http://opendatacommunities.org/id/unitary-authority/warrington,RSC,Professional Development Centre,21000,Security Systems,250000,22/02/2019,5100378272,634.04,Kingdom Security Ltd,101324
WARRINGTON BOROUGH COUNCIL,http://opendatacommunities.org/id/unitary-authority/warrington,RSC,Welfare Support,10360,"Campaigns,  Projects and Events",491950,07/02/2019,5100383803,7305,Changing Lives in Cheshire,111607
WARRINGTON BOROUGH COUNCIL,http://opendatacommunities.org/id/unitary-authority/warrington,RSC,Welfare Support,10360,"Campaigns,  Projects and Events",491950,21/01/2019,5100381805,5575,Changing Lives in Cheshire,111607
WARRINGTON BOROUGH COUNCIL,http://opendatacommunities.org/id/unitary-authority/warrington,EE0,Building Maintenance,43220,Consult.& Prof. Serv,440000,04/02/2019,5100383369,1640,Steve Hunt Partnership,104802
WARRINGTON BOROUGH COUNCIL,http://opendatacommunities.org/id/unitary-authority/warrington,EE0,Building Maintenance,43220,Consult.& Prof. Serv,440000,05/02/2019,5100363678,570,Redacted Personal Data,102651
WARRINGTON BOROUGH COUNCIL,http://opendatacommunities.org/id/unitary-authority/warrington,ENO,Building Maintenance Environment & Regen,82001,Maintenance of Plant & Machinery,250050,19/02/2019,5100384938,22408.31,Hall Conservation,116514
WARRINGTON BOROUGH COUNCIL,http://opendatacommunities.org/id/unitary-authority/warrington,EE0,School Brow Depot,41330,Hazardous Waste,530600,19/02/2019,5100384869,840,Albion Environmental Ltd,103153
WARRINGTON BOROUGH COUNCIL,http://opendatacommunities.org/id/unitary-authority/warrington,FWB,Contracts - SM Commissioning Team 1,55910,Public Health Contract Payments,540000,01/02/2019,5100382838,18750,Warrington Primary Care Trust,103360
WARRINGTON BOROUGH COUNCIL,http://opendatacommunities.org/id/unitary-authority/warrington,FWB,Contracts - SM Commissioning Team 1,55910,Drug Action,443600,01/02/2019,5100382850,5280,Kaleidoscope Project,112092
WARRINGTON BOROUGH COUNCIL,http://opendatacommunities.org/id/unitary-authority/warrington,FWB,Contracts - SM Commissioning Team 1,55910,Drug Action,443600,26/02/2019,5100385564,2640,Kaleidoscope Project,112092
WARRINGTON BOROUGH COUNCIL,http://opendatacommunities.org/id/unitary-authority/warrington,FWB,Contracts - SM Commissioning Team 1,55910,Drug Action,443600,01/02/2019,5100382849,9762,Footsteps,440071
WARRINGTON BOROUGH COUNCIL,http://opendatacommunities.org/id/unitary-authority/warrington,EE0,Park Development Sites,41423,Materials,400500,29/01/2019,5100382511,2080,Rigby Taylor Ltd,105070
WARRINGTON BOROUGH COUNCIL,http://opendatacommunities.org/id/unitary-authority/warrington,EE0,Schools (Street Scene),41733,Materials,400500,29/01/2019,5100382511,2080,Rigby Taylor Ltd,105070
WARRINGTON BOROUGH COUNCIL,http://opendatacommunities.org/id/unitary-authority/warrington,EE0,Core Operational Business,41730,Materials,400500,29/01/2019,5100382511,2080,Rigby Taylor Ltd,105070
WARRINGTON BOROUGH COUNCIL,http://opendatacommunities.org/id/unitary-authority/warrington,FWB,Public Health Licensing,41550,Consult.& Prof. Serv,440000,08/02/2019,5100382024,551.31,Public Health England,112188
WARRINGTON BOROUGH COUNCIL,http://opendatacommunities.org/id/unitary-authority/warrington,FWB,Transport,54950,Transport-Snad Cot,300600,07/02/2019,5100383678,2590,Sure & Safe Minibus Service Ltd,100137
WARRINGTON BOROUGH COUNCIL,http://opendatacommunities.org/id/unitary-authority/warrington,FWB,Transport,54950,Transport-Snad Cot,300600,04/02/2019,5100383360,1638,Redacted Personal Data,112712
WARRINGTON BOROUGH COUNCIL,http://opendatacommunities.org/id/unitary-authority/warrington,FWB,Transport,54950,Transport-Snad Cot,300600,20/02/2019,5100384977,1425,Direct Taxis,101873
WARRINGTON BOROUGH COUNCIL,http://opendatacommunities.org/id/unitary-authority/warrington,FWB,Transport,54950,Transport-Snad Cot,300600,04/02/2019,5100383303,2755,Direct Taxis,101873
WARRINGTON BOROUGH COUNCIL,http://opendatacommunities.org/id/unitary-authority/warrington,FWB,Transport,54950,Transport-Snad Cot,300600,07/02/2019,5100383677,2530,Sure & Safe Minibus Service Ltd,100137
WARRINGTON BOROUGH COUNCIL,http://opendatacommunities.org/id/unitary-authority/warrington,FWB,Transport,54950,Transport-Snad Cot,300600,07/02/2019,5100383665,515,Direct Taxis,101873
WARRINGTON BOROUGH COUNCIL,http://opendatacommunities.org/id/unitary-authority/warrington,FWB,Transport,54950,Transport-Snad Cot,300600,04/02/2019,5100383253,735,Direct Taxis,101873
WARRINGTON BOROUGH COUNCIL,http://opendatacommunities.org/id/unitary-authority/warrington,FWB,Transport,54950,Transport-Snad Cot,300600,04/02/2019,5100383403,2663,Andys Bus Company,100654
WARRINGTON BOROUGH COUNCIL,http://opendatacommunities.org/id/unitary-authority/warrington,FWB,Transport,54950,Transport-Snad Cot,300600,07/02/2019,5100383718,590.5,Raza Taxis,105056
WARRINGTON BOROUGH COUNCIL,http://opendatacommunities.org/id/unitary-authority/warrington,FWB,Transport,54950,Transport-Snad Cot,300600,07/02/2019,5100383731,600,Redacted Personal Data,115134
WARRINGTON BOROUGH COUNCIL,http://opendatacommunities.org/id/unitary-authority/warrington,FWB,Transport,54950,Transport-Snad Cot,300600,07/02/2019,5100383839,600,Redacted Personal Data,115134
WARRINGTON BOROUGH COUNCIL,http://opendatacommunities.org/id/unitary-authority/warrington,FWB,Transport,54950,Transport-Snad Cot,300600,07/02/2019,5100383668,2560,LM Travel,113868
WARRINGTON BOROUGH COUNCIL,http://opendatacommunities.org/id/unitary-authority/warrington,FWB,Transport,54950,Transport-Snad Cot,300600,12/02/2019,5100384132,670,Direct Taxis,101873
WARRINGTON BOROUGH COUNCIL,http://opendatacommunities.org/id/unitary-authority/warrington,FWB,Transport,54950,Transport-Snad Cot,300600,04/02/2019,5100383350,782,Horn'S Private Hire,101991
WARRINGTON BOROUGH COUNCIL,http://opendatacommunities.org/id/unitary-authority/warrington,FWB,Transport,54950,Transport-Snad Cot,300600,04/02/2019,5100383395,3550,Redacted Personal Data,104639
WARRINGTON BOROUGH COUNCIL,http://opendatacommunities.org/id/unitary-authority/warrington,FWB,Transport,54950,Transport-Snad Cot,300600,07/02/2019,5100383680,581.25,Abba Cars,105302
WARRINGTON BOROUGH COUNCIL,http://opendatacommunities.org/id/unitary-authority/warrington,FWB,Transport,54950,Transport-Snad Cot,300600,07/02/2019,5100383619,2240,Warrington Cars,113774
WARRINGTON BOROUGH COUNCIL,http://opendatacommunities.org/id/unitary-authority/warrington,FWB,Transport,54950,Transport-Snad Cot,300600,07/02/2019,5100383655,2240,Warrington Cars,113774
WARRINGTON BOROUGH COUNCIL,http://opendatacommunities.org/id/unitary-authority/warrington,FWB,Transport,54950,Transport-Snad Cot,300600,07/02/2019,5100383613,880,Warrington Cars,113774
WARRINGTON BOROUGH COUNCIL,http://opendatacommunities.org/id/unitary-authority/warrington,FWB,Transport,54950,Transport-Snad Cot,300600,04/02/2019,5100383308,1320,Direct Taxis,101873
WARRINGTON BOROUGH COUNCIL,http://opendatacommunities.org/id/unitary-authority/warrington,FWB,Special Schools Transport,33208,Statemented - Special Unit Pupil Transpo,300750,07/02/2019,5100383657,1520,Direct Taxis,101873
WARRINGTON BOROUGH COUNCIL,http://opendatacommunities.org/id/unitary-authority/warrington,FWB,Special Schools Transport,33208,Statemented - Special Unit Pupil Transpo,300750,04/02/2019,5100383365,1900,Maguires Executive Transport,111135
WARRINGTON BOROUGH COUNCIL,http://opendatacommunities.org/id/unitary-authority/warrington,FWB,Special Schools Transport,33208,Statemented - Special Unit Pupil Transpo,300750,06/02/2019,5100383577,1691,Direct Taxis,101873
WARRINGTON BOROUGH COUNCIL,http://opendatacommunities.org/id/unitary-authority/warrington,FWB,Special Schools Transport,33208,Statemented - Special Unit Pupil Transpo,300750,04/02/2019,5100383375,574.2,Abba Cars,105302
WARRINGTON BOROUGH COUNCIL,http://opendatacommunities.org/id/unitary-authority/warrington,FWB,Special Schools Transport,33208,Statemented - Special Unit Pupil Transpo,300750,04/02/2019,5100383381,1627.2,Abba Cars,105302
WARRINGTON BOROUGH COUNCIL,http://opendatacommunities.org/id/unitary-authority/warrington,FWB,Special Schools Transport,33208,Statemented - Special Unit Pupil Transpo,300750,06/02/2019,5100383591,1747,Superior Travel,113595
WARRINGTON BOROUGH COUNCIL,http://opendatacommunities.org/id/unitary-authority/warrington,FWB,Special Schools Transport,33208,Statemented - Special Unit Pupil Transpo,300750,04/02/2019,5100383409,2223,Apec Group Association,100198
WARRINGTON BOROUGH COUNCIL,http://opendatacommunities.org/id/unitary-authority/warrington,FWB,Special Schools Transport,33208,Statemented - Special Unit Pupil Transpo,300750,04/02/2019,5100383397,990,Loulou's Travel,116158
WARRINGTON BOROUGH COUNCIL,http://opendatacommunities.org/id/unitary-authority/warrington,FWB,Special Schools Transport,33208,Statemented - Special Unit Pupil Transpo,300750,06/02/2019,5100383562,2100,Direct Taxis,101873
WARRINGTON BOROUGH COUNCIL,http://opendatacommunities.org/id/unitary-authority/warrington,FWB,Special Schools Transport,33208,Statemented - Special Unit Pupil Transpo,300750,07/02/2019,5100383664,1120,Redacted Personal Data,101021
WARRINGTON BOROUGH COUNCIL,http://opendatacommunities.org/id/unitary-authority/warrington,FWB,Special Schools Transport,33208,Statemented - Special Unit Pupil Transpo,300750,07/02/2019,5100383671,2786.4,Mackies Travel,116390
WARRINGTON BOROUGH COUNCIL,http://opendatacommunities.org/id/unitary-authority/warrington,FWB,Special Schools Transport,33208,Statemented - Special Unit Pupil Transpo,300750,04/02/2019,5100383252,990,Redacted Personal Data,101504
WARRINGTON BOROUGH COUNCIL,http://opendatacommunities.org/id/unitary-authority/warrington,FWB,Special Schools Transport,33208,Statemented - Special Unit Pupil Transpo,300750,05/02/2019,5100383484,2520,Wezs Travel,100842
WARRINGTON BOROUGH COUNCIL,http://opendatacommunities.org/id/unitary-authority/warrington,FWB,Special Schools Transport,33208,Statemented - Special Unit Pupil Transpo,300750,04/02/2019,5100383331,2535,Hampton Coaches,104768
WARRINGTON BOROUGH COUNCIL,http://opendatacommunities.org/id/unitary-authority/warrington,FWB,Special Schools Transport,33208,Statemented - Special Unit Pupil Transpo,300750,07/02/2019,5100383618,2945,Warrington Cars,113774
WARRINGTON BOROUGH COUNCIL,http://opendatacommunities.org/id/unitary-authority/warrington,FWB,Special Schools Transport,33208,Statemented - Special Unit Pupil Transpo,300750,04/02/2019,5100383405,2478,Andys Bus Company,100654
WARRINGTON BOROUGH COUNCIL,http://opendatacommunities.org/id/unitary-authority/warrington,FWB,Special Schools Transport,33208,Statemented - Special Unit Pupil Transpo,300750,04/02/2019,5100383333,3045,Hampton Coaches,104768
WARRINGTON BOROUGH COUNCIL,http://opendatacommunities.org/id/unitary-authority/warrington,FWB,Special Schools Transport,33208,Statemented - Special Unit Pupil Transpo,300750,07/02/2019,5100383661,836,Direct Taxis,101873
WARRINGTON BOROUGH COUNCIL,http://opendatacommunities.org/id/unitary-authority/warrington,FWB,Special Schools Transport,33208,Statemented - Special Unit Pupil Transpo,300750,07/02/2019,5100383662,1748,Direct Taxis,101873
WARRINGTON BOROUGH COUNCIL,http://opendatacommunities.org/id/unitary-authority/warrington,FWB,Special Schools Transport,33208,Statemented - Special Unit Pupil Transpo,300750,06/02/2019,5100383580,1254,Direct Taxis,101873
WARRINGTON BOROUGH COUNCIL,http://opendatacommunities.org/id/unitary-authority/warrington,FWB,Special Schools Transport,33208,Statemented - Special Unit Pupil Transpo,300750,06/02/2019,5100383559,1710,Direct Taxis,101873
WARRINGTON BOROUGH COUNCIL,http://opendatacommunities.org/id/unitary-authority/warrington,FWB,Special Schools Transport,33208,Statemented - Special Unit Pupil Transpo,300750,04/02/2019,5100383316,2310,Hampton Coaches,104768
WARRINGTON BOROUGH COUNCIL,http://opendatacommunities.org/id/unitary-authority/warrington,FWB,Special Schools Transport,33208,Statemented - Special Unit Pupil Transpo,300750,04/02/2019,5100383315,1805,Hampton Coaches,104768
WARRINGTON BOROUGH COUNCIL,http://opendatacommunities.org/id/unitary-authority/warrington,FWB,Special Schools Transport,33208,Statemented - Special Unit Pupil Transpo,300750,06/02/2019,5100383585,2340,Euro Taxi,105992
WARRINGTON BOROUGH COUNCIL,http://opendatacommunities.org/id/unitary-authority/warrington,FWB,Special Schools Transport,33208,Statemented - Special Unit Pupil Transpo,300750,22/02/2019,5100385122,1947.5,Bills Travel Bus,100731
WARRINGTON BOROUGH COUNCIL,http://opendatacommunities.org/id/unitary-authority/warrington,FWB,Special Schools Transport,33208,Statemented - Special Unit Pupil Transpo,300750,07/02/2019,5100383651,1431,Warrington Cars,113774
WARRINGTON BOROUGH COUNCIL,http://opendatacommunities.org/id/unitary-authority/warrington,FWB,Special Schools Transport,33208,Statemented - Special Unit Pupil Transpo,300750,04/02/2019,5100383412,977.5,Pete's Minibus,113937
WARRINGTON BOROUGH COUNCIL,http://opendatacommunities.org/id/unitary-authority/warrington,FWB,Special Schools Transport,33208,Statemented - Special Unit Pupil Transpo,300750,07/02/2019,5100383675,3330,Maguires Executive Transport,111135
WARRINGTON BOROUGH COUNCIL,http://opendatacommunities.org/id/unitary-authority/warrington,FWB,Special Schools Transport,33208,Statemented - Special Unit Pupil Transpo,300750,07/02/2019,5100383673,2432,Direct Taxis,101873
WARRINGTON BOROUGH COUNCIL,http://opendatacommunities.org/id/unitary-authority/warrington,FWB,Special Schools Transport,33208,Statemented - Special Unit Pupil Transpo,300750,07/02/2019,5100383674,2667,Diamond Travel,104665
WARRINGTON BOROUGH COUNCIL,http://opendatacommunities.org/id/unitary-authority/warrington,FWB,Special Schools Transport,33208,Statemented - Special Unit Pupil Transpo,300750,05/02/2019,5100383479,940,Redacted Personal Data,116267
WARRINGTON BOROUGH COUNCIL,http://opendatacommunities.org/id/unitary-authority/warrington,FWB,Special Schools Transport,33208,Statemented - Special Unit Pupil Transpo,300750,12/02/2019,5100384133,1800,Direct Taxis,101873
WARRINGTON BOROUGH COUNCIL,http://opendatacommunities.org/id/unitary-authority/warrington,FWB,Special Schools Transport,33208,Statemented - Special Unit Pupil Transpo,300750,04/02/2019,5100383379,1076.75,Abba Cars,105302
WARRINGTON BOROUGH COUNCIL,http://opendatacommunities.org/id/unitary-authority/warrington,FWB,Special Schools Transport,33208,Statemented - Special Unit Pupil Transpo,300750,07/02/2019,5100383672,2520,LM Travel,113868
WARRINGTON BOROUGH COUNCIL,http://opendatacommunities.org/id/unitary-authority/warrington,FWB,Special Schools Transport,33208,Statemented - Special Unit Pupil Transpo,300750,07/02/2019,5100383656,1520,Warrington Cars,113774
WARRINGTON BOROUGH COUNCIL,http://opendatacommunities.org/id/unitary-authority/warrington,FWB,Special Schools Transport,33208,Statemented - Special Unit Pupil Transpo,300750,04/02/2019,5100383335,2280,Hampton Coaches,104768
WARRINGTON BOROUGH COUNCIL,http://opendatacommunities.org/id/unitary-authority/warrington,FWB,Special Schools Transport,33208,Statemented - Special Unit Pupil Transpo,300750,06/02/2019,5100383586,1757.5,Redacted Personal Data,112353
WARRINGTON BOROUGH COUNCIL,http://opendatacommunities.org/id/unitary-authority/warrington,FWB,Special Schools Transport,33208,Statemented - Special Unit Pupil Transpo,300750,06/02/2019,5100383581,1900,Direct Taxis,101873
WARRINGTON BOROUGH COUNCIL,http://opendatacommunities.org/id/unitary-authority/warrington,FWB,Special Schools Transport,33208,Statemented - Special Unit Pupil Transpo,300750,07/02/2019,5100383658,1406,Direct Taxis,101873
WARRINGTON BOROUGH COUNCIL,http://opendatacommunities.org/id/unitary-authority/warrington,FWB,Special Schools Transport,33208,Statemented - Special Unit Pupil Transpo,300750,04/02/2019,5100383382,1976,Abba Cars,105302
WARRINGTON BOROUGH COUNCIL,http://opendatacommunities.org/id/unitary-authority/warrington,FWB,Special Schools Transport,33208,Statemented - Special Unit Pupil Transpo,300750,06/02/2019,5100383582,2565,Direct Taxis,101873
WARRINGTON BOROUGH COUNCIL,http://opendatacommunities.org/id/unitary-authority/warrington,FWB,Special Schools Transport,33208,Statemented - Special Unit Pupil Transpo,300750,12/02/2019,5100384131,2340,Direct Taxis,101873
WARRINGTON BOROUGH COUNCIL,http://opendatacommunities.org/id/unitary-authority/warrington,FWB,Special Schools Transport,33208,Statemented - Special Unit Pupil Transpo,300750,06/02/2019,5100383587,2688,J J Travel & Transport Ltd,104838
WARRINGTON BOROUGH COUNCIL,http://opendatacommunities.org/id/unitary-authority/warrington,FWB,Contracts - SM Commissioning Team 1,55910,Drug Action,443600,27/02/2019,5100385621,130671.58,CGL,440139
WARRINGTON BOROUGH COUNCIL,http://opendatacommunities.org/id/unitary-authority/warrington,FWB,Contracts - SM Commissioning Team 1,55910,Drug Action,443600,05/02/2019,5100383507,130671.58,CGL,440139
WARRINGTON BOROUGH COUNCIL,http://opendatacommunities.org/id/unitary-authority/warrington,FWB,Contracts - SM Commissioning Team 1,55910,Drug Action,443600,05/02/2019,5100383508,130671.58,CGL,440139
WARRINGTON BOROUGH COUNCIL,http://opendatacommunities.org/id/unitary-authority/warrington,FWB,Contracts - SM Commissioning Team 1,55910,Public Health Contract Payments,540000,08/02/2019,5100382256,113220.17,Bridgewater Community Healthcare,108932
WARRINGTON BOROUGH COUNCIL,http://opendatacommunities.org/id/unitary-authority/warrington,FWB,Contracts - SM Commissioning Team 1,55910,Public Health Contract Payments,540000,08/02/2019,5100381797,113220.17,Bridgewater Community Healthcare,108932
WARRINGTON BOROUGH COUNCIL,http://opendatacommunities.org/id/unitary-authority/warrington,FWB,Contracts - SM Commissioning Team 1,55910,Public Health Contract Payments,540000,15/02/2019,5100384403,113220.17,Bridgewater Community Healthcare,108932
WARRINGTON BOROUGH COUNCIL,http://opendatacommunities.org/id/unitary-authority/warrington,FWB,Special Schools Transport,33208,Statemented - Special Unit Pupil Transpo,300750,06/02/2019,5100383589,1230,Redacted Personal Data,102978
WARRINGTON BOROUGH COUNCIL,http://opendatacommunities.org/id/unitary-authority/warrington,FWB,Special Schools Transport,33208,Statemented - Special Unit Pupil Transpo,300750,06/02/2019,5100383579,2147,Direct Taxis,101873
WARRINGTON BOROUGH COUNCIL,http://opendatacommunities.org/id/unitary-authority/warrington,FWB,Special Schools Transport,33208,Statemented - Special Unit Pupil Transpo,300750,07/02/2019,5100383715,1105,Raza Taxis,105056
WARRINGTON BOROUGH COUNCIL,http://opendatacommunities.org/id/unitary-authority/warrington,FWB,Special Schools Transport,33208,Statemented - Special Unit Pupil Transpo,300750,04/02/2019,5100383416,1748.7,Rixton Travel Services,116154
WARRINGTON BOROUGH COUNCIL,http://opendatacommunities.org/id/unitary-authority/warrington,FWB,Special Schools Transport,33208,Statemented - Special Unit Pupil Transpo,300750,07/02/2019,5100383669,1900,Direct Taxis,101873
WARRINGTON BOROUGH COUNCIL,http://opendatacommunities.org/id/unitary-authority/warrington,FWB,Virtual School,31112,Looked after children in Warrington,301000,08/02/2019,5100383877,15429,Truancy Call t/a Contact Group,116367
WARRINGTON BOROUGH COUNCIL,http://opendatacommunities.org/id/unitary-authority/warrington,FWB,Special Schools Transport,33208,Statemented - Special Unit Pupil Transpo,300750,07/02/2019,5100383667,2520,LM Travel,113868
WARRINGTON BOROUGH COUNCIL,http://opendatacommunities.org/id/unitary-authority/warrington,FWB,Special Schools Transport,33208,Statemented - Special Unit Pupil Transpo,300750,07/02/2019,5100383719,1181.8,Raza Taxis,105056
WARRINGTON BOROUGH COUNCIL,http://opendatacommunities.org/id/unitary-authority/warrington,FWB,Special Schools Transport,33208,Statemented - Special Unit Pupil Transpo,300750,06/02/2019,5100383583,2184,Direct Taxis,101873
WARRINGTON BOROUGH COUNCIL,http://opendatacommunities.org/id/unitary-authority/warrington,FWB,Special Schools Transport,33208,Statemented - Special Unit Pupil Transpo,300750,07/02/2019,5100383617,2205,Warrington Cars,113774
WARRINGTON BOROUGH COUNCIL,http://opendatacommunities.org/id/unitary-authority/warrington,FWB,Special Schools Transport,33208,Statemented - Special Unit Pupil Transpo,300750,12/02/2019,5100384089,2430,Direct Taxis,101873
WARRINGTON BOROUGH COUNCIL,http://opendatacommunities.org/id/unitary-authority/warrington,FWB,Special Schools Transport,33208,Statemented - Special Unit Pupil Transpo,300750,04/02/2019,5100383362,1870,K & J Travel,115925
WARRINGTON BOROUGH COUNCIL,http://opendatacommunities.org/id/unitary-authority/warrington,FWB,Special Schools Transport,33208,Statemented - Special Unit Pupil Transpo,300750,07/02/2019,5100383676,1848,Direct Taxis,101873
WARRINGTON BOROUGH COUNCIL,http://opendatacommunities.org/id/unitary-authority/warrington,FWB,Special Schools Transport,33208,Statemented - Special Unit Pupil Transpo,300750,12/02/2019,5100384130,2565,Direct Taxis,101873
WARRINGTON BOROUGH COUNCIL,http://opendatacommunities.org/id/unitary-authority/warrington,FWB,Special Schools Transport,33208,Statemented - Special Unit Pupil Transpo,300750,06/02/2019,5100383574,2310,Direct Taxis,101873
WARRINGTON BOROUGH COUNCIL,http://opendatacommunities.org/id/unitary-authority/warrington,FWB,Special Schools Transport,33208,Statemented - Special Unit Pupil Transpo,300750,07/02/2019,5100383659,1575,Direct Taxis,101873
WARRINGTON BOROUGH COUNCIL,http://opendatacommunities.org/id/unitary-authority/warrington,FWB,Special Schools Transport,33208,Statemented - Special Unit Pupil Transpo,300750,06/02/2019,5100383584,1995,Direct Taxis,101873
WARRINGTON BOROUGH COUNCIL,http://opendatacommunities.org/id/unitary-authority/warrington,FWB,Special Schools Transport,33208,Statemented - Special Unit Pupil Transpo,300750,06/02/2019,5100383569,1785,Direct Taxis,101873
WARRINGTON BOROUGH COUNCIL,http://opendatacommunities.org/id/unitary-authority/warrington,FWB,Special Schools Transport,33208,Statemented - Special Unit Pupil Transpo,300750,06/02/2019,5100383575,1464,Direct Taxis,101873
WARRINGTON BOROUGH COUNCIL,http://opendatacommunities.org/id/unitary-authority/warrington,FWB,Special Schools Transport,33208,Statemented - Special Unit Pupil Transpo,300750,07/02/2019,5100383616,1235,Warrington Cars,113774
WARRINGTON BOROUGH COUNCIL,http://opendatacommunities.org/id/unitary-authority/warrington,FWB,Special Schools Transport,33208,Statemented - Special Unit Pupil Transpo,300750,07/02/2019,5100383663,1862,Direct Taxis,101873
WARRINGTON BOROUGH COUNCIL,http://opendatacommunities.org/id/unitary-authority/warrington,FWB,Homelessness,43650,Security Systems,250000,10/09/2018,5100367006,735.98,Golden Gates Housing Trust,101005
WARRINGTON BOROUGH COUNCIL,http://opendatacommunities.org/id/unitary-authority/warrington,RSC,ICT & Business Improvement,23020,Computer Hardware - Maintenance,450750,15/02/2019,5100384444,2413.12,Cheshire East Council,410116
WARRINGTON BOROUGH COUNCIL,http://opendatacommunities.org/id/unitary-authority/warrington,FWB,Transport,54950,Transport-Snad Cot,300600,04/02/2019,5100383390,2451,Redacted Personal Data,104639
WARRINGTON BOROUGH COUNCIL,http://opendatacommunities.org/id/unitary-authority/warrington,ENO,Environment & Regeneration Other,82002,Consult.& Prof. Serv,440000,04/02/2019,5100383286,650,Apex Ecology LTD,113374
WARRINGTON BOROUGH COUNCIL,http://opendatacommunities.org/id/unitary-authority/warrington,EE0,Local Bus Contracts,44430,Rural Bus Grant Serv,530200,06/02/2019,5100383588,2524.07,J J Travel & Transport Ltd,104838
WARRINGTON BOROUGH COUNCIL,http://opendatacommunities.org/id/unitary-authority/warrington,EE0,Local Bus Contracts,44430,Rural Bus Grant Serv,530200,06/02/2019,5100383592,1034.53,Warrington Borough Transport Ltd,105226
WARRINGTON BOROUGH COUNCIL,http://opendatacommunities.org/id/unitary-authority/warrington,EE0,Local Bus Contracts,44430,Rural Bus Grant Serv,530200,06/02/2019,5100383593,2863.81,Warrington Borough Transport Ltd,105226
WARRINGTON BOROUGH COUNCIL,http://opendatacommunities.org/id/unitary-authority/warrington,EE0,Local Bus Contracts,44430,Rural Bus Grant Serv,530200,07/02/2019,5100383833,4083.33,Warrington Borough Transport Ltd,105226
WARRINGTON BOROUGH COUNCIL,http://opendatacommunities.org/id/unitary-authority/warrington,EE0,Local Bus Contracts,44430,Payments To Operator,530150,07/02/2019,5100383834,2215,Warrington Borough Transport Ltd,105226
WARRINGTON BOROUGH COUNCIL,http://opendatacommunities.org/id/unitary-authority/warrington,EE0,Local Bus Contracts,44430,Payments To Operator,530150,07/02/2019,5100383828,883.33,Warrington Borough Transport Ltd,105226
WARRINGTON BOROUGH COUNCIL,http://opendatacommunities.org/id/unitary-authority/warrington,EE0,Local Bus Contracts,44430,Rural Bus Grant Serv,530200,07/02/2019,5100383835,1887.67,Warrington Borough Transport Ltd,105226
WARRINGTON BOROUGH COUNCIL,http://opendatacommunities.org/id/unitary-authority/warrington,EE0,Local Bus Contracts,44430,Payments To Operator,530150,07/02/2019,5100383832,1697.41,Warrington Borough Transport Ltd,105226
WARRINGTON BOROUGH COUNCIL,http://opendatacommunities.org/id/unitary-authority/warrington,EE0,Local Bus Contracts,44430,Payments To Operator,530150,07/02/2019,5100383826,732.48,Warrington Borough Transport Ltd,105226
WARRINGTON BOROUGH COUNCIL,http://opendatacommunities.org/id/unitary-authority/warrington,EE0,Local Bus Contracts,44430,Payments To Operator,530150,07/02/2019,5100383836,1512.5,Warrington Borough Transport Ltd,105226
WARRINGTON BOROUGH COUNCIL,http://opendatacommunities.org/id/unitary-authority/warrington,EE0,Local Bus Contracts,44430,Payments To Operator,530150,07/02/2019,5100383827,3333.33,Warrington Borough Transport Ltd,105226
WARRINGTON BOROUGH COUNCIL,http://opendatacommunities.org/id/unitary-authority/warrington,EE0,Local Bus Contracts,44430,Payments To Operator,530150,07/02/2019,5100383838,2500,Warrington Borough Transport Ltd,105226
WARRINGTON BOROUGH COUNCIL,http://opendatacommunities.org/id/unitary-authority/warrington,EE0,Local Bus Contracts,44430,Payments To Operator,530150,07/02/2019,5100383830,4810,Warrington Borough Transport Ltd,105226
WARRINGTON BOROUGH COUNCIL,http://opendatacommunities.org/id/unitary-authority/warrington,FWB,Special Schools Transport,33208,Statemented - Special Unit Pupil Transpo,300750,06/02/2019,5100383570,1638,Direct Taxis,101873
WARRINGTON BOROUGH COUNCIL,http://opendatacommunities.org/id/unitary-authority/warrington,FWB,Special Schools Transport,33208,Statemented - Special Unit Pupil Transpo,300750,06/02/2019,5100383576,1805,Direct Taxis,101873
WARRINGTON BOROUGH COUNCIL,http://opendatacommunities.org/id/unitary-authority/warrington,FWB,Special Schools Transport,33208,Statemented - Special Unit Pupil Transpo,300750,04/02/2019,5100383378,752,Abba Cars,105302
WARRINGTON BOROUGH COUNCIL,http://opendatacommunities.org/id/unitary-authority/warrington,FWB,Special Schools Transport,33208,Statemented - Special Unit Pupil Transpo,300750,07/02/2019,5100383717,1805,Raza Taxis,105056
WARRINGTON BOROUGH COUNCIL,http://opendatacommunities.org/id/unitary-authority/warrington,FWB,Special Schools Transport,33208,Statemented - Special Unit Pupil Transpo,300750,04/02/2019,5100383353,990,J&A Cars,115585
WARRINGTON BOROUGH COUNCIL,http://opendatacommunities.org/id/unitary-authority/warrington,FWB,Special Schools Transport,33208,Statemented - Special Unit Pupil Transpo,300750,06/02/2019,5100383590,1470,Redacted Personal Data,108796
WARRINGTON BOROUGH COUNCIL,http://opendatacommunities.org/id/unitary-authority/warrington,FWB,Children with Disabilities,31005,Statemented - Special Unit Pupil Transpo,300750,07/02/2019,5100383654,1400,Warrington Cars,113774
WARRINGTON BOROUGH COUNCIL,http://opendatacommunities.org/id/unitary-authority/warrington,FWB,Special Schools Transport,33208,Statemented - Special Unit Pupil Transpo,300750,07/02/2019,5100383723,1249.5,Raza Taxis,105056
WARRINGTON BOROUGH COUNCIL,http://opendatacommunities.org/id/unitary-authority/warrington,FWB,Special Schools Transport,33208,Statemented - Special Unit Pupil Transpo,300750,06/02/2019,5100383572,1900,Direct Taxis,101873
WARRINGTON BOROUGH COUNCIL,http://opendatacommunities.org/id/unitary-authority/warrington,FWB,Special Schools Transport,33208,Statemented - Special Unit Pupil Transpo,300750,07/02/2019,5100383670,1950,LM Travel,113868
WARRINGTON BOROUGH COUNCIL,http://opendatacommunities.org/id/unitary-authority/warrington,FWB,Special Schools Transport,33208,Statemented - Special Unit Pupil Transpo,300750,04/02/2019,5100383385,1160,Redacted Personal Data,103536
WARRINGTON BOROUGH COUNCIL,http://opendatacommunities.org/id/unitary-authority/warrington,FWB,Special Schools Transport,33208,Statemented - Special Unit Pupil Transpo,300750,04/02/2019,5100383386,2791,Diamond Travel,104665
WARRINGTON BOROUGH COUNCIL,http://opendatacommunities.org/id/unitary-authority/warrington,FWB,Special Schools Transport,33208,Statemented - Special Unit Pupil Transpo,300750,04/02/2019,5100383314,1900,Hampton Coaches,104768
WARRINGTON BOROUGH COUNCIL,http://opendatacommunities.org/id/unitary-authority/warrington,FWB,Special Schools Transport,33208,Statemented - Special Unit Pupil Transpo,300750,04/02/2019,5100383415,2331,Regal Travel,102002
WARRINGTON BOROUGH COUNCIL,http://opendatacommunities.org/id/unitary-authority/warrington,FWB,Special Schools Transport,33208,Statemented - Special Unit Pupil Transpo,300750,06/02/2019,5100383560,592,Direct Taxis,101873
WARRINGTON BOROUGH COUNCIL,http://opendatacommunities.org/id/unitary-authority/warrington,FWB,Special Schools Transport,33208,Statemented - Special Unit Pupil Transpo,300750,04/02/2019,5100383376,985.5,Abba Cars,105302
WARRINGTON BOROUGH COUNCIL,http://opendatacommunities.org/id/unitary-authority/warrington,EE0,Urban Traffic Management Control,44370,Signal Equipment,531650,04/02/2019,5100383280,16747.51,Siemens PLC,101162
WARRINGTON BOROUGH COUNCIL,http://opendatacommunities.org/id/unitary-authority/warrington,EE0,Urban Traffic Management Control,44370,Signal Equipment,531650,16/01/2019,5100381369,833.75,Siemens PLC,101162
WARRINGTON BOROUGH COUNCIL,http://opendatacommunities.org/id/unitary-authority/warrington,EE0,Urban Traffic Management Control,44370,Signal Equipment,531650,16/01/2019,5100381370,906,Siemens PLC,101162
WARRINGTON BOROUGH COUNCIL,http://opendatacommunities.org/id/unitary-authority/warrington,EE0,Urban Traffic Management Control,44370,Signal Equipment,531650,16/01/2019,5100381371,764.3,Siemens PLC,101162
WARRINGTON BOROUGH COUNCIL,http://opendatacommunities.org/id/unitary-authority/warrington,EE0,Urban Traffic Management Control,44370,Signal Equipment,531650,16/01/2019,5100381376,1310,Siemens PLC,101162
WARRINGTON BOROUGH COUNCIL,http://opendatacommunities.org/id/unitary-authority/warrington,EE0,Urban Traffic Management Control,44370,Signal Equipment,531650,16/01/2019,5100381379,778.55,Siemens PLC,101162
WARRINGTON BOROUGH COUNCIL,http://opendatacommunities.org/id/unitary-authority/warrington,EE0,Urban Traffic Management Control,44370,Signal Equipment,531650,30/01/2019,5100382660,16747.51,Siemens PLC,101162
WARRINGTON BOROUGH COUNCIL,http://opendatacommunities.org/id/unitary-authority/warrington,FWB,Permanence Team,31100,Transport SLA,300400,07/02/2019,5100383650,2520,Warrington Cars,113774
WARRINGTON BOROUGH COUNCIL,http://opendatacommunities.org/id/unitary-authority/warrington,FWB,Equipment Store,54930,Equipment Purchase & Contract,400000,12/02/2019,5100384183,920,Healthcare Matters,110751
WARRINGTON BOROUGH COUNCIL,http://opendatacommunities.org/id/unitary-authority/warrington,FWB,Equipment Store,54930,Equipment Purchase & Contract,400000,27/06/2018,5100360198,930,Healthcare Matters,110751
WARRINGTON BOROUGH COUNCIL,http://opendatacommunities.org/id/unitary-authority/warrington,RSC,HR Advisory,20005,Legal Costs Incurred,440200,08/02/2019,5100382836,912.5,Weightmans Office AC,101452
WARRINGTON BOROUGH COUNCIL,http://opendatacommunities.org/id/unitary-authority/warrington,CYP,Primary,81001,Specific Work,200200,26/02/2019,5100385514,8340.38,Tuneside Ltd,100337
WARRINGTON BOROUGH COUNCIL,http://opendatacommunities.org/id/unitary-authority/warrington,CYP,Primary,81001,Specific Work,200200,27/02/2019,5100385631,212202.08,Tuneside Ltd,100337
WARRINGTON BOROUGH COUNCIL,http://opendatacommunities.org/id/unitary-authority/warrington,FWB,Contracts - SM Commissioning Team 1,55910,Public Health Contract Payments,540000,19/02/2019,5100384944,272166,Bridgewater Community Healthcare,108932
WARRINGTON BOROUGH COUNCIL,http://opendatacommunities.org/id/unitary-authority/warrington,FWB,Special Schools Transport,33208,Statemented - Special Unit Pupil Transpo,300750,04/02/2019,5100383313,1065,Gary's Airport Transfers,116159
WARRINGTON BOROUGH COUNCIL,http://opendatacommunities.org/id/unitary-authority/warrington,FWB,Special Schools Transport,33208,Statemented - Special Unit Pupil Transpo,300750,04/02/2019,5100383407,4321,Andys Bus Company,100654
WARRINGTON BOROUGH COUNCIL,http://opendatacommunities.org/id/unitary-authority/warrington,FWB,Special Schools Transport,33208,Statemented - Special Unit Pupil Transpo,300750,07/02/2019,5100383679,4735,Sure & Safe Minibus Service Ltd,100137
WARRINGTON BOROUGH COUNCIL,http://opendatacommunities.org/id/unitary-authority/warrington,FWB,Special Schools Transport,33208,Statemented - Special Unit Pupil Transpo,300750,06/02/2019,5100383578,1890,Direct Taxis,101873
WARRINGTON BOROUGH COUNCIL,http://opendatacommunities.org/id/unitary-authority/warrington,FWB,Home to School Transport,33210,Mainstream Pupil Transport,300800,07/02/2019,5100383829,1260,Warrington Borough Transport Ltd,105226
WARRINGTON BOROUGH COUNCIL,http://opendatacommunities.org/id/unitary-authority/warrington,EE0,On Street Car Parking,44323,Equipment Purchase & Contract,400000,14/02/2019,5100383455,953.1,Patrol,103313
WARRINGTON BOROUGH COUNCIL,http://opendatacommunities.org/id/unitary-authority/warrington,FWB,Special Schools Transport,33208,Statemented - Special Unit Pupil Transpo,300750,04/02/2019,5100383311,1672,Direct Taxis,101873
WARRINGTON BOROUGH COUNCIL,http://opendatacommunities.org/id/unitary-authority/warrington,RSC,Customer Contact Centre,52201,Equipment Purchase & Contract,400000,08/02/2019,5100383451,1214.63,Premier Physical Healthcare Ltd,114603
WARRINGTON BOROUGH COUNCIL,http://opendatacommunities.org/id/unitary-authority/warrington,FWB,Equipment Store,54930,Annual Maintenance,442100,07/02/2019,5100383808,505.83,ThyssenKrupp Encasa Ltd,105382
WARRINGTON BOROUGH COUNCIL,http://opendatacommunities.org/id/unitary-authority/warrington,FWB,Equipment Store,54930,Annual Maintenance,442100,19/02/2019,5100384923,769,ThyssenKrupp Encasa Ltd,105382
WARRINGTON BOROUGH COUNCIL,http://opendatacommunities.org/id/unitary-authority/warrington,FWB,Equipment Store,54930,Annual Maintenance,442100,20/02/2019,5100385039,1048.43,ThyssenKrupp Encasa Ltd,105382
WARRINGTON BOROUGH COUNCIL,http://opendatacommunities.org/id/unitary-authority/warrington,EE0,Development Control,43430,Consult.& Prof. Serv,440000,08/02/2019,5100381145,1485.9,Urban Vision Partnership Ltd,103202
WARRINGTON BOROUGH COUNCIL,http://opendatacommunities.org/id/unitary-authority/warrington,EE0,Bus Interchange,44460,Equipment Purchase & Contract,400000,31/01/2019,5100382726,743.82,Ravenhead Services,105054
WARRINGTON BOROUGH COUNCIL,http://opendatacommunities.org/id/unitary-authority/warrington,EE0,Bus Interchange,44460,Equipment Purchase & Contract,400000,31/01/2019,5100382727,743.82,Ravenhead Services,105054
WARRINGTON BOROUGH COUNCIL,http://opendatacommunities.org/id/unitary-authority/warrington,EE0,Bus Interchange,44460,Equipment Purchase & Contract,400000,31/01/2019,5100382728,743.82,Ravenhead Services,105054
WARRINGTON BOROUGH COUNCIL,http://opendatacommunities.org/id/unitary-authority/warrington,EE1,Street Lighting Client,44241,Lighting Energy Char,531550,06/02/2019,5100383497,75766.47,Npower Electricity,101884
WARRINGTON BOROUGH COUNCIL,http://opendatacommunities.org/id/unitary-authority/warrington,EE0,Vehicle & Plant Acq.,41312,Maintenance Work - Sub Contractors,301150,07/02/2019,5100383819,1300,Brit-Tipp Ltd,104545
WARRINGTON BOROUGH COUNCIL,http://opendatacommunities.org/id/unitary-authority/warrington,FWB,Neighbourhood Co-o Central,51309,Rent Of Premises,220000,19/02/2019,5100384927,1748.76,Warrington Housing Rent,103168
WARRINGTON BOROUGH COUNCIL,http://opendatacommunities.org/id/unitary-authority/warrington,EE0,Development Control,43430,Consult.& Prof. Serv,440000,01/02/2019,5100382832,1152.24,Oyster Partnership,116595
WARRINGTON BOROUGH COUNCIL,http://opendatacommunities.org/id/unitary-authority/warrington,EE0,Development Control,43430,Consult.& Prof. Serv,440000,22/02/2019,5100381023,787.25,Oyster Partnership,116595
WARRINGTON BOROUGH COUNCIL,http://opendatacommunities.org/id/unitary-authority/warrington,EE0,Development Control,43430,Consult.& Prof. Serv,440000,22/02/2019,5100380350,1110,Oyster Partnership,116595
WARRINGTON BOROUGH COUNCIL,http://opendatacommunities.org/id/unitary-authority/warrington,EE0,Development Control,43430,Consult.& Prof. Serv,440000,22/02/2019,5100380352,1420.75,Oyster Partnership,116595
WARRINGTON BOROUGH COUNCIL,http://opendatacommunities.org/id/unitary-authority/warrington,EE0,Development Control,43430,Consult.& Prof. Serv,440000,22/02/2019,5100381461,1110,Oyster Partnership,116595
WARRINGTON BOROUGH COUNCIL,http://opendatacommunities.org/id/unitary-authority/warrington,EE0,Development Control,43430,Consult.& Prof. Serv,440000,08/02/2019,5100381462,1544.65,Oyster Partnership,116595
WARRINGTON BOROUGH COUNCIL,http://opendatacommunities.org/id/unitary-authority/warrington,EE0,Development Control,43430,Consult.& Prof. Serv,440000,08/02/2019,5100382284,1339.5,Oyster Partnership,116595
WARRINGTON BOROUGH COUNCIL,http://opendatacommunities.org/id/unitary-authority/warrington,RSC,IT - Contracts,23600,Computer Software - Maintenance,450850,08/02/2019,5100383871,1041.2,Cdn Networks,101189
WARRINGTON BOROUGH COUNCIL,http://opendatacommunities.org/id/unitary-authority/warrington,RSC,IT - Contracts,23600,Computer Software - Maintenance,450850,12/02/2019,5100384054,1041.2,Cdn Networks,101189
WARRINGTON BOROUGH COUNCIL,http://opendatacommunities.org/id/unitary-authority/warrington,EE0,Project Delivery & Communications,43830,Consult.& Prof. Serv,440000,11/01/2019,5100380930,5395,Baker Mallett LLP,116160
WARRINGTON BOROUGH COUNCIL,http://opendatacommunities.org/id/unitary-authority/warrington,ENO,Highways LTP,82004,Consult.& Prof. Serv,440000,13/01/2019,5100381021,2160,Bikeright,101692
WARRINGTON BOROUGH COUNCIL,http://opendatacommunities.org/id/unitary-authority/warrington,ENO,Highways Other,82005,Consult.& Prof. Serv,440000,01/02/2019,5100382843,884.5,Marine Management Organisation,116608
WARRINGTON BOROUGH COUNCIL,http://opendatacommunities.org/id/unitary-authority/warrington,FWB,Telecare / Sensory,54560,Health Awareness,441950,05/02/2019,5100383477,2800,Tunstall Healthcare UK Ltd,105427
WARRINGTON BOROUGH COUNCIL,http://opendatacommunities.org/id/unitary-authority/warrington,FWB,SCM Catering,33176,Equipment Purchase & Contract,400000,01/02/2019,5100382515,1296.33,ParentPay Limited,116587
WARRINGTON BOROUGH COUNCIL,http://opendatacommunities.org/id/unitary-authority/warrington,FWB,SCM Catering,33176,Equipment Purchase & Contract,400000,13/01/2019,5100381034,5860.69,ParentPay Limited,116587
WARRINGTON BOROUGH COUNCIL,http://opendatacommunities.org/id/unitary-authority/warrington,FWB,SCM Catering,33176,Equipment Purchase & Contract,400000,07/11/2018,5100374401,1139.76,ParentPay Limited,116587
WARRINGTON BOROUGH COUNCIL,http://opendatacommunities.org/id/unitary-authority/warrington,EE0,Building Maintenance,43220,Consult.& Prof. Serv,440000,25/02/2019,5100385345,580,Redacted Personal Data,102651
WARRINGTON BOROUGH COUNCIL,http://opendatacommunities.org/id/unitary-authority/warrington,FWB,DSG Post-16 Special Educational Needs,32309,Materials,400500,08/12/2018,5100363034,6191.33,Bright Futures Care Ltd,114579
WARRINGTON BOROUGH COUNCIL,http://opendatacommunities.org/id/unitary-authority/warrington,PIO,People & Improvement Other,85002,Computer Hardware - Purchase,450700,08/01/2019,5100380450,600,The Networking People Ltd,110271
WARRINGTON BOROUGH COUNCIL,http://opendatacommunities.org/id/unitary-authority/warrington,PIO,People & Improvement Other,85002,Computer Hardware - Purchase,450700,08/01/2019,5100380450,1200,The Networking People Ltd,110271
WARRINGTON BOROUGH COUNCIL,http://opendatacommunities.org/id/unitary-authority/warrington,FWB,Special Schools Transport,33208,Statemented - Special Unit Pupil Transpo,300750,04/02/2019,5100383418,1080,Silver Executive Travel,102638
WARRINGTON BOROUGH COUNCIL,http://opendatacommunities.org/id/unitary-authority/warrington,FWB,Special Schools Transport,33208,Statemented - Special Unit Pupil Transpo,300750,07/02/2019,5100383686,881.6,Arrivals Star,101879
WARRINGTON BOROUGH COUNCIL,http://opendatacommunities.org/id/unitary-authority/warrington,RSC,Cheshire and Warrington Programme Office,60143,Provisions-Purchase,410000,11/02/2019,5100384041,804.17,CWAC Leisure CIC,111667
WARRINGTON BOROUGH COUNCIL,http://opendatacommunities.org/id/unitary-authority/warrington,FWB,Director of Public Health,55000,Public Health Contract Payments,540000,20/08/2018,5100365674,3750,Health @ Work Consultancy,115299
WARRINGTON BOROUGH COUNCIL,http://opendatacommunities.org/id/unitary-authority/warrington,FWB,Taxi and Private Hire Licensing,44450,Consult.& Prof. Serv,440000,23/02/2019,5100385226,1609.88,Radius Security Ltd,116645
WARRINGTON BOROUGH COUNCIL,http://opendatacommunities.org/id/unitary-authority/warrington,PIO,People & Improvement Other,85002,Minor Adaptations<750,400700,12/02/2019,5100384242,3872,Access-Able (UK) Limited,114939
WARRINGTON BOROUGH COUNCIL,http://opendatacommunities.org/id/unitary-authority/warrington,NEO,IT Projects,83003,Consult.& Prof. Serv,440000,05/11/2018,5100374085,1301.14,The Networking People Ltd,110271
WARRINGTON BOROUGH COUNCIL,http://opendatacommunities.org/id/unitary-authority/warrington,FWB,Equipment Store,54930,Equipment Purchase & Contract,400000,24/08/2018,5100365748,1606,Newlyn Healthcare Ltd,101429
WARRINGTON BOROUGH COUNCIL,http://opendatacommunities.org/id/unitary-authority/warrington,FWB,Prison Substance Misuse Services,53840,Drug Action,443600,27/02/2019,5100385620,95864.83,CGL,440139
WARRINGTON BOROUGH COUNCIL,http://opendatacommunities.org/id/unitary-authority/warrington,FWB,Prison Substance Misuse Services,53840,Drug Action,443600,05/02/2019,5100383509,95864.83,CGL,440139
WARRINGTON BOROUGH COUNCIL,http://opendatacommunities.org/id/unitary-authority/warrington,FWB,Special Schools Transport,33208,Statemented - Special Unit Pupil Transpo,300750,04/02/2019,5100383373,1710,Williams Travel,116664
WARRINGTON BOROUGH COUNCIL,http://opendatacommunities.org/id/unitary-authority/warrington,ENO,Open Spaces,82006,Equipment Purchase & Contract,400000,25/01/2019,5100382093,6190,David Webster & Sons Ltd,102202
WARRINGTON BOROUGH COUNCIL,http://opendatacommunities.org/id/unitary-authority/warrington,ENP,Environment & Regeneration,82000,Consult.& Prof. Serv,440000,08/02/2019,5100377939,4062.5,Mpulse Ltd,101462
WARRINGTON BOROUGH COUNCIL,http://opendatacommunities.org/id/unitary-authority/warrington,FWB,Home to School Transport,33210,Statemented - Special Unit Pupil Transpo,300750,07/02/2019,5100383681,1368,Arrivals Star,101879
WARRINGTON BOROUGH COUNCIL,http://opendatacommunities.org/id/unitary-authority/warrington,EE0,South East Urban Extension,40037,Consult.& Prof. Serv,440000,29/01/2019,5100382343,18422.51,Perfect Circle JV Ltd,116315
WARRINGTON BOROUGH COUNCIL,http://opendatacommunities.org/id/unitary-authority/warrington,FWB,Virtual School,31112,Looked after children in Warrington,301000,08/02/2019,5100382543,1000,St Elizabeths Catholic School,400391
WARRINGTON BOROUGH COUNCIL,http://opendatacommunities.org/id/unitary-authority/warrington,ENO,Priority Infrastructure,82009,Fct Repairs,532600,06/02/2019,5100383604,83542.5,Dawnus Construction Holdings Ltd,116706
WARRINGTON BOROUGH COUNCIL,http://opendatacommunities.org/id/unitary-authority/warrington,FWB,Commissioned Contracts,31116,Payment of Grants,470050,05/02/2019,5100383450,3275.9,Fostering Network,440069
WARRINGTON BOROUGH COUNCIL,http://opendatacommunities.org/id/unitary-authority/warrington,FWB,Fostering Collaboration,31115,Other Advertising & Publicity,450050,11/02/2019,5100384048,4000,Newsquest Media Group,100070
WARRINGTON BOROUGH COUNCIL,http://opendatacommunities.org/id/unitary-authority/warrington,FWB,Building Safer Communities,16000,Security Systems,250000,05/02/2019,5100383512,58240,Police and Crime Commissioner Chesh,104596
WARRINGTON BOROUGH COUNCIL,http://opendatacommunities.org/id/unitary-authority/warrington,FWB,Building Safer Communities,16000,Security Systems,250000,08/02/2019,5100383897,58240,Police and Crime Commissioner Chesh,104596
WARRINGTON BOROUGH COUNCIL,http://opendatacommunities.org/id/unitary-authority/warrington,RSC,Transformation Team,52210,Stationery,430150,18/02/2019,5100370969,3825,Resulting Ltd,116711
WARRINGTON BOROUGH COUNCIL,http://opendatacommunities.org/id/unitary-authority/warrington,RSC,Transformation Team,52210,Stationery,430150,18/02/2019,5100377894,2720,Resulting Ltd,116711
WARRINGTON BOROUGH COUNCIL,http://opendatacommunities.org/id/unitary-authority/warrington,ENO,Highways Other,82005,Environmental Works,531050,30/01/2019,5100382654,1067.81,Newsquest Media Group,100070
WARRINGTON BOROUGH COUNCIL,http://opendatacommunities.org/id/unitary-authority/warrington,FWB,Special Schools Transport,33208,Statemented - Special Unit Pupil Transpo,300750,12/02/2019,5100384129,2592,Direct Taxis,101873
WARRINGTON BOROUGH COUNCIL,http://opendatacommunities.org/id/unitary-authority/warrington,FWB,Special Schools Transport,33208,Statemented - Special Unit Pupil Transpo,300750,07/02/2019,5100383652,2280,Warrington Cars,113774
WARRINGTON BOROUGH COUNCIL,http://opendatacommunities.org/id/unitary-authority/warrington,FWB,Special Schools Transport,33208,Statemented - Special Unit Pupil Transpo,300750,08/02/2019,5100383923,585,Warrington Cars,113774
WARRINGTON BOROUGH COUNCIL,http://opendatacommunities.org/id/unitary-authority/warrington,FWB,Special Schools Transport,33208,Statemented - Special Unit Pupil Transpo,300750,07/02/2019,5100383721,1148.5,Raza Taxis,105056
WARRINGTON BOROUGH COUNCIL,http://opendatacommunities.org/id/unitary-authority/warrington,FWB,Special Schools Transport,33208,Statemented - Special Unit Pupil Transpo,300750,05/02/2019,5100383478,960,Arrivals Star,101879
WARRINGTON BOROUGH COUNCIL,http://opendatacommunities.org/id/unitary-authority/warrington,FWB,Special Schools Transport,33208,Statemented - Special Unit Pupil Transpo,300750,20/02/2019,5100384980,1216,Arrivals Star,101879
WARRINGTON BOROUGH COUNCIL,http://opendatacommunities.org/id/unitary-authority/warrington,FWB,Special Schools Transport,33208,Statemented - Special Unit Pupil Transpo,300750,04/02/2019,5100383400,666,Redacted Personal Data,115134
WARRINGTON BOROUGH COUNCIL,http://opendatacommunities.org/id/unitary-authority/warrington,FWB,Special Schools Transport,33208,Statemented - Special Unit Pupil Transpo,300750,05/02/2019,5100383482,1843,Manhatton Transfers,101264
WARRINGTON BOROUGH COUNCIL,http://opendatacommunities.org/id/unitary-authority/warrington,FWB,Special Schools Transport,33208,Statemented - Special Unit Pupil Transpo,300750,07/02/2019,5100383614,568.1,Raza Taxis,105056
WARRINGTON BOROUGH COUNCIL,http://opendatacommunities.org/id/unitary-authority/warrington,FWB,Special Schools Transport,33208,Statemented - Special Unit Pupil Transpo,300750,06/02/2019,5100383573,2902,Direct Taxis,101873
WARRINGTON BOROUGH COUNCIL,http://opendatacommunities.org/id/unitary-authority/warrington,FWB,Special Schools Transport,33208,Statemented - Special Unit Pupil Transpo,300750,04/02/2019,5100383367,1520,Redacted Personal Data,101977
WARRINGTON BOROUGH COUNCIL,http://opendatacommunities.org/id/unitary-authority/warrington,FWB,Special Schools Transport,33208,Statemented - Special Unit Pupil Transpo,300750,07/02/2019,5100383682,1050,Arrivals Star,101879
WARRINGTON BOROUGH COUNCIL,http://opendatacommunities.org/id/unitary-authority/warrington,FWB,Special Schools Transport,33208,Statemented - Special Unit Pupil Transpo,300750,04/02/2019,5100383419,969,Will's Cabs,116729
WARRINGTON BOROUGH COUNCIL,http://opendatacommunities.org/id/unitary-authority/warrington,FWB,Special Schools Transport,33208,Statemented - Special Unit Pupil Transpo,300750,13/02/2019,5100384317,2268,Direct Taxis,101873
WARRINGTON BOROUGH COUNCIL,http://opendatacommunities.org/id/unitary-authority/warrington,FWB,Special Schools Transport,33208,Statemented - Special Unit Pupil Transpo,300750,20/02/2019,5100384979,1710,Arrivals Star,101879
WARRINGTON BOROUGH COUNCIL,http://opendatacommunities.org/id/unitary-authority/warrington,FWB,Special Schools Transport,33208,Statemented - Special Unit Pupil Transpo,300750,20/02/2019,5100384982,2016,Direct Taxis,101873
WARRINGTON BOROUGH COUNCIL,http://opendatacommunities.org/id/unitary-authority/warrington,FWB,Special Schools Transport,33208,Statemented - Special Unit Pupil Transpo,300750,20/02/2019,5100384978,1116,Arrivals Star,101879
WARRINGTON BOROUGH COUNCIL,http://opendatacommunities.org/id/unitary-authority/warrington,FWB,Special Schools Transport,33208,Statemented - Special Unit Pupil Transpo,300750,07/02/2019,5100383685,1995,Arrivals Star,101879
WARRINGTON BOROUGH COUNCIL,http://opendatacommunities.org/id/unitary-authority/warrington,FWB,Equipment Store,54930,Equipment Purchase & Contract,400000,08/01/2019,5100380453,1000,Healthcare Matters,110751
WARRINGTON BOROUGH COUNCIL,http://opendatacommunities.org/id/unitary-authority/warrington,PIO,People & Improvement Other,85002,Minor Adaptations<750,400700,12/02/2019,5100384241,850,Access-Able (UK) Limited,114939
WARRINGTON BOROUGH COUNCIL,http://opendatacommunities.org/id/unitary-authority/warrington,EE0,Local Bus Contracts,44430,Payments To Operator,530150,07/02/2019,5100383837,728.58,Warrington Borough Transport Ltd,105226
WARRINGTON BOROUGH COUNCIL,http://opendatacommunities.org/id/unitary-authority/warrington,EE0,Waste Disposal,41830,Fridge Disposal Costs,530400,15/02/2019,5100384422,937.13,Viridor Electrical Recycling Ltd,103076
WARRINGTON BOROUGH COUNCIL,http://opendatacommunities.org/id/unitary-authority/warrington,EE0,Waste Recycling,41820,Bring Site Charges,443150,22/02/2019,5100382642,902.1,Wsr Recycling Ltd,101196
WARRINGTON BOROUGH COUNCIL,http://opendatacommunities.org/id/unitary-authority/warrington,EE0,Waste Recycling,41820,Bring Site Charges,443150,27/01/2019,5100382337,902.1,Wsr Recycling Ltd,101196
WARRINGTON BOROUGH COUNCIL,http://opendatacommunities.org/id/unitary-authority/warrington,FWB,Permanence Team,31100,Transport SLA,300400,05/02/2019,5100383481,1710,Redacted Personal Data,116267
WARRINGTON BOROUGH COUNCIL,http://opendatacommunities.org/id/unitary-authority/warrington,FWB,Transport,54950,Transport-Snad Cot,300600,07/02/2019,5100383683,720,Arrivals Star,101879
WARRINGTON BOROUGH COUNCIL,http://opendatacommunities.org/id/unitary-authority/warrington,RSC,Transformation Team,52210,Computer Software - Purchase,450800,17/01/2019,5100381531,3750.01,Civica Uk Ltd,100585
WARRINGTON BOROUGH COUNCIL,http://opendatacommunities.org/id/unitary-authority/warrington,RSC,Accountancy and Financial Planning,10100,Computer Software - Maintenance,450850,10/01/2019,5100380687,3204.17,Advanced Business Solutions,113651
WARRINGTON BOROUGH COUNCIL,http://opendatacommunities.org/id/unitary-authority/warrington,FWB,DSG Post-16 Special Educational Needs,32309,Materials,400500,07/02/2019,5100383767,6721.78,The City of Liverpool College,101237
WARRINGTON BOROUGH COUNCIL,http://opendatacommunities.org/id/unitary-authority/warrington,FWB,DSG Post-16 Special Educational Needs,32309,Materials,400500,08/02/2019,5100383878,2204.32,Great Sankey High Academy School,400206
WARRINGTON BOROUGH COUNCIL,http://opendatacommunities.org/id/unitary-authority/warrington,FWB,DSG Post-16 Special Educational Needs,32309,Materials,400500,12/02/2019,5100384136,1010.24,Kings Leadership Academy,400191
WARRINGTON BOROUGH COUNCIL,http://opendatacommunities.org/id/unitary-authority/warrington,FWB,DSG Post-16 Special Educational Needs,32309,Materials,400500,05/02/2019,5100382598,2120.5,The Manchester College,400147
WARRINGTON BOROUGH COUNCIL,http://opendatacommunities.org/id/unitary-authority/warrington,FWB,DSG Post-16 Special Educational Needs,32309,Materials,400500,07/02/2019,5100383713,1970.7,The Royal School For The Blind,400046
WARRINGTON BOROUGH COUNCIL,http://opendatacommunities.org/id/unitary-authority/warrington,FWB,DSG Post-16 Special Educational Needs,32309,Materials,400500,07/02/2019,5100383712,3067.42,The Royal School For The Blind,400046
WARRINGTON BOROUGH COUNCIL,http://opendatacommunities.org/id/unitary-authority/warrington,FWB,DSG Post-16 Special Educational Needs,32309,Materials,400500,07/02/2019,5100383711,3067.42,The Royal School For The Blind,400046
WARRINGTON BOROUGH COUNCIL,http://opendatacommunities.org/id/unitary-authority/warrington,FWB,DSG Post-16 Special Educational Needs,32309,Materials,400500,12/02/2019,5100384114,19705.26,Nugent Care,101082
WARRINGTON BOROUGH COUNCIL,http://opendatacommunities.org/id/unitary-authority/warrington,FWB,DSG Post-16 Special Educational Needs,32309,Materials,400500,12/02/2019,5100384170,17333.33,Nugent Care,101082
WARRINGTON BOROUGH COUNCIL,http://opendatacommunities.org/id/unitary-authority/warrington,FWB,DSG Post-16 Special Educational Needs,32309,Materials,400500,16/01/2019,5100381398,22892.61,Queen Alexandra College,116195
WARRINGTON BOROUGH COUNCIL,http://opendatacommunities.org/id/unitary-authority/warrington,FWB,DSG Post-16 Special Educational Needs,32309,Materials,400500,07/02/2019,5100383804,11713.06,Cavendish High Academy,400226
WARRINGTON BOROUGH COUNCIL,http://opendatacommunities.org/id/unitary-authority/warrington,FWB,DSG Post-16 Special Educational Needs,32309,Materials,400500,08/02/2019,5100383859,5072.53,Birchwood Academy High School,112025
WARRINGTON BOROUGH COUNCIL,http://opendatacommunities.org/id/unitary-authority/warrington,FWB,Special Schools Transport,33208,Statemented - Special Unit Pupil Transpo,300750,04/02/2019,5100383312,1507,Farrington Taxi Service,100067
WARRINGTON BOROUGH COUNCIL,http://opendatacommunities.org/id/unitary-authority/warrington,COR,Debt Management Expenses,62080,Consult.& Prof. Serv,440000,15/02/2019,5100377750,4750,Link Treasury Services Ltd,116513
WARRINGTON BOROUGH COUNCIL,http://opendatacommunities.org/id/unitary-authority/warrington,COR,Debt Management Expenses,62080,Consult.& Prof. Serv,440000,26/01/2019,5100381216,5000,Link Treasury Services Ltd,116513
WARRINGTON BOROUGH COUNCIL,http://opendatacommunities.org/id/unitary-authority/warrington,FWB,DSG Post-16 Special Educational Needs,32309,Materials,400500,08/02/2019,5100383865,8221.66,Carmel College,110374
WARRINGTON BOROUGH COUNCIL,http://opendatacommunities.org/id/unitary-authority/warrington,FWB,DSG Post-16 Special Educational Needs,32309,Materials,400500,07/02/2019,5100383738,6191.33,Bright Futures Care Ltd,114579
WARRINGTON BOROUGH COUNCIL,http://opendatacommunities.org/id/unitary-authority/warrington,FWB,Equipment Store,54930,Equipment Purchase & Contract,400000,10/01/2019,5100380715,760,Healthcare Matters,110751
WARRINGTON BOROUGH COUNCIL,http://opendatacommunities.org/id/unitary-authority/warrington,ENO,Highways Other,82005,Consult.& Prof. Serv,440000,19/02/2019,5100384935,878.49,Atkins Ltd,105752
WARRINGTON BOROUGH COUNCIL,http://opendatacommunities.org/id/unitary-authority/warrington,FWB,DSG Post-16 Special Educational Needs,32309,Materials,400500,07/02/2019,5100383806,3000,The David Lewis Centre,104879
WARRINGTON BOROUGH COUNCIL,http://opendatacommunities.org/id/unitary-authority/warrington,FWB,DSG Post-16 Special Educational Needs,32309,Materials,400500,08/02/2019,5100383892,1000,The David Lewis Centre,104879
WARRINGTON BOROUGH COUNCIL,http://opendatacommunities.org/id/unitary-authority/warrington,FWB,DSG Post-16 Special Educational Needs,32309,Materials,400500,08/02/2019,5100383890,48729,The David Lewis Centre,104879
WARRINGTON BOROUGH COUNCIL,http://opendatacommunities.org/id/unitary-authority/warrington,FWB,Special Guardianship Support Fund,31118,Fees (Including Agents Fees),441450,22/02/2019,5100385140,694,Child In Mind Ltd,114808
WARRINGTON BOROUGH COUNCIL,http://opendatacommunities.org/id/unitary-authority/warrington,ENO,Highways LTP,82004,Signal Equipment,531650,31/01/2019,5100382736,7964,Siemens PLC,101162
WARRINGTON BOROUGH COUNCIL,http://opendatacommunities.org/id/unitary-authority/warrington,EE0,Transport Holding Account,41311,Maintenance Work - Sub Contractors,301150,19/02/2019,5100384850,920,Hgv Fleet Cleaning Services Ltd,102071
WARRINGTON BOROUGH COUNCIL,http://opendatacommunities.org/id/unitary-authority/warrington,FWB,Transport,54950,Transport-Snad Cot,300600,15/02/2019,5100384421,2240,Direct Taxis,101873
WARRINGTON BOROUGH COUNCIL,http://opendatacommunities.org/id/unitary-authority/warrington,FWB,Home to School Transport,33210,Statemented - Special Unit Pupil Transpo,300750,04/02/2019,5100383254,2202,Direct Taxis,101873
WARRINGTON BOROUGH COUNCIL,http://opendatacommunities.org/id/unitary-authority/warrington,COR,Other Commercial Prop.,43560,Security Guards,441000,23/02/2019,5100385224,1175.1,U-Shred Ltd,111997
WARRINGTON BOROUGH COUNCIL,http://opendatacommunities.org/id/unitary-authority/warrington,FWB,DSG Post-16 Special Educational Needs,32309,Materials,400500,25/01/2019,5100381958,54198.33,Warrington & Vale Royal College,440101
WARRINGTON BOROUGH COUNCIL,http://opendatacommunities.org/id/unitary-authority/warrington,EE0,Town Centre Masterplanning,40046,Consult.& Prof. Serv,440000,07/02/2019,5100383372,1740.37,Perfect Circle JV Ltd,116315
WARRINGTON BOROUGH COUNCIL,http://opendatacommunities.org/id/unitary-authority/warrington,EE0,Town Centre Masterplanning,40046,Consult.& Prof. Serv,440000,29/01/2019,5100382344,12545,Perfect Circle JV Ltd,116315
WARRINGTON BOROUGH COUNCIL,http://opendatacommunities.org/id/unitary-authority/warrington,ENO,Priority Infrastructure,82009,Consult.& Prof. Serv,440000,25/02/2019,5100385397,3130.5,TLT Solicitors,115669
WARRINGTON BOROUGH COUNCIL,http://opendatacommunities.org/id/unitary-authority/warrington,ENO,Priority Infrastructure,82009,Consult.& Prof. Serv,440000,08/02/2019,5100383876,855.5,TLT Solicitors,115669
WARRINGTON BOROUGH COUNCIL,http://opendatacommunities.org/id/unitary-authority/warrington,FWB,Telecare / Sensory,54560,Health Awareness,441950,25/02/2019,5100385366,650,Tunstall Healthcare UK Ltd,105427
WARRINGTON BOROUGH COUNCIL,http://opendatacommunities.org/id/unitary-authority/warrington,FWB,Telecare / Sensory,54560,Health Awareness,441950,30/01/2019,5100382627,650,Tunstall Healthcare UK Ltd,105427
WARRINGTON BOROUGH COUNCIL,http://opendatacommunities.org/id/unitary-authority/warrington,FWB,Telecare / Sensory,54560,Health Awareness,441950,30/10/2018,5100373064,1050,Tunstall Healthcare UK Ltd,105427
WARRINGTON BOROUGH COUNCIL,http://opendatacommunities.org/id/unitary-authority/warrington,FWB,Special Schools Transport,33208,Statemented - Special Unit Pupil Transpo,300750,04/02/2019,5100383380,709,Abba Cars,105302
WARRINGTON BOROUGH COUNCIL,http://opendatacommunities.org/id/unitary-authority/warrington,FWB,Children with Disabilities,31005,Transport SLA,300400,05/02/2019,5100383480,1805,Redacted Personal Data,116267
WARRINGTON BOROUGH COUNCIL,http://opendatacommunities.org/id/unitary-authority/warrington,FWB,Children with Disabilities,31005,Transport SLA,300400,04/02/2019,5100383383,1119.1,Abba Cars,105302
WARRINGTON BOROUGH COUNCIL,http://opendatacommunities.org/id/unitary-authority/warrington,RSC,Cheshire and Warrington Programme Office,60143,Computer Software - Maintenance,450850,19/02/2019,5100384874,3000,Cheshire West And Chester,103357
WARRINGTON BOROUGH COUNCIL,http://opendatacommunities.org/id/unitary-authority/warrington,FWB,Equipment Store,54930,Equipment Purchase & Contract,400000,13/01/2019,5100381097,6675,Direct Healthcare Services Ltd,116289
WARRINGTON BOROUGH COUNCIL,http://opendatacommunities.org/id/unitary-authority/warrington,FWB,Equipment Store,54930,Equipment Purchase & Contract,400000,06/12/2018,5100377404,2884,Healthcare Matters,110751
WARRINGTON BOROUGH COUNCIL,http://opendatacommunities.org/id/unitary-authority/warrington,FWB,Equipment Store,54930,Equipment Purchase & Contract,400000,06/12/2018,5100377403,3264,Healthcare Matters,110751
WARRINGTON BOROUGH COUNCIL,http://opendatacommunities.org/id/unitary-authority/warrington,EE0,Site Management,43530,Security Systems,250000,19/02/2019,5100384845,2384,South East Guardians (SEG) Lttd,116189
WARRINGTON BOROUGH COUNCIL,http://opendatacommunities.org/id/unitary-authority/warrington,EE0,Ph4 Waterfront - West Link,40016,Consult.& Prof. Serv,440000,11/02/2019,5100384047,2720,CBRE Limited,113065
WARRINGTON BOROUGH COUNCIL,http://opendatacommunities.org/id/unitary-authority/warrington,ENO,Open Spaces,82006,Materials,400500,11/01/2019,5100380844,6540,David Webster & Sons Ltd,102202
WARRINGTON BOROUGH COUNCIL,http://opendatacommunities.org/id/unitary-authority/warrington,EE0,Transport Holding Account,41311,Tyres,300250,27/01/2019,5100382315,8914.02,Lodge Tyre Company,105203
WARRINGTON BOROUGH COUNCIL,http://opendatacommunities.org/id/unitary-authority/warrington,FWB,Equipment Store,54930,Equipment Purchase & Contract,400000,19/10/2018,5100372121,2449.65,Newlyn Healthcare Ltd,101429
WARRINGTON BOROUGH COUNCIL,http://opendatacommunities.org/id/unitary-authority/warrington,FWB,Equipment Store,54930,Equipment Purchase & Contract,400000,18/10/2018,5100371969,2199,Newlyn Healthcare Ltd,101429
WARRINGTON BOROUGH COUNCIL,http://opendatacommunities.org/id/unitary-authority/warrington,EE0,Waste Recycling,41820,CRC Contract,530450,31/01/2019,5100382741,737.88,Environmental Waste Controls Ltd,102474
WARRINGTON BOROUGH COUNCIL,http://opendatacommunities.org/id/unitary-authority/warrington,EE0,Waste Recycling,41820,CRC Contract,530450,31/01/2019,5100382745,667.95,Environmental Waste Controls Ltd,102474
WARRINGTON BOROUGH COUNCIL,http://opendatacommunities.org/id/unitary-authority/warrington,EE0,Waste Recycling,41820,CRC Contract,530450,31/01/2019,5100382746,656.23,Environmental Waste Controls Ltd,102474
WARRINGTON BOROUGH COUNCIL,http://opendatacommunities.org/id/unitary-authority/warrington,EE0,Waste Recycling,41820,CRC Contract,530450,31/01/2019,5100382748,3334.19,Environmental Waste Controls Ltd,102474
WARRINGTON BOROUGH COUNCIL,http://opendatacommunities.org/id/unitary-authority/warrington,EE0,Waste Recycling,41820,CRC Contract,530450,31/01/2019,5100382752,761.8,Environmental Waste Controls Ltd,102474
WARRINGTON BOROUGH COUNCIL,http://opendatacommunities.org/id/unitary-authority/warrington,EE0,Waste Recycling,41820,CRC Contract,530450,31/01/2019,5100382754,7582.64,Environmental Waste Controls Ltd,102474
WARRINGTON BOROUGH COUNCIL,http://opendatacommunities.org/id/unitary-authority/warrington,EE0,Waste Disposal,41830,Landfill Contract,530500,18/01/2019,5100381606,103361.4,FCC Environment,101348
WARRINGTON BOROUGH COUNCIL,http://opendatacommunities.org/id/unitary-authority/warrington,EE0,Waste Disposal,41830,Landfill Contract,530500,18/01/2019,5100381605,111478.63,FCC Environment,101348
WARRINGTON BOROUGH COUNCIL,http://opendatacommunities.org/id/unitary-authority/warrington,EE0,Time Square MSCP,44321,Car Park Attendants,530250,27/01/2019,5100382317,13498.19,NSL Services Group,113509
WARRINGTON BOROUGH COUNCIL,http://opendatacommunities.org/id/unitary-authority/warrington,EE0,Surface Car Parks,44322,Car Park Attendants,530250,27/01/2019,5100382317,7193.38,NSL Services Group,113509
WARRINGTON BOROUGH COUNCIL,http://opendatacommunities.org/id/unitary-authority/warrington,EE0,On Street Car Parking,44323,Car Park Attendants,530250,27/01/2019,5100382317,33315.37,NSL Services Group,113509
WARRINGTON BOROUGH COUNCIL,http://opendatacommunities.org/id/unitary-authority/warrington,EE0,The Forge Car Park Stockton Heath,44324,Car Park Attendants,530250,27/01/2019,5100382317,2250.29,NSL Services Group,113509
WARRINGTON BOROUGH COUNCIL,http://opendatacommunities.org/id/unitary-authority/warrington,EE0,Walton Estate,41430,Car Park Attendants,530250,27/01/2019,5100382317,939.68,NSL Services Group,113509
WARRINGTON BOROUGH COUNCIL,http://opendatacommunities.org/id/unitary-authority/warrington,EE0,Parr Hall - 29 Palmyra Square South,45124,Maintenance of Plant & Machinery,250050,05/02/2019,5100383459,2350,Bradshaw Gass & Hope,115103
WARRINGTON BOROUGH COUNCIL,http://opendatacommunities.org/id/unitary-authority/warrington,ENO,Open Spaces,82006,Materials,400500,22/02/2019,5100385167,109928.3,Kompan Limited,115543
WARRINGTON BOROUGH COUNCIL,http://opendatacommunities.org/id/unitary-authority/warrington,EE0,Walton Hall Catering,41433,Provisions-Purchase,410000,16/01/2019,5100381418,6405.95,Carringtons Catering Ltd,116708
WARRINGTON BOROUGH COUNCIL,http://opendatacommunities.org/id/unitary-authority/warrington,EE0,Walton Hall Catering,41433,Provisions-Purchase,410000,16/01/2019,5100381417,4813.5,Carringtons Catering Ltd,116708
WARRINGTON BOROUGH COUNCIL,http://opendatacommunities.org/id/unitary-authority/warrington,EE0,Walton Hall Catering,41433,Provisions-Purchase,410000,17/01/2019,5100381533,3538.5,Carringtons Catering Ltd,116708
WARRINGTON BOROUGH COUNCIL,http://opendatacommunities.org/id/unitary-authority/warrington,EE0,Walton Hall Catering,41433,Provisions-Purchase,410000,01/02/2019,5100382870,1400,Carringtons Catering Ltd,116708
WARRINGTON BOROUGH COUNCIL,http://opendatacommunities.org/id/unitary-authority/warrington,EE0,Walton Hall Catering,41433,Provisions-Purchase,410000,01/02/2019,5100382871,910.25,Carringtons Catering Ltd,116708
WARRINGTON BOROUGH COUNCIL,http://opendatacommunities.org/id/unitary-authority/warrington,EE0,Trees & Woodland Services,41421,Equipment Purchase & Contract,400000,04/02/2019,5100383217,638,Elveden (Christmas Trees Direct),100672
WARRINGTON BOROUGH COUNCIL,http://opendatacommunities.org/id/unitary-authority/warrington,EE0,Trees & Woodland Services,41421,Equipment Purchase & Contract,400000,04/02/2019,5100383218,1128,Elveden (Christmas Trees Direct),100672
WARRINGTON BOROUGH COUNCIL,http://opendatacommunities.org/id/unitary-authority/warrington,EE0,Trees & Woodland Services,41421,Equipment Purchase & Contract,400000,04/01/2019,5100379672,1128,Elveden (Christmas Trees Direct),100672
WARRINGTON BOROUGH COUNCIL,http://opendatacommunities.org/id/unitary-authority/warrington,EE0,Trees & Woodland Services,41421,Equipment Purchase & Contract,400000,16/01/2019,5100381362,638,Elveden (Christmas Trees Direct),100672
WARRINGTON BOROUGH COUNCIL,http://opendatacommunities.org/id/unitary-authority/warrington,EE0,Trees & Woodland Services,41421,Equipment Purchase & Contract,400000,04/01/2019,5100379672,2860,Elveden (Christmas Trees Direct),100672
WARRINGTON BOROUGH COUNCIL,http://opendatacommunities.org/id/unitary-authority/warrington,FWB,Children with Disabilities,31005,Transport SLA,300400,07/02/2019,5100383653,4420,Warrington Cars,113774
WARRINGTON BOROUGH COUNCIL,http://opendatacommunities.org/id/unitary-authority/warrington,FWB,Children with Disabilities,31005,Transport SLA,300400,07/02/2019,5100383689,4420,Warrington Cars,113774
WARRINGTON BOROUGH COUNCIL,http://opendatacommunities.org/id/unitary-authority/warrington,FWB,DSG Independent School Fees,32011,Fees (Including Agents Fees),441450,04/02/2019,5100383320,5505,Withington Girls School,400331
WARRINGTON BOROUGH COUNCIL,http://opendatacommunities.org/id/unitary-authority/warrington,EE0,Transport Holding Account,41311,Vehicle Hire Charges,320000,04/02/2019,5100379675,1404,F G Rowland Ltd,102555
WARRINGTON BOROUGH COUNCIL,http://opendatacommunities.org/id/unitary-authority/warrington,FWB,DSG Post-16 Special Educational Needs,32309,Materials,400500,12/02/2019,5100384088,7136.48,Oliver House Priory,107946
WARRINGTON BOROUGH COUNCIL,http://opendatacommunities.org/id/unitary-authority/warrington,FWB,DSG Post-16 Special Educational Needs,32309,Materials,400500,23/02/2019,5100385237,11819.76,Oliver House Priory,107946
WARRINGTON BOROUGH COUNCIL,http://opendatacommunities.org/id/unitary-authority/warrington,FWB,DSG Post-16 Special Educational Needs,32309,Materials,400500,19/02/2019,5100384739,7136.48,Oliver House Priory,107946
WARRINGTON BOROUGH COUNCIL,http://opendatacommunities.org/id/unitary-authority/warrington,FWB,DSG Post-16 Special Educational Needs,32309,Materials,400500,19/02/2019,5100384737,11819.76,Oliver House Priory,107946
WARRINGTON BOROUGH COUNCIL,http://opendatacommunities.org/id/unitary-authority/warrington,EE0,On Street Car Parking,44323,Events on the Highway,531350,15/02/2019,5100382283,1168.2,Patrol,103313
WARRINGTON BOROUGH COUNCIL,http://opendatacommunities.org/id/unitary-authority/warrington,ENO,Environment & Regeneration Other,82002,Consult.& Prof. Serv,440000,29/01/2019,5100382533,755,TAD Architects,103307
WARRINGTON BOROUGH COUNCIL,http://opendatacommunities.org/id/unitary-authority/warrington,EE0,Transport Holding Account,41311,Maintenance Work - Sub Contractors,301150,26/01/2019,5100382145,2353.2,Ciceley Commercials Limited,116518
WARRINGTON BOROUGH COUNCIL,http://opendatacommunities.org/id/unitary-authority/warrington,EE0,Woolston Depot,41331,Public Survey Costs,440500,16/10/2018,5100371789,1525,Labc,100506
WARRINGTON BOROUGH COUNCIL,http://opendatacommunities.org/id/unitary-authority/warrington,RSC,Transformation Team,52210,Consult.& Prof. Serv,440000,21/12/2018,5100378936,3400,Evisa Solutions Ltd,116379
WARRINGTON BOROUGH COUNCIL,http://opendatacommunities.org/id/unitary-authority/warrington,ENO,Priority Infrastructure,82009,Consult.& Prof. Serv,440000,07/02/2019,5100383809,1029.5,TLT Solicitors,115669
WARRINGTON BOROUGH COUNCIL,http://opendatacommunities.org/id/unitary-authority/warrington,FWB,Special Schools Transport,33208,Statemented - Special Unit Pupil Transpo,300750,04/02/2019,5100383413,2100,Rainbow Travel,101270
WARRINGTON BOROUGH COUNCIL,http://opendatacommunities.org/id/unitary-authority/warrington,EE0,Facilities Management,41422,Equipment Purchase & Contract,400000,13/01/2019,5100381056,3820,David Webster & Sons Ltd,102202
WARRINGTON BOROUGH COUNCIL,http://opendatacommunities.org/id/unitary-authority/warrington,EE0,Development Control,43430,Consult.& Prof. Serv,440000,23/02/2019,5100374090,1645.5,Park Avenue Recruitment Limited,116840
WARRINGTON BOROUGH COUNCIL,http://opendatacommunities.org/id/unitary-authority/warrington,EE0,Development Control,43430,Consult.& Prof. Serv,440000,20/02/2019,5100380740,1912.5,Park Avenue Recruitment Limited,116840
WARRINGTON BOROUGH COUNCIL,http://opendatacommunities.org/id/unitary-authority/warrington,EE0,Development Control,43430,Consult.& Prof. Serv,440000,10/01/2019,5100380739,1776,Park Avenue Recruitment Limited,116840
WARRINGTON BOROUGH COUNCIL,http://opendatacommunities.org/id/unitary-authority/warrington,EE0,Development Control,43430,Consult.& Prof. Serv,440000,15/02/2019,5100376597,1400,Park Avenue Recruitment Limited,116840
WARRINGTON BOROUGH COUNCIL,http://opendatacommunities.org/id/unitary-authority/warrington,EE0,Development Control,43430,Consult.& Prof. Serv,440000,20/02/2019,5100381835,1644.75,Park Avenue Recruitment Limited,116840
WARRINGTON BOROUGH COUNCIL,http://opendatacommunities.org/id/unitary-authority/warrington,EE0,Development Control,43430,Consult.& Prof. Serv,440000,20/02/2019,5100381836,2133.33,Park Avenue Recruitment Limited,116840
WARRINGTON BOROUGH COUNCIL,http://opendatacommunities.org/id/unitary-authority/warrington,EE0,Development Control,43430,Consult.& Prof. Serv,440000,20/02/2019,5100381178,1183.33,Park Avenue Recruitment Limited,116840
WARRINGTON BOROUGH COUNCIL,http://opendatacommunities.org/id/unitary-authority/warrington,EE0,Development Control,43430,Consult.& Prof. Serv,440000,20/02/2019,5100382304,1908.33,Park Avenue Recruitment Limited,116840
WARRINGTON BOROUGH COUNCIL,http://opendatacommunities.org/id/unitary-authority/warrington,EE0,Development Control,43430,Consult.& Prof. Serv,440000,20/02/2019,5100382305,1636.7,Park Avenue Recruitment Limited,116840
WARRINGTON BOROUGH COUNCIL,http://opendatacommunities.org/id/unitary-authority/warrington,EE0,Development Control,43430,Consult.& Prof. Serv,440000,07/02/2019,5100383727,1850,Park Avenue Recruitment Limited,116840
WARRINGTON BOROUGH COUNCIL,http://opendatacommunities.org/id/unitary-authority/warrington,EE0,Development Control,43430,Consult.& Prof. Serv,440000,04/02/2019,5100383306,1421.05,Park Avenue Recruitment Limited,116840
WARRINGTON BOROUGH COUNCIL,http://opendatacommunities.org/id/unitary-authority/warrington,EE0,Development Control,43430,Consult.& Prof. Serv,440000,04/02/2019,5100383307,1691.67,Park Avenue Recruitment Limited,116840
WARRINGTON BOROUGH COUNCIL,http://opendatacommunities.org/id/unitary-authority/warrington,FWB,Telecare / Sensory,54560,Health Awareness,441950,18/10/2018,5100371967,3000,Tunstall Healthcare UK Ltd,105427
WARRINGTON BOROUGH COUNCIL,http://opendatacommunities.org/id/unitary-authority/warrington,FWB,Telecare / Sensory,54560,Health Awareness,441950,18/10/2018,5100371967,800,Tunstall Healthcare UK Ltd,105427
WARRINGTON BOROUGH COUNCIL,http://opendatacommunities.org/id/unitary-authority/warrington,FWB,Telecare / Sensory,54560,Health Awareness,441950,18/10/2018,5100371967,1300,Tunstall Healthcare UK Ltd,105427
WARRINGTON BOROUGH COUNCIL,http://opendatacommunities.org/id/unitary-authority/warrington,FWB,Telecare / Sensory,54560,Health Awareness,441950,19/11/2018,5100372415,700,Tunstall Healthcare UK Ltd,105427
WARRINGTON BOROUGH COUNCIL,http://opendatacommunities.org/id/unitary-authority/warrington,EE1,Engineering,44210,Equipment Purchase & Contract,400000,08/02/2019,5100380287,551.62,Tarmac,100489
WARRINGTON BOROUGH COUNCIL,http://opendatacommunities.org/id/unitary-authority/warrington,EE1,Dropped Crossings,44211,Equipment Purchase & Contract,400000,08/02/2019,5100380287,3766.86,Tarmac,100489
WARRINGTON BOROUGH COUNCIL,http://opendatacommunities.org/id/unitary-authority/warrington,EE1,Or Rm C'way & F'way,44260,M.C.R.Flexible Cat1,530850,08/02/2019,5100380287,17924.93,Tarmac,100489
WARRINGTON BOROUGH COUNCIL,http://opendatacommunities.org/id/unitary-authority/warrington,EE1,Or Rm C'way & F'way,44260,Fct Cat1,530950,08/02/2019,5100380287,4858.5,Tarmac,100489
WARRINGTON BOROUGH COUNCIL,http://opendatacommunities.org/id/unitary-authority/warrington,EE1,Or Rm C'way & F'way,44260,Safety Fences Cat1,531100,08/02/2019,5100380287,812.52,Tarmac,100489
WARRINGTON BOROUGH COUNCIL,http://opendatacommunities.org/id/unitary-authority/warrington,ENO,Highways Other,82005,Patching Cat2,532300,08/02/2019,5100380287,1319.59,Tarmac,100489
WARRINGTON BOROUGH COUNCIL,http://opendatacommunities.org/id/unitary-authority/warrington,RSC,Transformation Team,52210,Consult.& Prof. Serv,440000,21/12/2018,5100378935,7929.15,Evisa Solutions Ltd,116379
WARRINGTON BOROUGH COUNCIL,http://opendatacommunities.org/id/unitary-authority/warrington,FWB,Fostering Collaboration,31115,Other Advertising & Publicity,450050,31/01/2019,5100382826,4500,Newsquest Media Group,100070
WARRINGTON BOROUGH COUNCIL,http://opendatacommunities.org/id/unitary-authority/warrington,COR,Debt Management Expenses,62080,Consult.& Prof. Serv,440000,12/02/2019,5100384232,10000,KPMG LLP,115650
WARRINGTON BOROUGH COUNCIL,http://opendatacommunities.org/id/unitary-authority/warrington,FWB,EIG Funding - Workforce Devt,31603,Materials,400500,19/02/2019,5100384682,1138.33,Elizabeth Jarman Training Ltd,107260
WARRINGTON BOROUGH COUNCIL,http://opendatacommunities.org/id/unitary-authority/warrington,RSC,IT - Contracts,23600,Computer Software - Maintenance,450850,10/01/2019,5100380699,750,Nta Monitor Limited,100967
WARRINGTON BOROUGH COUNCIL,http://opendatacommunities.org/id/unitary-authority/warrington,RSC,IT - Contracts,23600,Computer Software - Maintenance,450850,05/02/2019,5100383519,750,Nta Monitor Limited,100967
WARRINGTON BOROUGH COUNCIL,http://opendatacommunities.org/id/unitary-authority/warrington,RSC,ICT Projects,23300,Computer Hardware - Purchase,450700,07/02/2019,5100383812,2403.41,The Networking People Ltd,110271
WARRINGTON BOROUGH COUNCIL,http://opendatacommunities.org/id/unitary-authority/warrington,RSC,One - Off ICT Costs,23200,Computer Software - Maintenance,450850,08/01/2019,5100380380,8000,Civica Uk Ltd,100585
WARRINGTON BOROUGH COUNCIL,http://opendatacommunities.org/id/unitary-authority/warrington,RSC,IT - Contracts,23600,Computer Software - Maintenance,450850,08/01/2019,5100380368,18696,Edenhouse Solutions Ltd,114416
WARRINGTON BOROUGH COUNCIL,http://opendatacommunities.org/id/unitary-authority/warrington,RSC,IT - Contracts,23600,Computer Software - Maintenance,450850,29/01/2019,5100382513,1419,Promodag,107351
WARRINGTON BOROUGH COUNCIL,http://opendatacommunities.org/id/unitary-authority/warrington,EE0,Building Maintenance,43220,Consult.& Prof. Serv,440000,05/02/2019,5100379809,876.36,Redacted Personal Data,102651
WARRINGTON BOROUGH COUNCIL,http://opendatacommunities.org/id/unitary-authority/warrington,EE0,Waste Recycling,41820,Waste Initiatives,443200,26/01/2019,5100382168,1150,A&C WEBER UK LTD,111701
WARRINGTON BOROUGH COUNCIL,http://opendatacommunities.org/id/unitary-authority/warrington,EE0,Waste Recycling,41820,Waste Initiatives,443200,26/01/2019,5100382168,3900,A&C WEBER UK LTD,111701
WARRINGTON BOROUGH COUNCIL,http://opendatacommunities.org/id/unitary-authority/warrington,EE0,Waste Recycling,41820,Waste Initiatives,443200,13/01/2019,5100381088,1737,Halton Container Services Limited,101003
WARRINGTON BOROUGH COUNCIL,http://opendatacommunities.org/id/unitary-authority/warrington,EE0,Waste Recycling,41820,Waste Initiatives,443200,13/01/2019,5100381088,644,Halton Container Services Limited,101003
WARRINGTON BOROUGH COUNCIL,http://opendatacommunities.org/id/unitary-authority/warrington,CYP,Childrens & Young People,81000,Specific Work,200200,15/02/2019,5100374780,2050,Senate (Mech) Ltd,114993
WARRINGTON BOROUGH COUNCIL,http://opendatacommunities.org/id/unitary-authority/warrington,EE0,Waste Disposal,41830,Diverted Waste,530550,07/02/2019,5100383780,5860,White Moss Horticulture Ltd,104283
WARRINGTON BOROUGH COUNCIL,http://opendatacommunities.org/id/unitary-authority/warrington,EE0,Waste Disposal,41830,Landfill Contract,530500,12/02/2019,5100384113,5860,Wsr Recycling Ltd,101196
WARRINGTON BOROUGH COUNCIL,http://opendatacommunities.org/id/unitary-authority/warrington,EE0,Waste Recycling,41820,MRF Recycling,530750,04/02/2019,5100383406,23000.85,UPM Kymmene (UK) Ltd,115351
WARRINGTON BOROUGH COUNCIL,http://opendatacommunities.org/id/unitary-authority/warrington,EE0,Waste Disposal,41830,Landfill Contract,530500,18/01/2019,5100381604,140706.62,FCC Environment,101348
WARRINGTON BOROUGH COUNCIL,http://opendatacommunities.org/id/unitary-authority/warrington,EE0,School Brow Depot,41330,Annual Maintenance,442100,20/11/2018,5100375576,1995,Axle Weight Technology Ltd,110035
WARRINGTON BOROUGH COUNCIL,http://opendatacommunities.org/id/unitary-authority/warrington,EE0,Waste Disposal,41830,Landfill Contract,530500,29/01/2019,5100382421,112024.86,FCC Environment,101348
WARRINGTON BOROUGH COUNCIL,http://opendatacommunities.org/id/unitary-authority/warrington,EE0,Waste Disposal,41830,Landfill Contract,530500,29/01/2019,5100382423,106194.25,FCC Environment,101348
WARRINGTON BOROUGH COUNCIL,http://opendatacommunities.org/id/unitary-authority/warrington,EE0,Waste Recycling,41820,CRC Contract,530450,30/01/2019,5100382631,15260.71,Environmental Waste Controls Ltd,102474
WARRINGTON BOROUGH COUNCIL,http://opendatacommunities.org/id/unitary-authority/warrington,EE0,Waste Recycling,41820,CRC Contract,530450,31/01/2019,5100382739,1665,Environmental Waste Controls Ltd,102474
WARRINGTON BOROUGH COUNCIL,http://opendatacommunities.org/id/unitary-authority/warrington,EE0,Waste Recycling,41820,CRC Contract,530450,23/01/2019,5100381950,15260.71,Environmental Waste Controls Ltd,102474
WARRINGTON BOROUGH COUNCIL,http://opendatacommunities.org/id/unitary-authority/warrington,EE0,Waste Recycling,41820,CRC Contract,530450,15/01/2019,5100381325,15260.71,Environmental Waste Controls Ltd,102474
WARRINGTON BOROUGH COUNCIL,http://opendatacommunities.org/id/unitary-authority/warrington,EE0,Waste Recycling,41820,CRC Contract,530450,09/01/2019,5100380623,13080.61,Environmental Waste Controls Ltd,102474
WARRINGTON BOROUGH COUNCIL,http://opendatacommunities.org/id/unitary-authority/warrington,EE0,Waste Recycling,41820,CRC Contract,530450,08/02/2019,5100383864,8720.41,Environmental Waste Controls Ltd,102474
WARRINGTON BOROUGH COUNCIL,http://opendatacommunities.org/id/unitary-authority/warrington,EE0,Waste Recycling,41820,CRC Contract,530450,22/02/2019,5100385141,4849.64,Environmental Waste Controls Ltd,102474
WARRINGTON BOROUGH COUNCIL,http://opendatacommunities.org/id/unitary-authority/warrington,EE0,Waste Recycling,41820,CRC Contract,530450,22/02/2019,5100385142,3478.72,Environmental Waste Controls Ltd,102474
WARRINGTON BOROUGH COUNCIL,http://opendatacommunities.org/id/unitary-authority/warrington,EE0,Waste Recycling,41820,CRC Contract,530450,22/02/2019,5100385143,8162.24,Environmental Waste Controls Ltd,102474
WARRINGTON BOROUGH COUNCIL,http://opendatacommunities.org/id/unitary-authority/warrington,EE0,Waste Recycling,41820,CRC Contract,530450,22/02/2019,5100385133,929.88,Environmental Waste Controls Ltd,102474
WARRINGTON BOROUGH COUNCIL,http://opendatacommunities.org/id/unitary-authority/warrington,EE0,Waste Recycling,41820,CRC Contract,530450,22/02/2019,5100385135,887.64,Environmental Waste Controls Ltd,102474
WARRINGTON BOROUGH COUNCIL,http://opendatacommunities.org/id/unitary-authority/warrington,EE0,Waste Recycling,41820,CRC Contract,530450,22/02/2019,5100385136,837.12,Environmental Waste Controls Ltd,102474
WARRINGTON BOROUGH COUNCIL,http://opendatacommunities.org/id/unitary-authority/warrington,EE0,Waste Recycling,41820,CRC Contract,530450,22/02/2019,5100385137,2375.88,Environmental Waste Controls Ltd,102474
WARRINGTON BOROUGH COUNCIL,http://opendatacommunities.org/id/unitary-authority/warrington,EE0,Waste Recycling,41820,CRC Contract,530450,22/02/2019,5100385138,2035,Environmental Waste Controls Ltd,102474
WARRINGTON BOROUGH COUNCIL,http://opendatacommunities.org/id/unitary-authority/warrington,ENO,Highways LTP,82004,Materials,400500,05/02/2019,5100380619,10764,Glasdon Uk Ltd,105365
WARRINGTON BOROUGH COUNCIL,http://opendatacommunities.org/id/unitary-authority/warrington,RSC,IT - Contracts,23600,Computer Software - Maintenance,450850,08/01/2019,5100380463,1363.18,Nviron Ltd,112698
WARRINGTON BOROUGH COUNCIL,http://opendatacommunities.org/id/unitary-authority/warrington,RSC,IT - Contracts,23600,Computer Software - Maintenance,450850,08/01/2019,5100380463,2559.08,Nviron Ltd,112698
WARRINGTON BOROUGH COUNCIL,http://opendatacommunities.org/id/unitary-authority/warrington,RSC,ICT Projects,23300,Computer Hardware - Purchase,450700,29/01/2019,5100382545,2518,The Networking People Ltd,110271
WARRINGTON BOROUGH COUNCIL,http://opendatacommunities.org/id/unitary-authority/warrington,RSC,ICT Projects,23300,Computer Hardware - Purchase,450700,29/01/2019,5100382545,796.5,The Networking People Ltd,110271
WARRINGTON BOROUGH COUNCIL,http://opendatacommunities.org/id/unitary-authority/warrington,FWB,Special Schools Transport,33208,Statemented - Special Unit Pupil Transpo,300750,06/02/2019,5100383571,1740,Direct Taxis,101873
WARRINGTON BOROUGH COUNCIL,http://opendatacommunities.org/id/unitary-authority/warrington,EE0,Transport Holding Account,41311,Maintenance Work - Sub Contractors,301150,22/02/2019,5100382309,1543.3,Turner Groundscare,105201
WARRINGTON BOROUGH COUNCIL,http://opendatacommunities.org/id/unitary-authority/warrington,RSC,Transformation Team,52210,Consult.& Prof. Serv,440000,31/01/2019,5100382757,7160,Firmstep Limited,116490
WARRINGTON BOROUGH COUNCIL,http://opendatacommunities.org/id/unitary-authority/warrington,ENO,Highways S106,82003,Environmental Works,531050,12/02/2019,5100384221,1592.5,Network Surfacing Ltd,113235
WARRINGTON BOROUGH COUNCIL,http://opendatacommunities.org/id/unitary-authority/warrington,ENO,Highways S106,82003,Environmental Works,531050,12/02/2019,5100384207,2995,Network Surfacing Ltd,113235
WARRINGTON BOROUGH COUNCIL,http://opendatacommunities.org/id/unitary-authority/warrington,ENO,Highways S106,82003,Environmental Works,531050,12/02/2019,5100384206,2525,Network Surfacing Ltd,113235
WARRINGTON BOROUGH COUNCIL,http://opendatacommunities.org/id/unitary-authority/warrington,ENO,Highways S106,82003,Environmental Works,531050,12/02/2019,5100384205,3523,Network Surfacing Ltd,113235
WARRINGTON BOROUGH COUNCIL,http://opendatacommunities.org/id/unitary-authority/warrington,ENO,Highways S106,82003,Environmental Works,531050,12/02/2019,5100384208,2606.5,Network Surfacing Ltd,113235
WARRINGTON BOROUGH COUNCIL,http://opendatacommunities.org/id/unitary-authority/warrington,FWB,Fostering Collaboration,31115,Other Advertising & Publicity,450050,19/02/2019,5100384735,2500,Newsquest Media Group,100070
WARRINGTON BOROUGH COUNCIL,http://opendatacommunities.org/id/unitary-authority/warrington,FWB,Building Safer Communities,16000,Consult.& Prof. Serv,440000,19/02/2019,5100384728,7500,Manus Consulting,116896
WARRINGTON BOROUGH COUNCIL,http://opendatacommunities.org/id/unitary-authority/warrington,FWB,Transport,54950,Transport-Snad Cot,300600,04/02/2019,5100383336,1153,Redacted Personal Data,116267
WARRINGTON BOROUGH COUNCIL,http://opendatacommunities.org/id/unitary-authority/warrington,EE0,Transport Holding Account,41311,Maintenance Work - Sub Contractors,301150,19/02/2019,5100384887,3754.31,Ciceley Commercials Limited,116518
WARRINGTON BOROUGH COUNCIL,http://opendatacommunities.org/id/unitary-authority/warrington,FWB,Contracts - SM Commissioning Team 1,55910,Public Health Contract Payments,540000,01/02/2019,5100382782,684.72,Penketh Health Centre,114597
WARRINGTON BOROUGH COUNCIL,http://opendatacommunities.org/id/unitary-authority/warrington,FWB,Contracts - SM Commissioning Team 1,55910,Public Health Contract Payments,540000,01/02/2019,5100382782,1020,Penketh Health Centre,114597
WARRINGTON BOROUGH COUNCIL,http://opendatacommunities.org/id/unitary-authority/warrington,FWB,Contracts - SM Commissioning Team 1,55910,Public Health Contract Payments,540000,01/02/2019,5100382851,1284,Birchwood Medical Centre,100402
WARRINGTON BOROUGH COUNCIL,http://opendatacommunities.org/id/unitary-authority/warrington,FWB,Contracts - SM Commissioning Team 1,55910,Public Health Contract Payments,540000,01/02/2019,5100382851,4180,Birchwood Medical Centre,100402
WARRINGTON BOROUGH COUNCIL,http://opendatacommunities.org/id/unitary-authority/warrington,FWB,Contracts - SM Commissioning Team 1,55910,Public Health Contract Payments,540000,01/02/2019,5100382851,855.9,Birchwood Medical Centre,100402
WARRINGTON BOROUGH COUNCIL,http://opendatacommunities.org/id/unitary-authority/warrington,FWB,Padgate House,54760,Equipment Purchase & Contract,400000,19/02/2019,5100384922,4168,Shorrock Trichem,104724
WARRINGTON BOROUGH COUNCIL,http://opendatacommunities.org/id/unitary-authority/warrington,FWB,Telecare / Sensory,54560,Health Awareness,441950,30/11/2018,5100376540,1050,Tunstall Healthcare UK Ltd,105427
WARRINGTON BOROUGH COUNCIL,http://opendatacommunities.org/id/unitary-authority/warrington,FWB,Telecare / Sensory,54560,Health Awareness,441950,30/11/2018,5100376540,1635,Tunstall Healthcare UK Ltd,105427
WARRINGTON BOROUGH COUNCIL,http://opendatacommunities.org/id/unitary-authority/warrington,FWB,Telecare / Sensory,54560,Health Awareness,441950,30/11/2018,5100376540,525,Tunstall Healthcare UK Ltd,105427
WARRINGTON BOROUGH COUNCIL,http://opendatacommunities.org/id/unitary-authority/warrington,FWB,DSG - Medical Needs,32002,Eotas Pupil Funding,490350,26/01/2019,5100382176,857.5,Integra People,116891
WARRINGTON BOROUGH COUNCIL,http://opendatacommunities.org/id/unitary-authority/warrington,FWB,DSG - Medical Needs,32002,Eotas Pupil Funding,490350,11/01/2019,5100380832,525,Integra People,116891
WARRINGTON BOROUGH COUNCIL,http://opendatacommunities.org/id/unitary-authority/warrington,FWB,DSG - Medical Needs,32002,Eotas Pupil Funding,490350,04/02/2019,5100383332,857.5,Integra People,116891
WARRINGTON BOROUGH COUNCIL,http://opendatacommunities.org/id/unitary-authority/warrington,EE0,Time Square MSCP,44321,Equipment Purchase & Contract,400000,10/01/2019,5100380732,910.54,Chubb Fire and Security Ltd,105335
WARRINGTON BOROUGH COUNCIL,http://opendatacommunities.org/id/unitary-authority/warrington,EE0,Transport Holding Account,41311,Veh Maint. Materials,300000,14/02/2019,5100383475,1805.68,F R Sharrock Ltd,105122
WARRINGTON BOROUGH COUNCIL,http://opendatacommunities.org/id/unitary-authority/warrington,NEO,IT Projects,83003,Computer Hardware - Purchase,450700,20/02/2019,5100385042,2142.05,The Networking People Ltd,110271
WARRINGTON BOROUGH COUNCIL,http://opendatacommunities.org/id/unitary-authority/warrington,EE0,Transport Holding Account,41311,Veh Maint. Materials,300000,31/01/2019,5100382777,2479.58,Turner Groundscare,105201
WARRINGTON BOROUGH COUNCIL,http://opendatacommunities.org/id/unitary-authority/warrington,EE0,Transport Holding Account,41311,Tyres,300250,29/01/2019,5100382458,4787.5,Lodge Tyre Company,105203
WARRINGTON BOROUGH COUNCIL,http://opendatacommunities.org/id/unitary-authority/warrington,FWB,Contracts - SM Commissioning Team 1,55910,Public Health Contribution Payments,540010,19/02/2019,5100384719,600,Redacted Personal Data,111806
WARRINGTON BOROUGH COUNCIL,http://opendatacommunities.org/id/unitary-authority/warrington,ENO,Highways LTP,82004,Signal Equipment,531650,30/01/2019,5100382661,950,Siemens PLC,101162
WARRINGTON BOROUGH COUNCIL,http://opendatacommunities.org/id/unitary-authority/warrington,PIO,People & Improvement Other,85002,Lifts from Stock,400850,27/01/2019,5100382268,647.5,AMW Lift & Mobility Services Ltd,112766
WARRINGTON BOROUGH COUNCIL,http://opendatacommunities.org/id/unitary-authority/warrington,EE0,Transport Holding Account,41311,Vehicle Hire Charges,320000,21/01/2019,5100381806,1519.23,Burnt Tree Group Limited,100597
WARRINGTON BOROUGH COUNCIL,http://opendatacommunities.org/id/unitary-authority/warrington,FWB,Equipment Store,54930,Equipment Purchase & Contract,400000,05/02/2019,5100383506,857.5,Scan Mobility,105107
WARRINGTON BOROUGH COUNCIL,http://opendatacommunities.org/id/unitary-authority/warrington,RSC,Printing & Graphics,23040,External Printing,430100,10/01/2019,5100380747,582,Browns CTP Limited,116875
WARRINGTON BOROUGH COUNCIL,http://opendatacommunities.org/id/unitary-authority/warrington,FWB,Trading Standards North West,41564,Fees (Including Agents Fees),441450,08/02/2019,5100383870,10305,Lancashire County Council,410062
WARRINGTON BOROUGH COUNCIL,http://opendatacommunities.org/id/unitary-authority/warrington,FWB,Equipment Store,54930,Equipment Purchase & Contract,400000,04/01/2019,5100379677,599,Drive DeVilbiss Healthcare Ltd,101899
WARRINGTON BOROUGH COUNCIL,http://opendatacommunities.org/id/unitary-authority/warrington,ENP,Environment & Regeneration,82000,Computer Hardware - Purchase,450700,06/12/2018,5100377474,4414.68,European Electronique Limited,116905
WARRINGTON BOROUGH COUNCIL,http://opendatacommunities.org/id/unitary-authority/warrington,ENP,Environment & Regeneration,82000,Computer Hardware - Purchase,450700,19/02/2019,5100384662,2864.6,European Electronique Limited,116905
WARRINGTON BOROUGH COUNCIL,http://opendatacommunities.org/id/unitary-authority/warrington,ENP,Environment & Regeneration,82000,Computer Hardware - Purchase,450700,29/01/2019,5100382508,2700,European Electronique Limited,116905
WARRINGTON BOROUGH COUNCIL,http://opendatacommunities.org/id/unitary-authority/warrington,PIO,People & Improvement Other,85002,Equipment Purchase & Contract,400000,18/01/2019,5100381672,32953.2,Ridgeway Furniture Manufacturing Lt,116883
WARRINGTON BOROUGH COUNCIL,http://opendatacommunities.org/id/unitary-authority/warrington,PIO,People & Improvement Other,85002,Equipment Purchase & Contract,400000,18/01/2019,5100381673,16476.6,Ridgeway Furniture Manufacturing Lt,116883
WARRINGTON BOROUGH COUNCIL,http://opendatacommunities.org/id/unitary-authority/warrington,PIO,People & Improvement Other,85002,Equipment Purchase & Contract,400000,26/01/2019,5100381674,32953.2,Ridgeway Furniture Manufacturing Lt,116883
WARRINGTON BOROUGH COUNCIL,http://opendatacommunities.org/id/unitary-authority/warrington,NEP,Neighbourhood & Community Services,83000,Consult.& Prof. Serv,440000,07/02/2019,5100383755,3025,Walker Simpson Architects,115058
WARRINGTON BOROUGH COUNCIL,http://opendatacommunities.org/id/unitary-authority/warrington,NEP,Neighbourhood & Community Services,83000,Consult.& Prof. Serv,440000,13/01/2019,5100381049,6500,Walker Simpson Architects,115058
WARRINGTON BOROUGH COUNCIL,http://opendatacommunities.org/id/unitary-authority/warrington,EE0,Transport Holding Account,41311,Maintenance Work - Sub Contractors,301150,08/02/2019,5100378472,1354.43,Central Diesels,104582
WARRINGTON BOROUGH COUNCIL,http://opendatacommunities.org/id/unitary-authority/warrington,FWB,Virtual School,31112,Looked after children in Warrington,301000,19/02/2019,5100384795,1839.06,Oakdale School,400256
WARRINGTON BOROUGH COUNCIL,http://opendatacommunities.org/id/unitary-authority/warrington,FWB,DSG - Medical Needs,32002,Rent Of Premises,220000,11/01/2019,5100380921,606.07,Livewire,110692
WARRINGTON BOROUGH COUNCIL,http://opendatacommunities.org/id/unitary-authority/warrington,RSC,IT - Contracts,23600,Computer Software - Maintenance,450850,25/02/2019,5100377531,2662.53,Gandlake Limited,104740
WARRINGTON BOROUGH COUNCIL,http://opendatacommunities.org/id/unitary-authority/warrington,RSC,One - Off ICT Costs,23200,Consult.& Prof. Serv,440000,12/02/2019,5100384098,1800,European Electronique Limited,116905
WARRINGTON BOROUGH COUNCIL,http://opendatacommunities.org/id/unitary-authority/warrington,RSC,One - Off ICT Costs,23200,Consult.& Prof. Serv,440000,12/02/2019,5100384098,850,European Electronique Limited,116905
WARRINGTON BOROUGH COUNCIL,http://opendatacommunities.org/id/unitary-authority/warrington,FWB,Equipment Store,54930,Equipment Purchase & Contract,400000,13/01/2019,5100381084,1597.91,Prism Medical UK,108616
WARRINGTON BOROUGH COUNCIL,http://opendatacommunities.org/id/unitary-authority/warrington,FWB,Equipment Store,54930,Equipment Purchase & Contract,400000,04/01/2019,5100379670,730,Silvalea Textiles,105304
WARRINGTON BOROUGH COUNCIL,http://opendatacommunities.org/id/unitary-authority/warrington,EE0,Bus Interchange,44460,Security Systems,250000,20/02/2019,5100384983,5837.52,Step up Security Ltd,116851
WARRINGTON BOROUGH COUNCIL,http://opendatacommunities.org/id/unitary-authority/warrington,COR,General Contingencies,61000,Payment of Grants,470050,11/01/2019,5100380915,23542.29,Culture Warrington,100957
WARRINGTON BOROUGH COUNCIL,http://opendatacommunities.org/id/unitary-authority/warrington,EE1,Special Projects,44520,Training,190150,22/01/2019,5100381895,3000,Derby College,116344
WARRINGTON BOROUGH COUNCIL,http://opendatacommunities.org/id/unitary-authority/warrington,ENO,Highways Other,82005,Consult.& Prof. Serv,440000,25/01/2019,5100382050,2768.95,TMP UK Ltd,108498
WARRINGTON BOROUGH COUNCIL,http://opendatacommunities.org/id/unitary-authority/warrington,EE0,Waste Recycling,41820,Consult.& Prof. Serv,440000,01/02/2019,5100382841,5524,Eunomia Research and Consulting,115632
WARRINGTON BOROUGH COUNCIL,http://opendatacommunities.org/id/unitary-authority/warrington,EE0,Waste Disposal,41830,Diverted Waste,530550,22/02/2019,5100383775,1623.62,White Moss Horticulture Ltd,104283
WARRINGTON BOROUGH COUNCIL,http://opendatacommunities.org/id/unitary-authority/warrington,EE0,Waste Disposal,41830,Diverted Waste,530550,19/02/2019,5100384929,1330,White Moss Horticulture Ltd,104283
WARRINGTON BOROUGH COUNCIL,http://opendatacommunities.org/id/unitary-authority/warrington,EE0,Waste Recycling,41820,CRC Contract,530450,08/02/2019,5100383898,3682.19,Environmental Waste Controls Ltd,102474
WARRINGTON BOROUGH COUNCIL,http://opendatacommunities.org/id/unitary-authority/warrington,EE0,Project Delivery & Communications,43830,Consult.& Prof. Serv,440000,16/01/2019,5100381441,2500,SD21,116940
WARRINGTON BOROUGH COUNCIL,http://opendatacommunities.org/id/unitary-authority/warrington,EE0,Schools (Street Scene),41733,Materials,400500,12/02/2019,5100384210,2576,M C & M A Stewart Haulage Ltd,105159
WARRINGTON BOROUGH COUNCIL,http://opendatacommunities.org/id/unitary-authority/warrington,EE0,Schools (Street Scene),41733,Materials,400500,12/02/2019,5100384211,3280,M C & M A Stewart Haulage Ltd,105159
WARRINGTON BOROUGH COUNCIL,http://opendatacommunities.org/id/unitary-authority/warrington,FWB,Virtual School,31112,Looked after children in Warrington,301000,08/02/2019,5100383920,2025,Halton Borough Council,410008
WARRINGTON BOROUGH COUNCIL,http://opendatacommunities.org/id/unitary-authority/warrington,FWB,Virtual School,31112,Looked after children in Warrington,301000,08/02/2019,5100383920,3375,Halton Borough Council,410008
WARRINGTON BOROUGH COUNCIL,http://opendatacommunities.org/id/unitary-authority/warrington,FWB,Virtual School,31112,Looked after children in Warrington,301000,08/02/2019,5100383920,1350,Halton Borough Council,410008
WARRINGTON BOROUGH COUNCIL,http://opendatacommunities.org/id/unitary-authority/warrington,PIO,People & Improvement Other,85002,Lifts from Stock,400850,13/01/2019,5100381068,750,AMW Lift & Mobility Services Ltd,112766
WARRINGTON BOROUGH COUNCIL,http://opendatacommunities.org/id/unitary-authority/warrington,FWB,Equipment Store,54930,Equipment Purchase & Contract,400000,18/01/2019,5100381627,644.64,Ots Limited,105296
WARRINGTON BOROUGH COUNCIL,http://opendatacommunities.org/id/unitary-authority/warrington,EE0,Waste Recycling,41820,Waste Initiatives,443200,13/01/2019,5100381104,1170,Halton Container Services Limited,101003
WARRINGTON BOROUGH COUNCIL,http://opendatacommunities.org/id/unitary-authority/warrington,EE0,Waste Recycling,41820,Waste Initiatives,443200,13/01/2019,5100381104,772,Halton Container Services Limited,101003
WARRINGTON BOROUGH COUNCIL,http://opendatacommunities.org/id/unitary-authority/warrington,EE0,Waste Recycling,41820,Waste Initiatives,443200,13/01/2019,5100381104,954,Halton Container Services Limited,101003
WARRINGTON BOROUGH COUNCIL,http://opendatacommunities.org/id/unitary-authority/warrington,RSC,Transformation Team,52210,Consult.& Prof. Serv,440000,19/02/2019,5100384859,14850,Firmstep Limited,116490
WARRINGTON BOROUGH COUNCIL,http://opendatacommunities.org/id/unitary-authority/warrington,RSC,Transformation Team,52210,Consult.& Prof. Serv,440000,19/02/2019,5100384859,2227,Firmstep Limited,116490
WARRINGTON BOROUGH COUNCIL,http://opendatacommunities.org/id/unitary-authority/warrington,FWB,Padgate House,54760,Equipment Purchase & Contract,400000,20/02/2019,5100385014,795,Newlyn Healthcare Ltd,101429
WARRINGTON BOROUGH COUNCIL,http://opendatacommunities.org/id/unitary-authority/warrington,FWB,Virtual School,31112,Looked after children in Warrington,301000,19/02/2019,5100384782,2047.5,Jubilee Primary School,400547
WARRINGTON BOROUGH COUNCIL,http://opendatacommunities.org/id/unitary-authority/warrington,EE0,Construction Stores Overhead Account,41320,Equipment Purchase & Contract,400000,08/02/2019,5100382767,1332.8,Smith Bros (Caer Conan) Wh'Sale Ltd,105136
WARRINGTON BOROUGH COUNCIL,http://opendatacommunities.org/id/unitary-authority/warrington,ENO,Priority Infrastructure,82009,Carriageway-Resurfacing,532250,22/02/2019,5100385155,1350,Network Surfacing Ltd,113235
WARRINGTON BOROUGH COUNCIL,http://opendatacommunities.org/id/unitary-authority/warrington,ENO,Priority Infrastructure,82009,Carriageway-Resurfacing,532250,25/02/2019,5100385410,1350,Network Surfacing Ltd,113235
WARRINGTON BOROUGH COUNCIL,http://opendatacommunities.org/id/unitary-authority/warrington,EE0,Athlone Rd - Plan C,40049,Consult.& Prof. Serv,440000,13/01/2019,5100381061,1473.6,Nathaniel Lichfield & Partners Ltd,116860
WARRINGTON BOROUGH COUNCIL,http://opendatacommunities.org/id/unitary-authority/warrington,EE0,Athlone Rd - Plan B,40047,Consult.& Prof. Serv,440000,13/01/2019,5100381060,2000,Nathaniel Lichfield & Partners Ltd,116860
WARRINGTON BOROUGH COUNCIL,http://opendatacommunities.org/id/unitary-authority/warrington,PIO,People & Improvement Other,85002,Consult.& Prof. Serv,440000,22/02/2019,5100384890,1400,Eden Cheshire Ltd,116946
WARRINGTON BOROUGH COUNCIL,http://opendatacommunities.org/id/unitary-authority/warrington,PIO,People & Improvement Other,85002,Consult.& Prof. Serv,440000,22/02/2019,5100384890,7838.38,Eden Cheshire Ltd,116946
WARRINGTON BOROUGH COUNCIL,http://opendatacommunities.org/id/unitary-authority/warrington,PIO,People & Improvement Other,85002,Consult.& Prof. Serv,440000,22/02/2019,5100384890,892.98,Eden Cheshire Ltd,116946
WARRINGTON BOROUGH COUNCIL,http://opendatacommunities.org/id/unitary-authority/warrington,PIO,People & Improvement Other,85002,Consult.& Prof. Serv,440000,22/02/2019,5100384890,1955,Eden Cheshire Ltd,116946
WARRINGTON BOROUGH COUNCIL,http://opendatacommunities.org/id/unitary-authority/warrington,PIO,People & Improvement Other,85002,Consult.& Prof. Serv,440000,22/02/2019,5100384890,720,Eden Cheshire Ltd,116946
WARRINGTON BOROUGH COUNCIL,http://opendatacommunities.org/id/unitary-authority/warrington,PIO,People & Improvement Other,85002,Consult.& Prof. Serv,440000,22/02/2019,5100384890,4160,Eden Cheshire Ltd,116946
WARRINGTON BOROUGH COUNCIL,http://opendatacommunities.org/id/unitary-authority/warrington,PIO,People & Improvement Other,85002,Consult.& Prof. Serv,440000,22/02/2019,5100384890,625,Eden Cheshire Ltd,116946
WARRINGTON BOROUGH COUNCIL,http://opendatacommunities.org/id/unitary-authority/warrington,PIO,People & Improvement Other,85002,Consult.& Prof. Serv,440000,22/02/2019,5100384890,900,Eden Cheshire Ltd,116946
WARRINGTON BOROUGH COUNCIL,http://opendatacommunities.org/id/unitary-authority/warrington,PIO,People & Improvement Other,85002,Consult.& Prof. Serv,440000,22/02/2019,5100384890,3200,Eden Cheshire Ltd,116946
WARRINGTON BOROUGH COUNCIL,http://opendatacommunities.org/id/unitary-authority/warrington,PIO,People & Improvement Other,85002,Consult.& Prof. Serv,440000,22/02/2019,5100384890,2880,Eden Cheshire Ltd,116946
WARRINGTON BOROUGH COUNCIL,http://opendatacommunities.org/id/unitary-authority/warrington,PIO,People & Improvement Other,85002,Consult.& Prof. Serv,440000,22/02/2019,5100384890,2520,Eden Cheshire Ltd,116946
WARRINGTON BOROUGH COUNCIL,http://opendatacommunities.org/id/unitary-authority/warrington,EE0,Transport Holding Account,41311,Maintenance Work - Sub Contractors,301150,29/01/2019,5100382520,535.85,FAUN Zoeller UK Ltd,105260
WARRINGTON BOROUGH COUNCIL,http://opendatacommunities.org/id/unitary-authority/warrington,EE0,Transport Holding Account,41311,Maintenance Work - Sub Contractors,301150,19/02/2019,5100384426,770,Hgv Fleet Cleaning Services Ltd,102071
WARRINGTON BOROUGH COUNCIL,http://opendatacommunities.org/id/unitary-authority/warrington,EE0,Transport Holding Account,41311,Veh Maint. Materials,300000,08/02/2019,5100382860,819.76,Dennis Eagle Parts,104661
WARRINGTON BOROUGH COUNCIL,http://opendatacommunities.org/id/unitary-authority/warrington,EE0,Construction Stores Overhead Account,41320,Uniforms,420000,05/02/2019,5100383525,587.84,Parker Merchanting Ltd,105007
WARRINGTON BOROUGH COUNCIL,http://opendatacommunities.org/id/unitary-authority/warrington,EE0,Transport Holding Account,41311,Veh Maint. Materials,300000,22/02/2019,5100383872,534.79,Man Truck & Bus Uk Ltd.,102737
WARRINGTON BOROUGH COUNCIL,http://opendatacommunities.org/id/unitary-authority/warrington,RSC,Transformation Team,52210,Training,190150,08/01/2019,5100380432,650,The Knowledge Academy Ltd,114454
WARRINGTON BOROUGH COUNCIL,http://opendatacommunities.org/id/unitary-authority/warrington,RSC,ICT Networks,23400,Computer Software - Maintenance,450850,19/02/2019,5100384828,777.93,PPL PRS Ltd,101488
WARRINGTON BOROUGH COUNCIL,http://opendatacommunities.org/id/unitary-authority/warrington,RSC,ICT Networks,23400,Computer Software - Maintenance,450850,19/02/2019,5100384828,753.4,PPL PRS Ltd,101488
WARRINGTON BOROUGH COUNCIL,http://opendatacommunities.org/id/unitary-authority/warrington,EE1,Land Drainage,44120,Named Drainage Schm,532100,27/02/2019,5100385616,42063.63,Dowhigh Ltd,105350
WARRINGTON BOROUGH COUNCIL,http://opendatacommunities.org/id/unitary-authority/warrington,EE0,CCTV Operations exp,44380,Equipment Purchase & Contract,400000,21/01/2019,5100381796,3689.5,Siemens PLC,101162
WARRINGTON BOROUGH COUNCIL,http://opendatacommunities.org/id/unitary-authority/warrington,EE0,Time Square MSCP,44321,Equipment Purchase & Contract,400000,21/01/2019,5100381796,3963,Siemens PLC,101162
WARRINGTON BOROUGH COUNCIL,http://opendatacommunities.org/id/unitary-authority/warrington,FWB,DSG Independent School Fees,32011,Fees (Including Agents Fees),441450,14/02/2019,5100384362,4798.58,Pontville School,109772
WARRINGTON BOROUGH COUNCIL,http://opendatacommunities.org/id/unitary-authority/warrington,FWB,DSG Independent School Fees,32011,Fees (Including Agents Fees),441450,14/02/2019,5100384363,6007.17,Pontville School,109772
WARRINGTON BOROUGH COUNCIL,http://opendatacommunities.org/id/unitary-authority/warrington,FWB,DSG Independent School Fees,32011,Fees (Including Agents Fees),441450,14/02/2019,5100384364,6007.17,Pontville School,109772
WARRINGTON BOROUGH COUNCIL,http://opendatacommunities.org/id/unitary-authority/warrington,FWB,DSG Independent School Fees,32011,Fees (Including Agents Fees),441450,26/02/2019,5100385510,4649.5,Lakeside School Limited,103188
WARRINGTON BOROUGH COUNCIL,http://opendatacommunities.org/id/unitary-authority/warrington,FWB,DSG Independent School Fees,32011,Fees (Including Agents Fees),441450,26/02/2019,5100385488,5273.25,Lakeside School Limited,103188
WARRINGTON BOROUGH COUNCIL,http://opendatacommunities.org/id/unitary-authority/warrington,FWB,DSG Independent School Fees,32011,Fees (Including Agents Fees),441450,26/02/2019,5100385517,3054.1,The Royal School For The Blind,400046
WARRINGTON BOROUGH COUNCIL,http://opendatacommunities.org/id/unitary-authority/warrington,FWB,DSG Independent School Fees,32011,Fees (Including Agents Fees),441450,12/02/2019,5100384111,10422.33,Hope Corner Academy,115620
WARRINGTON BOROUGH COUNCIL,http://opendatacommunities.org/id/unitary-authority/warrington,FWB,DSG Independent School Fees,32011,Fees (Including Agents Fees),441450,04/02/2019,5100383300,10422.33,Hope Corner Academy,115620
WARRINGTON BOROUGH COUNCIL,http://opendatacommunities.org/id/unitary-authority/warrington,FWB,DSG Independent School Fees,32011,Fees (Including Agents Fees),441450,04/02/2019,5100383309,15089,Hope Corner Academy,115620
WARRINGTON BOROUGH COUNCIL,http://opendatacommunities.org/id/unitary-authority/warrington,FWB,DSG Independent School Fees,32011,Fees (Including Agents Fees),441450,20/02/2019,5100384997,48504.47,Bright Futures Care Ltd,114579
WARRINGTON BOROUGH COUNCIL,http://opendatacommunities.org/id/unitary-authority/warrington,EE0,Transport Holding Account,41311,Vehicle Hire Charges,320000,20/02/2019,5100383769,1187.41,Burnt Tree Group Limited,100597
WARRINGTON BOROUGH COUNCIL,http://opendatacommunities.org/id/unitary-authority/warrington,FWB,Special Schools Transport,33208,Statemented - Special Unit Pupil Transpo,300750,04/02/2019,5100383410,3612,Elite Services NW Ltd,109753
WARRINGTON BOROUGH COUNCIL,http://opendatacommunities.org/id/unitary-authority/warrington,FWB,DSG Independent School Fees,32011,Fees (Including Agents Fees),441450,12/02/2019,5100384106,3979.29,Weston Point College,110596
WARRINGTON BOROUGH COUNCIL,http://opendatacommunities.org/id/unitary-authority/warrington,FWB,DSG Independent School Fees,32011,Fees (Including Agents Fees),441450,12/02/2019,5100384107,33631.97,Weston Point College,110596
WARRINGTON BOROUGH COUNCIL,http://opendatacommunities.org/id/unitary-authority/warrington,ENO,Highways LTP,82004,Equipment Purchase & Contract,400000,14/02/2019,5100383518,559,Parker Merchanting Ltd,105007
WARRINGTON BOROUGH COUNCIL,http://opendatacommunities.org/id/unitary-authority/warrington,ENO,Highways LTP,82004,Equipment Purchase & Contract,400000,19/02/2019,5100384825,579,Parker Merchanting Ltd,105007
WARRINGTON BOROUGH COUNCIL,http://opendatacommunities.org/id/unitary-authority/warrington,ENP,Environment & Regeneration,82000,Environmental Works,531050,04/02/2019,5100383339,300000,Environment Agency,440120
WARRINGTON BOROUGH COUNCIL,http://opendatacommunities.org/id/unitary-authority/warrington,EE0,Transport Holding Account,41311,Vehicle Hire Charges,320000,07/02/2019,5100383691,667,F R Sharrock Ltd,105122
WARRINGTON BOROUGH COUNCIL,http://opendatacommunities.org/id/unitary-authority/warrington,EE0,Transport Holding Account,41311,Vehicle Hire Charges,320000,04/02/2019,5100383274,9929.32,West Wallasey Car Hire Ltd,103584
WARRINGTON BOROUGH COUNCIL,http://opendatacommunities.org/id/unitary-authority/warrington,EE0,Transport Holding Account,41311,Vehicle Hire Charges,320000,14/02/2019,5100383358,1610,B & T Skip Hire,100921
WARRINGTON BOROUGH COUNCIL,http://opendatacommunities.org/id/unitary-authority/warrington,EE0,Transport Holding Account,41311,Vehicle Hire Charges,320000,22/02/2019,5100384659,1188,Peter Douglass Platforms,104676
WARRINGTON BOROUGH COUNCIL,http://opendatacommunities.org/id/unitary-authority/warrington,EE0,Transport Holding Account,41311,Vehicle Hire Charges,320000,22/02/2019,5100384655,1188,Peter Douglass Platforms,104676
WARRINGTON BOROUGH COUNCIL,http://opendatacommunities.org/id/unitary-authority/warrington,EE0,Transport Holding Account,41311,Vehicle Hire Charges,320000,22/02/2019,5100384657,1188,Peter Douglass Platforms,104676
WARRINGTON BOROUGH COUNCIL,http://opendatacommunities.org/id/unitary-authority/warrington,RSC,Transformation Team,52210,Computer Software - Maintenance,450850,19/02/2019,5100384650,6000,Northgate Public Services UK,100315
WARRINGTON BOROUGH COUNCIL,http://opendatacommunities.org/id/unitary-authority/warrington,RSC,Transformation Team,52210,Computer Software - Maintenance,450850,23/02/2019,5100385244,6000,Northgate Public Services UK,100315
WARRINGTON BOROUGH COUNCIL,http://opendatacommunities.org/id/unitary-authority/warrington,PIO,People & Improvement Other,85002,Lifts from Stock,400850,01/02/2019,5100382846,3225,AMW Lift & Mobility Services Ltd,112766
WARRINGTON BOROUGH COUNCIL,http://opendatacommunities.org/id/unitary-authority/warrington,PIO,People & Improvement Other,85002,Lifts from Stock,400850,13/01/2019,5100381065,999,AMW Lift & Mobility Services Ltd,112766
WARRINGTON BOROUGH COUNCIL,http://opendatacommunities.org/id/unitary-authority/warrington,ENO,Environmental Projects,82007,Building Work,200850,27/02/2019,5100385607,74700,Evo Energy,115346
WARRINGTON BOROUGH COUNCIL,http://opendatacommunities.org/id/unitary-authority/warrington,ENO,Environmental Projects,82007,Building Work,200850,15/02/2019,5100384471,149400,Evo Energy,115346
WARRINGTON BOROUGH COUNCIL,http://opendatacommunities.org/id/unitary-authority/warrington,ENO,Highways LTP,82004,Equipment Purchase & Contract,400000,21/01/2019,5100381827,793.88,TMP UK Ltd,108498
WARRINGTON BOROUGH COUNCIL,http://opendatacommunities.org/id/unitary-authority/warrington,ENO,Highways LTP,82004,Environmental Works,531050,04/02/2019,5100381813,3660,W A P Lawton & Son Ltd,105431
WARRINGTON BOROUGH COUNCIL,http://opendatacommunities.org/id/unitary-authority/warrington,ENO,Highways LTP,82004,Environmental Works,531050,08/02/2019,5100382261,900,Premier Traffic Management Ltd,110803
WARRINGTON BOROUGH COUNCIL,http://opendatacommunities.org/id/unitary-authority/warrington,FWB,Special Schools Transport,33208,Statemented - Special Unit Pupil Transpo,300750,04/02/2019,5100383363,1068,Kings Travel,116965
WARRINGTON BOROUGH COUNCIL,http://opendatacommunities.org/id/unitary-authority/warrington,ENO,Environment & Regeneration Other,82002,Storage Facilities,441900,10/01/2019,5100380733,650,J Lyons Removals,113390
WARRINGTON BOROUGH COUNCIL,http://opendatacommunities.org/id/unitary-authority/warrington,COR,Markets,43711,Maintenance Work - Sub Contractors,301150,09/01/2019,5100380613,775,Purified Air Limited,116863
WARRINGTON BOROUGH COUNCIL,http://opendatacommunities.org/id/unitary-authority/warrington,RSC,IT - Contracts,23600,Computer Software - Maintenance,450850,11/01/2019,5100380825,8800,Spacecraft Creative Limited,115931
WARRINGTON BOROUGH COUNCIL,http://opendatacommunities.org/id/unitary-authority/warrington,RSC,IT - Contracts,23600,Computer Software - Maintenance,450850,11/01/2019,5100380825,14800,Spacecraft Creative Limited,115931
WARRINGTON BOROUGH COUNCIL,http://opendatacommunities.org/id/unitary-authority/warrington,ENO,Environment & Regeneration Other,82002,Consult.& Prof. Serv,440000,08/02/2019,5100382878,1350,Pozzoni Architecture Limited,116962
WARRINGTON BOROUGH COUNCIL,http://opendatacommunities.org/id/unitary-authority/warrington,FWB,Staffing - Cluster Central & West,31510,Materials,400500,17/01/2019,5100381525,989,Drugs Training.com Ltd,116618
WARRINGTON BOROUGH COUNCIL,http://opendatacommunities.org/id/unitary-authority/warrington,EE0,Local Plan,43445,Consult.& Prof. Serv,440000,11/01/2019,5100380910,15000,BNP Paribas Real Estate,115382
WARRINGTON BOROUGH COUNCIL,http://opendatacommunities.org/id/unitary-authority/warrington,COR,Other Commercial Prop.,43560,Consult.& Prof. Serv,440000,11/02/2019,5100384050,4100,Knight Frank Llp,104426
WARRINGTON BOROUGH COUNCIL,http://opendatacommunities.org/id/unitary-authority/warrington,EE0,Walton Estate,41430,Events Costs,490000,16/01/2019,5100381403,701.4,Inflatable Flix,116913
WARRINGTON BOROUGH COUNCIL,http://opendatacommunities.org/id/unitary-authority/warrington,RSC,IT - Contracts,23600,Computer Software - Purchase,450800,20/02/2019,5100384987,2646,Softcat,109539
WARRINGTON BOROUGH COUNCIL,http://opendatacommunities.org/id/unitary-authority/warrington,RSC,ICT- Schools,23500,Computer Software - Purchase,450800,20/02/2019,5100384987,2381.4,Softcat,109539
WARRINGTON BOROUGH COUNCIL,http://opendatacommunities.org/id/unitary-authority/warrington,EE0,Walton Estate,41430,Events Costs,490000,16/01/2019,5100381432,650.42,FilmBankMedia,116890
WARRINGTON BOROUGH COUNCIL,http://opendatacommunities.org/id/unitary-authority/warrington,ENP,Environment & Regeneration,82000,Computer Hardware - Purchase,450700,19/02/2019,5100384661,12268.8,European Electronique Limited,116905
WARRINGTON BOROUGH COUNCIL,http://opendatacommunities.org/id/unitary-authority/warrington,ENP,Environment & Regeneration,82000,Computer Hardware - Purchase,450700,19/02/2019,5100384661,6974.1,European Electronique Limited,116905
WARRINGTON BOROUGH COUNCIL,http://opendatacommunities.org/id/unitary-authority/warrington,ENP,Environment & Regeneration,82000,Computer Hardware - Purchase,450700,19/02/2019,5100384661,1692.6,European Electronique Limited,116905
WARRINGTON BOROUGH COUNCIL,http://opendatacommunities.org/id/unitary-authority/warrington,FWB,DSG Independent School Fees,32011,Fees (Including Agents Fees),441450,28/01/2019,5100382410,32252.29,Seashell Trust,103082
WARRINGTON BOROUGH COUNCIL,http://opendatacommunities.org/id/unitary-authority/warrington,RSC,Transformation Team,52210,Consult.& Prof. Serv,440000,26/02/2019,5100381439,4550,Progressive,116968
WARRINGTON BOROUGH COUNCIL,http://opendatacommunities.org/id/unitary-authority/warrington,RSC,Transformation Team,52210,Consult.& Prof. Serv,440000,26/02/2019,5100382019,3250,Progressive,116968
WARRINGTON BOROUGH COUNCIL,http://opendatacommunities.org/id/unitary-authority/warrington,RSC,Transformation Team,52210,Consult.& Prof. Serv,440000,26/02/2019,5100382599,3250,Progressive,116968
WARRINGTON BOROUGH COUNCIL,http://opendatacommunities.org/id/unitary-authority/warrington,FWB,Int Care Premises,53280,Annual Maintenance,442100,08/02/2019,5100382514,1495.67,GB Oils Ltd (Martindale Fuels),103439
WARRINGTON BOROUGH COUNCIL,http://opendatacommunities.org/id/unitary-authority/warrington,EE0,Construction Stores Overhead Account,41320,Materials,400500,08/02/2019,5100381815,589.12,Cromwell Polythene Ltd,112559
WARRINGTON BOROUGH COUNCIL,http://opendatacommunities.org/id/unitary-authority/warrington,EE0,Construction Stores Overhead Account,41320,Materials,400500,08/02/2019,5100381815,521.5,Cromwell Polythene Ltd,112559
WARRINGTON BOROUGH COUNCIL,http://opendatacommunities.org/id/unitary-authority/warrington,FWB,Education Leadership & Quality,32100,Subscriptions,470000,12/02/2019,5100384057,7144.4,NCER CIC,110185
WARRINGTON BOROUGH COUNCIL,http://opendatacommunities.org/id/unitary-authority/warrington,ENO,Priority Infrastructure,82009,Environmental Works,531050,16/01/2019,5100381449,4000,Vodafone,100023
WARRINGTON BOROUGH COUNCIL,http://opendatacommunities.org/id/unitary-authority/warrington,FWB,Assessment & Intervention,31000,Fees (Including Agents Fees),441450,14/01/2019,5100381195,1318.2,Lextox,114551
WARRINGTON BOROUGH COUNCIL,http://opendatacommunities.org/id/unitary-authority/warrington,FWB,Equipment Store,54930,Equipment Purchase & Contract,400000,01/02/2019,5100382834,1020,Harvest Healthcare Ltd,108555
WARRINGTON BOROUGH COUNCIL,http://opendatacommunities.org/id/unitary-authority/warrington,NEO,IT Projects,83003,Computer Hardware - Purchase,450700,18/01/2019,5100381659,15534.5,Probrand Ltd,102886
WARRINGTON BOROUGH COUNCIL,http://opendatacommunities.org/id/unitary-authority/warrington,HOL,Insurance Fund,91100,Insurance Premium,443350,29/01/2019,5100382470,1289.62,Aon Ltd,102117
WARRINGTON BOROUGH COUNCIL,http://opendatacommunities.org/id/unitary-authority/warrington,ENO,Priority Infrastructure,82009,Consult.& Prof. Serv,440000,08/02/2019,5100381829,886.8,TMP UK Ltd,108498
WARRINGTON BOROUGH COUNCIL,http://opendatacommunities.org/id/unitary-authority/warrington,ENO,Priority Infrastructure,82009,Consult.& Prof. Serv,440000,08/02/2019,5100382605,886.8,TMP UK Ltd,108498
WARRINGTON BOROUGH COUNCIL,http://opendatacommunities.org/id/unitary-authority/warrington,FWB,DSG Independent School Fees,32011,Fees (Including Agents Fees),441450,29/01/2019,5100382506,7167.16,Hope Corner Academy,115620
WARRINGTON BOROUGH COUNCIL,http://opendatacommunities.org/id/unitary-authority/warrington,FWB,DSG Independent School Fees,32011,Fees (Including Agents Fees),441450,28/01/2019,5100382408,1650,The School of Military Ltd,116966
WARRINGTON BOROUGH COUNCIL,http://opendatacommunities.org/id/unitary-authority/warrington,FWB,DSG Independent School Fees,32011,Fees (Including Agents Fees),441450,26/02/2019,5100385518,3540,The School of Military Ltd,116966
WARRINGTON BOROUGH COUNCIL,http://opendatacommunities.org/id/unitary-authority/warrington,FWB,DSG Independent School Fees,32011,Fees (Including Agents Fees),441450,31/01/2019,5100382778,4662,Wargrave House School,400175
WARRINGTON BOROUGH COUNCIL,http://opendatacommunities.org/id/unitary-authority/warrington,FWB,Equipment Store,54930,Equipment Purchase & Contract,400000,25/01/2019,5100382031,4500,Joerns Healthcare Ltd,106924
WARRINGTON BOROUGH COUNCIL,http://opendatacommunities.org/id/unitary-authority/warrington,FWB,Effective Practice,33300,Agency Supply,180000,05/02/2019,5100383513,222578.6,Cheshire West And Chester,103357
WARRINGTON BOROUGH COUNCIL,http://opendatacommunities.org/id/unitary-authority/warrington,EE0,Transport Holding Account,41311,Maintenance Work - Sub Contractors,301150,29/01/2019,5100382517,633,Chassis & Cab Specialists Limited,104589
WARRINGTON BOROUGH COUNCIL,http://opendatacommunities.org/id/unitary-authority/warrington,EE1,Or Winter Maint,44280,Precautionary Salting,531750,27/02/2019,5100376391,1420.58,Salt Union Ltd,105104
WARRINGTON BOROUGH COUNCIL,http://opendatacommunities.org/id/unitary-authority/warrington,ENP,Environment & Regeneration,82000,Stores Purchases,401300,25/01/2019,5100382020,24405.88,Jones Lighting Ltd,103483
WARRINGTON BOROUGH COUNCIL,http://opendatacommunities.org/id/unitary-authority/warrington,ENP,Environment & Regeneration,82000,Stores Purchases,401300,25/01/2019,5100382020,22557.8,Jones Lighting Ltd,103483
WARRINGTON BOROUGH COUNCIL,http://opendatacommunities.org/id/unitary-authority/warrington,ENP,Environment & Regeneration,82000,Materials,400500,12/02/2019,5100384204,8785,Mallatite Ltd,104914
WARRINGTON BOROUGH COUNCIL,http://opendatacommunities.org/id/unitary-authority/warrington,EE1,Special Projects,44520,Furniture & Fittings,400150,13/02/2019,5100384310,800,H Jenkinson + Co Ltd,104829
WARRINGTON BOROUGH COUNCIL,http://opendatacommunities.org/id/unitary-authority/warrington,PIO,People & Improvement Other,85002,Equipment Purchase & Contract,400000,04/02/2019,5100383327,1716,Aardvark Janitorial Suppliers Ltd,100488
WARRINGTON BOROUGH COUNCIL,http://opendatacommunities.org/id/unitary-authority/warrington,PIO,People & Improvement Other,85002,Equipment Purchase & Contract,400000,30/01/2019,5100382616,627,Crosbys Catering Supplies Ltd,116989
WARRINGTON BOROUGH COUNCIL,http://opendatacommunities.org/id/unitary-authority/warrington,PIO,People & Improvement Other,85002,Equipment Purchase & Contract,400000,30/01/2019,5100382616,517,Crosbys Catering Supplies Ltd,116989
WARRINGTON BOROUGH COUNCIL,http://opendatacommunities.org/id/unitary-authority/warrington,EE0,Town Centre (Street Scene),41732,Equipment Purchase & Contract,400000,08/02/2019,5100382837,6775.35,The Fountain Company Ltd,100188
WARRINGTON BOROUGH COUNCIL,http://opendatacommunities.org/id/unitary-authority/warrington,EE0,Transport Holding Account,41311,Maintenance Work - Sub Contractors,301150,25/01/2019,5100382032,564.91,Turner Groundscare,105201
WARRINGTON BOROUGH COUNCIL,http://opendatacommunities.org/id/unitary-authority/warrington,FWB,Equipment Store,54930,Equipment Purchase & Contract,400000,19/02/2019,5100384816,848.05,Scan Mobility,105107
WARRINGTON BOROUGH COUNCIL,http://opendatacommunities.org/id/unitary-authority/warrington,FWB,Permanence Team,31100,Transport SLA,300400,07/02/2019,5100383807,1170,Tip Top Travel,113174
WARRINGTON BOROUGH COUNCIL,http://opendatacommunities.org/id/unitary-authority/warrington,RSC,ICT Projects,23300,Computer Hardware - Purchase,450700,26/01/2019,5100382157,2248.8,Dell,104659
WARRINGTON BOROUGH COUNCIL,http://opendatacommunities.org/id/unitary-authority/warrington,RSC,ICT Projects,23300,Computer Hardware - Purchase,450700,31/01/2019,5100382781,2992.15,Dell,104659
WARRINGTON BOROUGH COUNCIL,http://opendatacommunities.org/id/unitary-authority/warrington,EE0,Town Hall,43111,Security Systems,250000,25/01/2019,5100382012,2404.75,Chubb Fire and Security Ltd,105335
WARRINGTON BOROUGH COUNCIL,http://opendatacommunities.org/id/unitary-authority/warrington,EE0,Woolston Depot,41331,Oil - Gas,301250,22/02/2019,5100382884,525.52,GB Oils Ltd (Martindale Fuels),103439
WARRINGTON BOROUGH COUNCIL,http://opendatacommunities.org/id/unitary-authority/warrington,ENO,Highways S106,82003,Environmental Works,531050,29/01/2019,5100382530,1318.24,BT,104542
WARRINGTON BOROUGH COUNCIL,http://opendatacommunities.org/id/unitary-authority/warrington,ENO,Highways LTP,82004,"Campaigns,  Projects and Events",491950,30/01/2019,5100382603,990,Style Brands Marketing ltd,114934
WARRINGTON BOROUGH COUNCIL,http://opendatacommunities.org/id/unitary-authority/warrington,FWB,Equipment Store,54930,Equipment Purchase & Contract,400000,29/01/2019,5100382529,3207.5,Lisclare Ltd,100553
WARRINGTON BOROUGH COUNCIL,http://opendatacommunities.org/id/unitary-authority/warrington,ACP,Assistant Chief Executive,84000,Environmental Works,531050,20/02/2019,5100384984,2735.37,Road Maintenance Services Ltd,105408
WARRINGTON BOROUGH COUNCIL,http://opendatacommunities.org/id/unitary-authority/warrington,FWB,Equipment Store,54930,Equipment Purchase & Contract,400000,23/01/2019,5100381917,525,Drive DeVilbiss Healthcare Ltd,101899
WARRINGTON BOROUGH COUNCIL,http://opendatacommunities.org/id/unitary-authority/warrington,FWB,DSG Post-16 Special Educational Needs,32309,Materials,400500,26/01/2019,5100382193,21674.33,Morthyng Group Ltd,117011
WARRINGTON BOROUGH COUNCIL,http://opendatacommunities.org/id/unitary-authority/warrington,FWB,Home to School Transport,33210,Mainstream Pupil Transport,300800,04/02/2019,5100383371,1520,MD Bus & Coach Ltd,116003
WARRINGTON BOROUGH COUNCIL,http://opendatacommunities.org/id/unitary-authority/warrington,FWB,Home to School Transport,33210,Mainstream Pupil Transport,300800,04/02/2019,5100383338,14946.82,Hiltons Coach Travel,104784
WARRINGTON BOROUGH COUNCIL,http://opendatacommunities.org/id/unitary-authority/warrington,FWB,Home to School Transport,33210,Mainstream Pupil Transport,300800,04/02/2019,5100383342,14946.82,Hiltons Coach Travel,104784
WARRINGTON BOROUGH COUNCIL,http://opendatacommunities.org/id/unitary-authority/warrington,FWB,Home to School Transport,33210,Mainstream Pupil Transport,300800,04/02/2019,5100383345,14946.82,Hiltons Coach Travel,104784
WARRINGTON BOROUGH COUNCIL,http://opendatacommunities.org/id/unitary-authority/warrington,FWB,Home to School Transport,33210,Mainstream Pupil Transport,300800,04/02/2019,5100383346,14946.82,Hiltons Coach Travel,104784
WARRINGTON BOROUGH COUNCIL,http://opendatacommunities.org/id/unitary-authority/warrington,FWB,Home to School Transport,33210,Mainstream Pupil Transport,300800,07/02/2019,5100383666,15939.82,Hiltons Coach Travel,104784
WARRINGTON BOROUGH COUNCIL,http://opendatacommunities.org/id/unitary-authority/warrington,EE0,Woolston Depot,41331,Annual Maintenance,442100,26/01/2019,5100382184,800,The Premier Pump & Tank Co Ltd,108184
WARRINGTON BOROUGH COUNCIL,http://opendatacommunities.org/id/unitary-authority/warrington,EE0,Transport Holding Account,41311,Annual Maintenance,442100,29/01/2019,5100382510,1246,Redacted Personal Data,105951
WARRINGTON BOROUGH COUNCIL,http://opendatacommunities.org/id/unitary-authority/warrington,EE0,Transport Holding Account,41311,Maintenance Work - Sub Contractors,301150,05/02/2019,5100383456,2167.99,Wyke Commercial Services Ltd,115203
WARRINGTON BOROUGH COUNCIL,http://opendatacommunities.org/id/unitary-authority/warrington,EE0,Transport Holding Account,41311,Diesel,300100,12/02/2019,5100384166,20077.86,GB Oils Ltd (Martindale Fuels),103439
WARRINGTON BOROUGH COUNCIL,http://opendatacommunities.org/id/unitary-authority/warrington,FWB,Safeguarding Team 1,31001,Looked after children in Warrington,301000,29/01/2019,5100382462,1785,Lextox,114551
WARRINGTON BOROUGH COUNCIL,http://opendatacommunities.org/id/unitary-authority/warrington,FWB,Safeguarding Team 1,31001,Looked after children in Warrington,301000,29/01/2019,5100382460,2555,Lextox,114551
WARRINGTON BOROUGH COUNCIL,http://opendatacommunities.org/id/unitary-authority/warrington,EE0,Transport Holding Account,41311,Petrol,300050,12/02/2019,5100384165,1892.15,GB Oils Ltd (Martindale Fuels),103439
WARRINGTON BOROUGH COUNCIL,http://opendatacommunities.org/id/unitary-authority/warrington,EE0,Transport Holding Account,41311,Vehicle Hire Charges,320000,13/02/2019,5100384279,580,F R Sharrock Ltd,105122
WARRINGTON BOROUGH COUNCIL,http://opendatacommunities.org/id/unitary-authority/warrington,PIO,People & Improvement Other,85002,Lifts from Stock,400850,25/02/2019,5100385390,2222.22,Prism Medical UK,108616
WARRINGTON BOROUGH COUNCIL,http://opendatacommunities.org/id/unitary-authority/warrington,RSC,Business Intelligence,12300,Subscriptions,470000,04/02/2019,5100383287,1925,Improvement & Development Agency,104811
WARRINGTON BOROUGH COUNCIL,http://opendatacommunities.org/id/unitary-authority/warrington,NEO,IT Projects,83003,Computer Hardware - Purchase,450700,30/01/2019,5100382600,4951.5,Dell,104659
WARRINGTON BOROUGH COUNCIL,http://opendatacommunities.org/id/unitary-authority/warrington,FWB,DSG Independent School Fees,32011,Fees (Including Agents Fees),441450,12/02/2019,5100384108,3912,Hope Corner Academy,115620
WARRINGTON BOROUGH COUNCIL,http://opendatacommunities.org/id/unitary-authority/warrington,RSC,ICT Projects,23300,Computer Hardware - Purchase,450700,30/01/2019,5100382602,4497.6,Dell,104659
WARRINGTON BOROUGH COUNCIL,http://opendatacommunities.org/id/unitary-authority/warrington,RSC,ICT Projects,23300,Computer Hardware - Purchase,450700,31/01/2019,5100382730,4787.44,Dell,104659
WARRINGTON BOROUGH COUNCIL,http://opendatacommunities.org/id/unitary-authority/warrington,RSC,ICT Projects,23300,Computer Hardware - Purchase,450700,30/01/2019,5100382601,990.3,Dell,104659
WARRINGTON BOROUGH COUNCIL,http://opendatacommunities.org/id/unitary-authority/warrington,ENO,Highways LTP,82004,Carriageway-Resurfacing,532250,19/02/2019,5100384758,34687.56,Tarmac,100489
WARRINGTON BOROUGH COUNCIL,http://opendatacommunities.org/id/unitary-authority/warrington,EE0,Recreation & Games,41431,Materials,400500,04/02/2019,5100383343,552,Rigby Taylor Ltd,105070
WARRINGTON BOROUGH COUNCIL,http://opendatacommunities.org/id/unitary-authority/warrington,EE1,Private Development,44242,Stores Purchases,401300,30/01/2019,5100382558,21144.34,Jones Lighting Ltd,103483
WARRINGTON BOROUGH COUNCIL,http://opendatacommunities.org/id/unitary-authority/warrington,EE1,Street Lighting (Other Works),44243,Lighting Emerg Normal os Hs,531400,30/01/2019,5100382558,2647.4,Jones Lighting Ltd,103483
WARRINGTON BOROUGH COUNCIL,http://opendatacommunities.org/id/unitary-authority/warrington,ENP,Environment & Regeneration,82000,Stores Purchases,401300,30/01/2019,5100382558,765.18,Jones Lighting Ltd,103483
WARRINGTON BOROUGH COUNCIL,http://opendatacommunities.org/id/unitary-authority/warrington,ENP,Environment & Regeneration,82000,Stores Purchases,401300,30/01/2019,5100382558,1380.89,Jones Lighting Ltd,103483
WARRINGTON BOROUGH COUNCIL,http://opendatacommunities.org/id/unitary-authority/warrington,ENP,Environment & Regeneration,82000,Stores Purchases,401300,30/01/2019,5100382558,892.6,Jones Lighting Ltd,103483
WARRINGTON BOROUGH COUNCIL,http://opendatacommunities.org/id/unitary-authority/warrington,EE1,Or Rm C'way & F'way,44260,M.C.R.Flexible Cat1,530850,04/02/2019,5100383266,693.74,Tarmac,100489
WARRINGTON BOROUGH COUNCIL,http://opendatacommunities.org/id/unitary-authority/warrington,CYP,Primary,81001,Patching Cat2,532300,04/02/2019,5100383267,1894.44,Tarmac,100489
WARRINGTON BOROUGH COUNCIL,http://opendatacommunities.org/id/unitary-authority/warrington,EE1,Engineering,44210,Equipment Purchase & Contract,400000,04/02/2019,5100383319,2829.76,Tarmac,100489
WARRINGTON BOROUGH COUNCIL,http://opendatacommunities.org/id/unitary-authority/warrington,EE1,Dropped Crossings,44211,Equipment Purchase & Contract,400000,04/02/2019,5100383319,2361.84,Tarmac,100489
WARRINGTON BOROUGH COUNCIL,http://opendatacommunities.org/id/unitary-authority/warrington,EE1,Or Rm C'way & F'way,44260,M.C.R.Flexible Cat1,530850,04/02/2019,5100383319,2951.25,Tarmac,100489
WARRINGTON BOROUGH COUNCIL,http://opendatacommunities.org/id/unitary-authority/warrington,EE1,Or Rm C'way & F'way,44260,Fct Cat1,530950,04/02/2019,5100383319,8361.34,Tarmac,100489
WARRINGTON BOROUGH COUNCIL,http://opendatacommunities.org/id/unitary-authority/warrington,ENO,Highways Other,82005,Patching Cat2,532300,04/02/2019,5100383319,4656.66,Tarmac,100489
WARRINGTON BOROUGH COUNCIL,http://opendatacommunities.org/id/unitary-authority/warrington,CYP,Primary,81001,Patching Cat2,532300,04/02/2019,5100383319,34995.84,Tarmac,100489
WARRINGTON BOROUGH COUNCIL,http://opendatacommunities.org/id/unitary-authority/warrington,ENO,Highways LTP,82004,Carriageway-Resurfacing,532250,27/02/2019,5100385610,73874.98,Tarmac,100489
WARRINGTON BOROUGH COUNCIL,http://opendatacommunities.org/id/unitary-authority/warrington,EE1,Or Winter Maint,44280,Winter Maint.Labour,531700,27/02/2019,5100385608,100000,Tarmac,100489
WARRINGTON BOROUGH COUNCIL,http://opendatacommunities.org/id/unitary-authority/warrington,EE1,Or Rm C'way & F'way,44260,Fees (Including Agents Fees),441450,27/02/2019,5100385609,150000,Tarmac,100489
WARRINGTON BOROUGH COUNCIL,http://opendatacommunities.org/id/unitary-authority/warrington,ENO,Highways LTP,82004,Carriageway-Resurfacing,532250,19/02/2019,5100384756,97385.74,Tarmac,100489
WARRINGTON BOROUGH COUNCIL,http://opendatacommunities.org/id/unitary-authority/warrington,EE0,Transport Holding Account,41311,Veh Maint. Materials,300000,19/02/2019,5100384792,2284.99,Turner Groundscare,105201
WARRINGTON BOROUGH COUNCIL,http://opendatacommunities.org/id/unitary-authority/warrington,EE0,Transport Holding Account,41311,Veh Maint. Materials,300000,08/02/2019,5100382790,553.9,Thomas Hardie Commercials Ltd,102761
WARRINGTON BOROUGH COUNCIL,http://opendatacommunities.org/id/unitary-authority/warrington,EE0,Transport Holding Account,41311,Veh Maint. Materials,300000,19/02/2019,5100384746,905.45,Roanza Ltd,104700
WARRINGTON BOROUGH COUNCIL,http://opendatacommunities.org/id/unitary-authority/warrington,EE0,B.U.M Employment Skills,22210,Other Advertising & Publicity,450050,01/02/2019,5100382831,700,Raring2Go,102942
WARRINGTON BOROUGH COUNCIL,http://opendatacommunities.org/id/unitary-authority/warrington,FWB,Virtual School,31112,Looked after children in Warrington,301000,08/02/2019,5100383869,1770,St Oswalds C of E Primary School,400557
WARRINGTON BOROUGH COUNCIL,http://opendatacommunities.org/id/unitary-authority/warrington,FWB,Virtual School,31112,Looked after children in Warrington,301000,08/02/2019,5100383869,2340,St Oswalds C of E Primary School,400557
WARRINGTON BOROUGH COUNCIL,http://opendatacommunities.org/id/unitary-authority/warrington,ENO,Highways LTP,82004,Signal Equipment,531650,13/02/2019,5100384302,4225.5,Siemens PLC,101162
WARRINGTON BOROUGH COUNCIL,http://opendatacommunities.org/id/unitary-authority/warrington,FWB,Telecare / Sensory,54560,Equipment Purchase & Contract,400000,31/01/2019,5100382763,502.4,Sarabec Limited,100441
WARRINGTON BOROUGH COUNCIL,http://opendatacommunities.org/id/unitary-authority/warrington,EE1,Engineering,44210,Equipment Purchase & Contract,400000,04/02/2019,5100383270,749.63,Tarmac,100489
WARRINGTON BOROUGH COUNCIL,http://opendatacommunities.org/id/unitary-authority/warrington,EE1,Dropped Crossings,44211,Equipment Purchase & Contract,400000,04/02/2019,5100383270,3460.12,Tarmac,100489
WARRINGTON BOROUGH COUNCIL,http://opendatacommunities.org/id/unitary-authority/warrington,EE1,Or Rm C'way & F'way,44260,Equipment Purchase & Contract,400000,04/02/2019,5100383270,7043.07,Tarmac,100489
WARRINGTON BOROUGH COUNCIL,http://opendatacommunities.org/id/unitary-authority/warrington,EE1,Or Rm C'way & F'way,44260,Fct Cat1,530950,04/02/2019,5100383270,9685.97,Tarmac,100489
WARRINGTON BOROUGH COUNCIL,http://opendatacommunities.org/id/unitary-authority/warrington,EE1,Or Rm C'way & F'way,44260,Road Markings Cat1,531250,04/02/2019,5100383270,1232.63,Tarmac,100489
WARRINGTON BOROUGH COUNCIL,http://opendatacommunities.org/id/unitary-authority/warrington,ENO,Highways Other,82005,Patching Cat2,532300,04/02/2019,5100383270,2465.03,Tarmac,100489
WARRINGTON BOROUGH COUNCIL,http://opendatacommunities.org/id/unitary-authority/warrington,CYP,Primary,81001,Patching Cat2,532300,04/02/2019,5100383270,15454.91,Tarmac,100489
WARRINGTON BOROUGH COUNCIL,http://opendatacommunities.org/id/unitary-authority/warrington,EE1,Or Rm C'way & F'way,44260,M.C.R.Flexible Cat1,530850,04/02/2019,5100383268,1231.82,Tarmac,100489
WARRINGTON BOROUGH COUNCIL,http://opendatacommunities.org/id/unitary-authority/warrington,ENO,Housing Projects,82008,Consult.& Prof. Serv,440000,31/01/2019,5100382822,560,Sutcliffe,103561
WARRINGTON BOROUGH COUNCIL,http://opendatacommunities.org/id/unitary-authority/warrington,RSC,ICT Centralised Budget,23100,Computer Software - Maintenance,450850,01/02/2019,5100382875,797.68,Enterprise Software Systems,100898
WARRINGTON BOROUGH COUNCIL,http://opendatacommunities.org/id/unitary-authority/warrington,EE1,Or Rm C'way & F'way,44260,M.C.R.Flexible Cat1,530850,04/02/2019,5100383269,3643.97,Tarmac,100489
WARRINGTON BOROUGH COUNCIL,http://opendatacommunities.org/id/unitary-authority/warrington,CYP,Primary,81001,Patching Cat2,532300,04/02/2019,5100383269,28734.67,Tarmac,100489
WARRINGTON BOROUGH COUNCIL,http://opendatacommunities.org/id/unitary-authority/warrington,ENO,Priority Infrastructure,82009,Consult.& Prof. Serv,440000,13/02/2019,5100384287,23000,Aecom Limited,101037
WARRINGTON BOROUGH COUNCIL,http://opendatacommunities.org/id/unitary-authority/warrington,FWB,Public Health Licensing,41550,Advertisings-Jobs,190000,31/01/2019,5100382758,750,Cieh,100887
WARRINGTON BOROUGH COUNCIL,http://opendatacommunities.org/id/unitary-authority/warrington,ENO,Housing Projects,82008,Consult.& Prof. Serv,440000,31/01/2019,5100382764,1040,Sutcliffe,103561
WARRINGTON BOROUGH COUNCIL,http://opendatacommunities.org/id/unitary-authority/warrington,ENO,Housing Projects,82008,Consult.& Prof. Serv,440000,31/01/2019,5100382762,1000,Sutcliffe,103561
WARRINGTON BOROUGH COUNCIL,http://opendatacommunities.org/id/unitary-authority/warrington,ENO,Housing Projects,82008,Consult.& Prof. Serv,440000,31/01/2019,5100382825,1800,Sutcliffe,103561
WARRINGTON BOROUGH COUNCIL,http://opendatacommunities.org/id/unitary-authority/warrington,ENO,Housing Projects,82008,Consult.& Prof. Serv,440000,31/01/2019,5100382823,1130,Sutcliffe,103561
WARRINGTON BOROUGH COUNCIL,http://opendatacommunities.org/id/unitary-authority/warrington,ENO,Housing Projects,82008,Consult.& Prof. Serv,440000,31/01/2019,5100382824,1120,Sutcliffe,103561
WARRINGTON BOROUGH COUNCIL,http://opendatacommunities.org/id/unitary-authority/warrington,EE0,Site Management,43530,Security Systems,250000,19/02/2019,5100384842,4291.2,South East Guardians (SEG) Lttd,116189
WARRINGTON BOROUGH COUNCIL,http://opendatacommunities.org/id/unitary-authority/warrington,COR,Refugees,60300,Consult.& Prof. Serv,440000,01/02/2019,5100382842,925,Cheshire Language Academy,112359
WARRINGTON BOROUGH COUNCIL,http://opendatacommunities.org/id/unitary-authority/warrington,EE0,Walton Hall Catering,41433,Licences,492000,12/02/2019,5100384173,651.01,PPL PRS Ltd,101488
WARRINGTON BOROUGH COUNCIL,http://opendatacommunities.org/id/unitary-authority/warrington,EE0,Walton Hall Catering,41433,Licences,492000,12/02/2019,5100384148,1659.12,PPL PRS Ltd,101488
WARRINGTON BOROUGH COUNCIL,http://opendatacommunities.org/id/unitary-authority/warrington,EE0,B.U.M Employment Skills,22210,Materials,400500,31/01/2019,5100382779,925,Hale Carpets and Flooring,117018
WARRINGTON BOROUGH COUNCIL,http://opendatacommunities.org/id/unitary-authority/warrington,FWB,South/West Managed,54030,Training,190150,04/02/2019,5100383272,1410,Right 2 Write Ltd,116925
WARRINGTON BOROUGH COUNCIL,http://opendatacommunities.org/id/unitary-authority/warrington,FWB,Housing Strategy,43620,Equipment Purchase & Contract,400000,05/02/2019,5100383470,1800,Complete Home Energy Systems,111861
WARRINGTON BOROUGH COUNCIL,http://opendatacommunities.org/id/unitary-authority/warrington,ENO,Open Spaces,82006,Materials,400500,27/02/2019,5100385638,71334.24,Wicksteed Leisure Ltd,105436
WARRINGTON BOROUGH COUNCIL,http://opendatacommunities.org/id/unitary-authority/warrington,FWB,Telecare / Sensory,54560,Health Awareness,441950,12/02/2019,5100384239,1635,Tunstall Healthcare UK Ltd,105427
WARRINGTON BOROUGH COUNCIL,http://opendatacommunities.org/id/unitary-authority/warrington,FWB,Telecare / Sensory,54560,Health Awareness,441950,26/02/2019,5100385572,1635,Tunstall Healthcare UK Ltd,105427
WARRINGTON BOROUGH COUNCIL,http://opendatacommunities.org/id/unitary-authority/warrington,FWB,Telecare / Sensory,54560,Health Awareness,441950,26/02/2019,5100385572,510,Tunstall Healthcare UK Ltd,105427
WARRINGTON BOROUGH COUNCIL,http://opendatacommunities.org/id/unitary-authority/warrington,FWB,Telecare / Sensory,54560,Health Awareness,441950,12/02/2019,5100384239,510,Tunstall Healthcare UK Ltd,105427
WARRINGTON BOROUGH COUNCIL,http://opendatacommunities.org/id/unitary-authority/warrington,FWB,Telecare / Sensory,54560,Health Awareness,441950,12/02/2019,5100384239,1500,Tunstall Healthcare UK Ltd,105427
WARRINGTON BOROUGH COUNCIL,http://opendatacommunities.org/id/unitary-authority/warrington,FWB,Telecare / Sensory,54560,Health Awareness,441950,26/02/2019,5100385572,1500,Tunstall Healthcare UK Ltd,105427
WARRINGTON BOROUGH COUNCIL,http://opendatacommunities.org/id/unitary-authority/warrington,FWB,Telecare / Sensory,54560,Health Awareness,441950,12/02/2019,5100384239,1400,Tunstall Healthcare UK Ltd,105427
WARRINGTON BOROUGH COUNCIL,http://opendatacommunities.org/id/unitary-authority/warrington,FWB,Telecare / Sensory,54560,Health Awareness,441950,26/02/2019,5100385572,1400,Tunstall Healthcare UK Ltd,105427
WARRINGTON BOROUGH COUNCIL,http://opendatacommunities.org/id/unitary-authority/warrington,FWB,Telecare / Sensory,54560,Health Awareness,441950,12/02/2019,5100384239,600,Tunstall Healthcare UK Ltd,105427
WARRINGTON BOROUGH COUNCIL,http://opendatacommunities.org/id/unitary-authority/warrington,FWB,Telecare / Sensory,54560,Health Awareness,441950,26/02/2019,5100385572,600,Tunstall Healthcare UK Ltd,105427
WARRINGTON BOROUGH COUNCIL,http://opendatacommunities.org/id/unitary-authority/warrington,ENO,Highways Other,82005,Carriageway-Resurfacing,532250,07/02/2019,5100383801,37690.87,Tarmac,100489
WARRINGTON BOROUGH COUNCIL,http://opendatacommunities.org/id/unitary-authority/warrington,FWB,Taxi and Private Hire Licensing,44450,Stationery,430150,22/02/2019,5100384168,796,Newauto Ltd t/a Mogo UK,101509
WARRINGTON BOROUGH COUNCIL,http://opendatacommunities.org/id/unitary-authority/warrington,FWB,Taxi and Private Hire Licensing,44450,Stationery,430150,22/02/2019,5100384168,796,Newauto Ltd t/a Mogo UK,101509
WARRINGTON BOROUGH COUNCIL,http://opendatacommunities.org/id/unitary-authority/warrington,FWB,Taxi and Private Hire Licensing,44450,Stationery,430150,22/02/2019,5100384168,545,Newauto Ltd t/a Mogo UK,101509
WARRINGTON BOROUGH COUNCIL,http://opendatacommunities.org/id/unitary-authority/warrington,RSC,Individual Electoral Registration,11660,Postages,450000,07/02/2019,5100383694,3088.38,Print Image Facilities LLP,111374
WARRINGTON BOROUGH COUNCIL,http://opendatacommunities.org/id/unitary-authority/warrington,RSC,Individual Electoral Registration,11660,Postages,450000,19/02/2019,5100384916,1043.56,Print Image Facilities LLP,111374
WARRINGTON BOROUGH COUNCIL,http://opendatacommunities.org/id/unitary-authority/warrington,ENO,Highways Other,82005,Carriageway-Resurfacing,532250,15/02/2019,5100384401,188213.76,Tarmac,100489
WARRINGTON BOROUGH COUNCIL,http://opendatacommunities.org/id/unitary-authority/warrington,CYP,Secondary,81002,Maintenance Work - Sub Contractors,301150,15/02/2019,5100384423,199152.94,Great Sankey High Academy School,400206
WARRINGTON BOROUGH COUNCIL,http://opendatacommunities.org/id/unitary-authority/warrington,CYP,Secondary,81002,Maintenance Work - Sub Contractors,301150,15/02/2019,5100384424,58930.35,Great Sankey High Academy School,400206
WARRINGTON BOROUGH COUNCIL,http://opendatacommunities.org/id/unitary-authority/warrington,COR,General Contingencies,61000,Corporate Initiative,491000,07/02/2019,5100383762,3000,Liverpool Quakers,116581
WARRINGTON BOROUGH COUNCIL,http://opendatacommunities.org/id/unitary-authority/warrington,ENO,Environment & Regeneration Other,82002,Building Work,200850,19/02/2019,5100384636,21126.19,Rosslee Construction,116408
WARRINGTON BOROUGH COUNCIL,http://opendatacommunities.org/id/unitary-authority/warrington,COR,Markets,43711,"Campaigns,  Projects and Events",491950,11/02/2019,5100383989,1050,Vibealite Artists,116494
WARRINGTON BOROUGH COUNCIL,http://opendatacommunities.org/id/unitary-authority/warrington,FWB,Fostering Team,31105,Fees (Including Agents Fees),441450,05/02/2019,5100383460,613.02,Smart Storage Widnes,116897
WARRINGTON BOROUGH COUNCIL,http://opendatacommunities.org/id/unitary-authority/warrington,EE0,Project Delivery & Communications,43830,Other Advertising & Publicity,450050,05/02/2019,5100383449,4000,Warrington Football Club Ltd,440015
WARRINGTON BOROUGH COUNCIL,http://opendatacommunities.org/id/unitary-authority/warrington,COR,Develop Appraisal Model-Housing Company,43623,Computer Software - Purchase,450800,08/02/2019,5100383501,10845.21,Shelton Development Services Ltd,117039
WARRINGTON BOROUGH COUNCIL,http://opendatacommunities.org/id/unitary-authority/warrington,NEO,Neighbourhood & Community Other,83002,Carriageway-Resurfacing,532250,15/02/2019,5100384402,47115.79,Tarmac,100489
WARRINGTON BOROUGH COUNCIL,http://opendatacommunities.org/id/unitary-authority/warrington,CYP,Childrens & Young People,81000,Consult.& Prof. Serv,440000,19/02/2019,5100384701,4400,Geoinvestigate Ltd,116967
WARRINGTON BOROUGH COUNCIL,http://opendatacommunities.org/id/unitary-authority/warrington,FWB,Equipment Store,54930,Equipment Purchase & Contract,400000,18/02/2019,5100384581,630,Healthcare Matters,110751
WARRINGTON BOROUGH COUNCIL,http://opendatacommunities.org/id/unitary-authority/warrington,FWB,Equipment Store,54930,Equipment Purchase & Contract,400000,18/02/2019,5100384587,651,Healthcare Matters,110751
WARRINGTON BOROUGH COUNCIL,http://opendatacommunities.org/id/unitary-authority/warrington,FWB,Equipment Store,54930,Equipment Purchase & Contract,400000,07/02/2019,5100383690,1450,Drive DeVilbiss Healthcare Ltd,101899
WARRINGTON BOROUGH COUNCIL,http://opendatacommunities.org/id/unitary-authority/warrington,FWB,Equipment Store,54930,Equipment Purchase & Contract,400000,19/02/2019,5100384665,775,Parnell Products Ltd,112530
WARRINGTON BOROUGH COUNCIL,http://opendatacommunities.org/id/unitary-authority/warrington,RSC,ICT Centralised Budget,23100,Computer Software - Maintenance,450850,12/02/2019,5100384096,25356.04,Agile Applications Limited,100376
WARRINGTON BOROUGH COUNCIL,http://opendatacommunities.org/id/unitary-authority/warrington,FWB,Equipment Store,54930,Equipment Purchase & Contract,400000,12/02/2019,5100384135,650,Harvest Healthcare Ltd,108555
WARRINGTON BOROUGH COUNCIL,http://opendatacommunities.org/id/unitary-authority/warrington,COR,Hatters Row,43710,Security Systems,250000,08/02/2019,5100383922,3830.08,Uniqwin UK,105210
WARRINGTON BOROUGH COUNCIL,http://opendatacommunities.org/id/unitary-authority/warrington,COR,Other Commercial Prop.,43560,Maintenance Work - Sub Contractors,301150,27/02/2019,5100385635,535,B & K Landscapes,105448
WARRINGTON BOROUGH COUNCIL,http://opendatacommunities.org/id/unitary-authority/warrington,FWB,Temporary Accomodation,43652,Maintenance Work - Sub Contractors,301150,19/02/2019,5100384707,535,Incredible Window Cleaning Limited,106977
WARRINGTON BOROUGH COUNCIL,http://opendatacommunities.org/id/unitary-authority/warrington,FWB,Catering Crew,31536,Maintenance of Plant & Machinery,250050,12/02/2019,5100384122,2193.92,British Gas Business,104540
WARRINGTON BOROUGH COUNCIL,http://opendatacommunities.org/id/unitary-authority/warrington,FWB,Complex Families,31800,Materials,400500,26/02/2019,5100385465,15000,Cheshire Constabulary,115056
WARRINGTON BOROUGH COUNCIL,http://opendatacommunities.org/id/unitary-authority/warrington,FWB,Legal Fees Pre Court Work,31204,Looked after children in Warrington,301000,12/02/2019,5100384121,1014,AlphaBiolabs,109403
WARRINGTON BOROUGH COUNCIL,http://opendatacommunities.org/id/unitary-authority/warrington,ENO,Highways LTP,82004,Carriageway-Resurfacing,532250,19/02/2019,5100384754,24725.68,Tarmac,100489
WARRINGTON BOROUGH COUNCIL,http://opendatacommunities.org/id/unitary-authority/warrington,ENO,Highways Other,82005,Carriageway-Resurfacing,532250,27/02/2019,5100385612,60318.8,Tarmac,100489
WARRINGTON BOROUGH COUNCIL,http://opendatacommunities.org/id/unitary-authority/warrington,FWB,Permanence Team,31100,Looked after children in Warrington,301000,14/02/2019,5100384365,1080,Welcare Secure Escorts Ltd,116351
WARRINGTON BOROUGH COUNCIL,http://opendatacommunities.org/id/unitary-authority/warrington,FWB,Leaving Care,31101,Looked after children in Warrington,301000,14/02/2019,5100384355,541.1,BedSpace,103530
WARRINGTON BOROUGH COUNCIL,http://opendatacommunities.org/id/unitary-authority/warrington,ENO,Open Spaces,82006,Materials,400500,27/02/2019,5100385637,55494.94,Wicksteed Leisure Ltd,105436
WARRINGTON BOROUGH COUNCIL,http://opendatacommunities.org/id/unitary-authority/warrington,ENO,Highways Other,82005,Carriageway-Resurfacing,532250,27/02/2019,5100385613,116223.59,Tarmac,100489
WARRINGTON BOROUGH COUNCIL,http://opendatacommunities.org/id/unitary-authority/warrington,ENO,Highways Other,82005,Carriageway-Resurfacing,532250,27/02/2019,5100385611,80826.16,Tarmac,100489
WARRINGTON BOROUGH COUNCIL,http://opendatacommunities.org/id/unitary-authority/warrington,EE0,Project Delivery & Communications,43830,Other Advertising & Publicity,450050,12/02/2019,5100384171,3600,Orbit News Ltd,104995
WARRINGTON BOROUGH COUNCIL,http://opendatacommunities.org/id/unitary-authority/warrington,FWB,Appropriate Adults Project,33314,Consult.& Prof. Serv,440000,12/02/2019,5100384187,924.18,Child Action North West,109412
WARRINGTON BOROUGH COUNCIL,http://opendatacommunities.org/id/unitary-authority/warrington,EE0,Project Delivery & Communications,43830,Consult.& Prof. Serv,440000,13/02/2019,5100384290,1680,Future Design Consultants Ltd,101900
WARRINGTON BOROUGH COUNCIL,http://opendatacommunities.org/id/unitary-authority/warrington,EE0,B.U.M Employment Skills,22210,Materials,400500,12/02/2019,5100384161,950,Hale Carpets and Flooring,117018
WARRINGTON BOROUGH COUNCIL,http://opendatacommunities.org/id/unitary-authority/warrington,FWB,Effective Practice,33300,ICT Comms - Equipment Purchase,450100,12/02/2019,5100384189,18667,Halton Borough Council,410008
WARRINGTON BOROUGH COUNCIL,http://opendatacommunities.org/id/unitary-authority/warrington,FWB,Effective Practice,33300,Fees (Including Agents Fees),441450,12/02/2019,5100384197,650,Restorative Justice Council,113287
WARRINGTON BOROUGH COUNCIL,http://opendatacommunities.org/id/unitary-authority/warrington,FWB,Collaborative Training Group,33301,Training,190150,12/02/2019,5100384185,850,Aim Training Project,105546
WARRINGTON BOROUGH COUNCIL,http://opendatacommunities.org/id/unitary-authority/warrington,FWB,Virtual School,31112,Looked after children in Warrington,301000,19/02/2019,5100384911,1600,Alderman Bolton (WPAT),400511
WARRINGTON BOROUGH COUNCIL,http://opendatacommunities.org/id/unitary-authority/warrington,FWB,Virtual School,31112,Looked after children in Warrington,301000,22/02/2019,5100385115,1688,Beamont Collegiate Academy,111598
WARRINGTON BOROUGH COUNCIL,http://opendatacommunities.org/id/unitary-authority/warrington,NEP,Neighbourhood & Community Services,83000,Consult.& Prof. Serv,440000,20/02/2019,5100384989,600,Steve Hunt Partnership,104802
WARRINGTON BOROUGH COUNCIL,http://opendatacommunities.org/id/unitary-authority/warrington,EE0,Transport Holding Account,41311,Diesel,300100,23/02/2019,5100385231,20220.04,GB Oils Ltd (Martindale Fuels),103439
WARRINGTON BOROUGH COUNCIL,http://opendatacommunities.org/id/unitary-authority/warrington,EE0,Waste Recycling,41820,"Campaigns,  Projects and Events",491950,19/02/2019,5100384777,5469.3,Go Labels International Ltd,104750
WARRINGTON BOROUGH COUNCIL,http://opendatacommunities.org/id/unitary-authority/warrington,EE0,Construction Stores Overhead Account,41320,Materials,400500,19/02/2019,5100384934,1222,Instarmac Ltd,104820
WARRINGTON BOROUGH COUNCIL,http://opendatacommunities.org/id/unitary-authority/warrington,ENP,Environment & Regeneration,82000,Stores Purchases,401300,19/02/2019,5100384841,1949.29,Jones Lighting Ltd,103483
WARRINGTON BOROUGH COUNCIL,http://opendatacommunities.org/id/unitary-authority/warrington,RSC,Individual Electoral Registration,11660,Postages,450000,13/02/2019,5100384278,977.55,Print Image Facilities LLP,111374
WARRINGTON BOROUGH COUNCIL,http://opendatacommunities.org/id/unitary-authority/warrington,FWB,Housing Strategy,43620,Equipment Purchase & Contract,400000,19/02/2019,5100384880,1800,Complete Home Energy Systems,111861
WARRINGTON BOROUGH COUNCIL,http://opendatacommunities.org/id/unitary-authority/warrington,FWB,Housing Strategy,43620,Equipment Purchase & Contract,400000,25/02/2019,5100385385,1800,Complete Home Energy Systems,111861
WARRINGTON BOROUGH COUNCIL,http://opendatacommunities.org/id/unitary-authority/warrington,FWB,Private Sector Hsg.,43660,Equipment Purchase & Contract,400000,25/02/2019,5100385383,1800,Complete Home Energy Systems,111861
WARRINGTON BOROUGH COUNCIL,http://opendatacommunities.org/id/unitary-authority/warrington,FWB,Private Sector Hsg.,43660,Equipment Purchase & Contract,400000,19/02/2019,5100384884,1800,Complete Home Energy Systems,111861
WARRINGTON BOROUGH COUNCIL,http://opendatacommunities.org/id/unitary-authority/warrington,ENO,Housing Projects,82008,Consult.& Prof. Serv,440000,15/02/2019,5100384406,750,Sutcliffe,103561
WARRINGTON BOROUGH COUNCIL,http://opendatacommunities.org/id/unitary-authority/warrington,EE0,Woolston Depot,41331,Oil - Gas,301250,25/02/2019,5100385331,1387.68,GB Oils Ltd (Martindale Fuels),103439
WARRINGTON BOROUGH COUNCIL,http://opendatacommunities.org/id/unitary-authority/warrington,RSC,ICT Projects,23300,Computer Software - Purchase,450800,19/02/2019,5100384740,2006.4,Phoenix Software Ltd,105022
WARRINGTON BOROUGH COUNCIL,http://opendatacommunities.org/id/unitary-authority/warrington,FWB,Equipment Store,54930,Equipment Purchase & Contract,400000,25/02/2019,5100385388,1386.67,Prism Medical UK,108616
WARRINGTON BOROUGH COUNCIL,http://opendatacommunities.org/id/unitary-authority/warrington,FWB,Domestic Abuse,31206,Payment of Grants,470050,27/02/2019,5100385615,67125,Refuge,111196
WARRINGTON BOROUGH COUNCIL,http://opendatacommunities.org/id/unitary-authority/warrington,ENO,Housing Projects,82008,Minor Adaptations<750,400700,19/02/2019,5100384669,819.85,Acorn Building Projects Ltd,105557
WARRINGTON BOROUGH COUNCIL,http://opendatacommunities.org/id/unitary-authority/warrington,RSC,IT - Contracts,23600,Computer Software - Maintenance,450850,20/02/2019,5100385025,1762.11,Software Box Ltd,111906
WARRINGTON BOROUGH COUNCIL,http://opendatacommunities.org/id/unitary-authority/warrington,RSC,IT - Contracts,23600,Computer Software - Maintenance,450850,20/02/2019,5100385025,1421.05,Software Box Ltd,111906
WARRINGTON BOROUGH COUNCIL,http://opendatacommunities.org/id/unitary-authority/warrington,FWB,Telecare / Sensory,54560,Equipment Purchase & Contract,400000,19/02/2019,5100384829,959.8,Sarabec Limited,100441
WARRINGTON BOROUGH COUNCIL,http://opendatacommunities.org/id/unitary-authority/warrington,FWB,Telecare / Sensory,54560,Equipment Purchase & Contract,400000,19/02/2019,5100384829,804.9,Sarabec Limited,100441
WARRINGTON BOROUGH COUNCIL,http://opendatacommunities.org/id/unitary-authority/warrington,FWB,Telecare / Sensory,54560,Equipment Purchase & Contract,400000,19/02/2019,5100384829,1539.8,Sarabec Limited,100441
WARRINGTON BOROUGH COUNCIL,http://opendatacommunities.org/id/unitary-authority/warrington,EE0,Estates & Valuation,43520,Fees (Including Agents Fees),441450,14/02/2019,5100384367,3200,University of Leeds,117058
WARRINGTON BOROUGH COUNCIL,http://opendatacommunities.org/id/unitary-authority/warrington,FWB,Virtual School,31112,Looked after children in Warrington,301000,19/02/2019,5100384913,720,Alderman Bolton (WPAT),400511
WARRINGTON BOROUGH COUNCIL,http://opendatacommunities.org/id/unitary-authority/warrington,EE0,Construction Stores Overhead Account,41320,Materials,400500,25/02/2019,5100385387,803.11,Cromwell Polythene Ltd,112559
WARRINGTON BOROUGH COUNCIL,http://opendatacommunities.org/id/unitary-authority/warrington,EE0,Construction Stores Overhead Account,41320,Materials,400500,25/02/2019,5100385387,589.12,Cromwell Polythene Ltd,112559
WARRINGTON BOROUGH COUNCIL,http://opendatacommunities.org/id/unitary-authority/warrington,EE0,Park Development Sites,41423,Materials,400500,22/02/2019,5100385164,1008,Rigby Taylor Ltd,105070
WARRINGTON BOROUGH COUNCIL,http://opendatacommunities.org/id/unitary-authority/warrington,ENO,Environment & Regeneration Other,82002,Consult.& Prof. Serv,440000,19/02/2019,5100384840,1475,Labc,100506
WARRINGTON BOROUGH COUNCIL,http://opendatacommunities.org/id/unitary-authority/warrington,RSC,Printing & Graphics,23040,Materials,400500,26/02/2019,5100385483,770,WL Coller Ltd,106299
WARRINGTON BOROUGH COUNCIL,http://opendatacommunities.org/id/unitary-authority/warrington,RSC,ICT Centralised Budget,23100,Computer Software - Purchase,450800,19/02/2019,5100384836,9195,Mapchester Ltd,114017
WARRINGTON BOROUGH COUNCIL,http://opendatacommunities.org/id/unitary-authority/warrington,FWB,Fair Trading & Investigations,41500,Legal Costs Incurred,440200,19/02/2019,5100384900,12500,MAH Legal,113285
WARRINGTON BOROUGH COUNCIL,http://opendatacommunities.org/id/unitary-authority/warrington,FWB,Housing Strategy,43620,Equipment Purchase & Contract,400000,22/02/2019,5100385178,1800,Complete Home Energy Systems,111861
WARRINGTON BOROUGH COUNCIL,http://opendatacommunities.org/id/unitary-authority/warrington,FWB,Contracts - SM Commissioning Team 1,55910,Public Health Contract Payments,540000,26/02/2019,5100385516,1203.75,Stockton Heath Medical Centre,101362
WARRINGTON BOROUGH COUNCIL,http://opendatacommunities.org/id/unitary-authority/warrington,FWB,Contracts - SM Commissioning Team 1,55910,Public Health Contract Payments,540000,26/02/2019,5100385516,684.72,Stockton Heath Medical Centre,101362
WARRINGTON BOROUGH COUNCIL,http://opendatacommunities.org/id/unitary-authority/warrington,FWB,Contracts - SM Commissioning Team 1,55910,Public Health Contract Payments,540000,27/02/2019,5100385622,561.75,Latchford Medical Centre,104869
WARRINGTON BOROUGH COUNCIL,http://opendatacommunities.org/id/unitary-authority/warrington,FWB,Contracts - SM Commissioning Team 1,55910,Public Health Contract Payments,540000,27/02/2019,5100385622,599.13,Latchford Medical Centre,104869
WARRINGTON BOROUGH COUNCIL,http://opendatacommunities.org/id/unitary-authority/warrington,FWB,Contracts - SM Commissioning Team 1,55910,Public Health Contract Payments,540000,19/02/2019,5100384930,3290.25,Folly Lane Medical Centre,102338
WARRINGTON BOROUGH COUNCIL,http://opendatacommunities.org/id/unitary-authority/warrington,FWB,Contracts - SM Commissioning Team 1,55910,Public Health Contract Payments,540000,19/02/2019,5100384930,941.49,Folly Lane Medical Centre,102338
WARRINGTON BOROUGH COUNCIL,http://opendatacommunities.org/id/unitary-authority/warrington,FWB,Contracts - SM Commissioning Team 1,55910,Public Health Contract Payments,540000,22/02/2019,5100385170,1685.25,Culcheth Medical Centre,109213
WARRINGTON BOROUGH COUNCIL,http://opendatacommunities.org/id/unitary-authority/warrington,FWB,Contracts - SM Commissioning Team 1,55910,Public Health Contract Payments,540000,22/02/2019,5100385170,1283.85,Culcheth Medical Centre,109213
WARRINGTON BOROUGH COUNCIL,http://opendatacommunities.org/id/unitary-authority/warrington,FWB,Contracts - SM Commissioning Team 1,55910,Public Health Contract Payments,540000,22/02/2019,5100385170,2460,Culcheth Medical Centre,109213
WARRINGTON BOROUGH COUNCIL,http://opendatacommunities.org/id/unitary-authority/warrington,EE1,Dropped Crossings,44211,Equipment Purchase & Contract,400000,22/02/2019,5100385125,3189.68,Tarmac,100489
WARRINGTON BOROUGH COUNCIL,http://opendatacommunities.org/id/unitary-authority/warrington,EE1,Or Rm C'way & F'way,44260,M.C.R.Flexible Cat1,530850,22/02/2019,5100385125,22288.74,Tarmac,100489
WARRINGTON BOROUGH COUNCIL,http://opendatacommunities.org/id/unitary-authority/warrington,EE1,Or Rm C'way & F'way,44260,Fct Cat1,530950,22/02/2019,5100385125,15615.2,Tarmac,100489
WARRINGTON BOROUGH COUNCIL,http://opendatacommunities.org/id/unitary-authority/warrington,EE1,Or Rm C'way & F'way,44260,Road Markings Cat1,531250,22/02/2019,5100385125,1059.56,Tarmac,100489
WARRINGTON BOROUGH COUNCIL,http://opendatacommunities.org/id/unitary-authority/warrington,EE1,Or Rm C'way & F'way,44260,Patching Cat2,532300,22/02/2019,5100385125,1046.54,Tarmac,100489
WARRINGTON BOROUGH COUNCIL,http://opendatacommunities.org/id/unitary-authority/warrington,EE1,Or Rm C'way & F'way,44260,M.C.R.Flexible Cat1,530850,22/02/2019,5100385123,609.5,Tarmac,100489
WARRINGTON BOROUGH COUNCIL,http://opendatacommunities.org/id/unitary-authority/warrington,FWB,Contracts - SM Commissioning Team 1,55910,Public Health Contract Payments,540000,26/02/2019,5100385523,882.75,Birchwood Medical Centre,100402
WARRINGTON BOROUGH COUNCIL,http://opendatacommunities.org/id/unitary-authority/warrington,FWB,Contracts - SM Commissioning Team 1,55910,Public Health Contract Payments,540000,26/02/2019,5100385523,1198.26,Birchwood Medical Centre,100402
WARRINGTON BOROUGH COUNCIL,http://opendatacommunities.org/id/unitary-authority/warrington,FWB,Contracts - SM Commissioning Team 1,55910,Public Health Contract Payments,540000,26/02/2019,5100385523,1210,Birchwood Medical Centre,100402
WARRINGTON BOROUGH COUNCIL,http://opendatacommunities.org/id/unitary-authority/warrington,EE1,Or Winter Maint,44280,Winter Maint.Labour,531700,22/02/2019,5100385126,40000,Tarmac,100489
WARRINGTON BOROUGH COUNCIL,http://opendatacommunities.org/id/unitary-authority/warrington,EE1,Or Rm C'way & F'way,44260,M.C.R.Flexible Cat1,530850,22/02/2019,5100385121,2361.01,Tarmac,100489
WARRINGTON BOROUGH COUNCIL,http://opendatacommunities.org/id/unitary-authority/warrington,EE1,Or Rm C'way & F'way,44260,Fct Cat1,530950,22/02/2019,5100385121,822.76,Tarmac,100489
WARRINGTON BOROUGH COUNCIL,http://opendatacommunities.org/id/unitary-authority/warrington,ENO,Highways Other,82005,Fees (Including Agents Fees),441450,22/02/2019,5100385124,50000,Tarmac,100489
WARRINGTON BOROUGH COUNCIL,http://opendatacommunities.org/id/unitary-authority/warrington,ENO,Housing Projects,82008,Consult.& Prof. Serv,440000,20/02/2019,5100385037,750,GVA Grimley Liverpool,103086
WARRINGTON BOROUGH COUNCIL,http://opendatacommunities.org/id/unitary-authority/warrington,FWB,Temporary Accomodation,43652,Maintenance Work - Sub Contractors,301150,20/02/2019,5100385053,540,Cleansforyou.com,114634
WARRINGTON BOROUGH COUNCIL,http://opendatacommunities.org/id/unitary-authority/warrington,EE0,Environment Services Strategic Director,42130,Subscriptions,470000,21/02/2019,5100385056,615,ADEPT,107682
WARRINGTON BOROUGH COUNCIL,http://opendatacommunities.org/id/unitary-authority/warrington,EE0,Transport Holding Account,41311,Veh Maint. Materials,300000,23/02/2019,5100385236,653.85,Probrush,103996
WARRINGTON BOROUGH COUNCIL,http://opendatacommunities.org/id/unitary-authority/warrington,EE0,Transport Holding Account,41311,Maintenance Work - Sub Contractors,301150,26/02/2019,5100385481,1935.55,Walton Summit Truck Centre Ltd,112806
WARRINGTON BOROUGH COUNCIL,http://opendatacommunities.org/id/unitary-authority/warrington,EE1,Administration,44340,Computer Software - Purchase,450800,23/02/2019,5100385219,7374.15,Elgin,111434
WARRINGTON BOROUGH COUNCIL,http://opendatacommunities.org/id/unitary-authority/warrington,EE1,Administration,44340,Computer Software - Purchase,450800,23/02/2019,5100385219,7374.15,Elgin,111434
WARRINGTON BOROUGH COUNCIL,http://opendatacommunities.org/id/unitary-authority/warrington,RSC,ICT Centralised Budget,23100,Computer Software - Maintenance,450850,26/02/2019,5100385565,2137.5,Keysoft Solutions Ltd,100347
WARRINGTON BOROUGH COUNCIL,http://opendatacommunities.org/id/unitary-authority/warrington,RSC,Individual Electoral Registration,11660,Postages,450000,26/02/2019,5100385534,1043.56,Print Image Facilities LLP,111374
WARRINGTON BOROUGH COUNCIL,http://opendatacommunities.org/id/unitary-authority/warrington,FWB,Orford Property - LR,31311,Fees (Including Agents Fees),441450,27/02/2019,5100385624,2344,Ofsted,102038
WARRINGTON BOROUGH COUNCIL,http://opendatacommunities.org/id/unitary-authority/warrington,FWB,Fearnhead Property - RC,31312,Fees (Including Agents Fees),441450,27/02/2019,5100385623,2344,Ofsted,102038
WARRINGTON BOROUGH COUNCIL,http://opendatacommunities.org/id/unitary-authority/warrington,EE0,B.U.M Employment Skills,22210,Materials,400500,26/02/2019,5100385524,33164.21,Little Jobs and Big Jobs,116900
WARRINGTON BOROUGH COUNCIL,http://opendatacommunities.org/id/unitary-authority/warrington,FWB,Supporting People Grant Payments,53260,Young People and/or Care Leavers,535150,31/01/2019,5100382719,17159.12,Arena Options,101746
WARRINGTON BOROUGH COUNCIL,http://opendatacommunities.org/id/unitary-authority/warrington,FWB,Supporting People Grant Payments,53260,Risk of Homelessness and Floating Suppor,535100,31/01/2019,5100382721,24791.17,The Salvation Army,105105
WARRINGTON BOROUGH COUNCIL,http://opendatacommunities.org/id/unitary-authority/warrington,FWB,Supporting People Grant Payments,53260,Risk of Homelessness and Floating Suppor,535100,31/01/2019,5100382724,14408.5,Warrington Womens Aid Ltd,440000
WARRINGTON BOROUGH COUNCIL,http://opendatacommunities.org/id/unitary-authority/warrington,FWB,Supporting People Grant Payments,53260,People with Mental Health Problems,535200,17/02/2019,5100384533,2977.54,Redacted Personal Data,106573
WARRINGTON BOROUGH COUNCIL,http://opendatacommunities.org/id/unitary-authority/warrington,FWB,Supporting People Grant Payments,53260,People with Mental Health Problems,535200,17/02/2019,5100384526,12084.66,Warrington Community Living,105229
WARRINGTON BOROUGH COUNCIL,http://opendatacommunities.org/id/unitary-authority/warrington,FWB,Supporting People Grant Payments,53260,Sheltd/Xtra Care Hsing and Comm Alarms,535050,31/01/2019,5100382718,5725.08,Warrington Housing Current Acc,101208
WARRINGTON BOROUGH COUNCIL,http://opendatacommunities.org/id/unitary-authority/warrington,FWB,Supporting People Grant Payments,53260,Risk of Homelessness and Floating Suppor,535100,31/01/2019,5100382725,3000,Room at the Inn and The Y Project,440065
WARRINGTON BOROUGH COUNCIL,http://opendatacommunities.org/id/unitary-authority/warrington,FWB,Supporting People Grant Payments,53260,People with Mental Health Problems,535200,31/01/2019,5100382723,5091.32,SLC Raglin Ltd,111037
WARRINGTON BOROUGH COUNCIL,http://opendatacommunities.org/id/unitary-authority/warrington,FWB,Supporting People Grant Payments,53260,Sheltd/Xtra Care Hsing and Comm Alarms,535050,17/02/2019,5100384512,4086.6,Redacted Personal Data,100735
WARRINGTON BOROUGH COUNCIL,http://opendatacommunities.org/id/unitary-authority/warrington,FWB,Supporting People Grant Payments,53260,Sheltd/Xtra Care Hsing and Comm Alarms,535050,17/02/2019,5100384514,636.12,Anchor Ha,100886
WARRINGTON BOROUGH COUNCIL,http://opendatacommunities.org/id/unitary-authority/warrington,FWB,Supporting People Grant Payments,53260,Sheltd/Xtra Care Hsing and Comm Alarms,535050,17/02/2019,5100384521,1998.44,Warrington Housing Rent,103168
WARRINGTON BOROUGH COUNCIL,http://opendatacommunities.org/id/unitary-authority/warrington,FWB,Supporting People Grant Payments,53260,Sheltd/Xtra Care Hsing and Comm Alarms,535050,17/02/2019,5100384523,966.96,Warrington Housing Rent,103168
WARRINGTON BOROUGH COUNCIL,http://opendatacommunities.org/id/unitary-authority/warrington,FWB,Supporting People Grant Payments,53260,Sheltd/Xtra Care Hsing and Comm Alarms,535050,17/02/2019,5100384528,10118.4,Warrington Community Living,105229
WARRINGTON BOROUGH COUNCIL,http://opendatacommunities.org/id/unitary-authority/warrington,FWB,Supporting People Grant Payments,53260,Risk of Homelessness and Floating Suppor,535100,31/01/2019,5100382720,17550.33,Arena Options,101746
WARRINGTON BOROUGH COUNCIL,http://opendatacommunities.org/id/unitary-authority/warrington,FWB,SLA - Grant Account,53920,Payment of Grants,470050,31/01/2019,5100382722,17797.5,WIRED,109547
WARRINGTON BOROUGH COUNCIL,http://opendatacommunities.org/id/unitary-authority/warrington,FWB,Catalyst Choices,54495,CP ExternalOther Exp,440800,02/02/2019,5100382926,30000,Walton Lea Project,102953
WARRINGTON BOROUGH COUNCIL,http://opendatacommunities.org/id/unitary-authority/warrington,EE0,Primary Schools BMP External Income,45435,Servicing Contracts,200150,02/02/2019,5100382927,790.07,Mears Limited,114197
WARRINGTON BOROUGH COUNCIL,http://opendatacommunities.org/id/unitary-authority/warrington,EE0,Primary Schools BMP External Income,45435,Servicing Contracts,200150,02/02/2019,5100382929,894.9,Mears Limited,114197
WARRINGTON BOROUGH COUNCIL,http://opendatacommunities.org/id/unitary-authority/warrington,EE0,Primary Schools BMP External Income,45435,Servicing Contracts,200150,02/02/2019,5100382930,614.73,Mears Limited,114197
WARRINGTON BOROUGH COUNCIL,http://opendatacommunities.org/id/unitary-authority/warrington,EE0,Primary Schools BMP External Income,45435,Servicing Contracts,200150,02/02/2019,5100382931,944.53,Mears Limited,114197
WARRINGTON BOROUGH COUNCIL,http://opendatacommunities.org/id/unitary-authority/warrington,EE0,Primary Schools BMP External Income,45435,Servicing Contracts,200150,02/02/2019,5100382937,507.35,Mears Limited,114197
WARRINGTON BOROUGH COUNCIL,http://opendatacommunities.org/id/unitary-authority/warrington,EE0,Primary Schools BMP External Income,45435,Servicing Contracts,200150,02/02/2019,5100382939,1659.54,Mears Limited,114197
WARRINGTON BOROUGH COUNCIL,http://opendatacommunities.org/id/unitary-authority/warrington,EE0,Primary Schools BMP External Income,45435,Servicing Contracts,200150,02/02/2019,5100382941,541.9,Mears Limited,114197
WARRINGTON BOROUGH COUNCIL,http://opendatacommunities.org/id/unitary-authority/warrington,EE0,Primary Schools BMP External Income,45435,Servicing Contracts,200150,02/02/2019,5100382943,549.64,Mears Limited,114197
WARRINGTON BOROUGH COUNCIL,http://opendatacommunities.org/id/unitary-authority/warrington,EE0,Primary Schools BMP External Income,45435,Servicing Contracts,200150,02/02/2019,5100382951,542.46,Mears Limited,114197
WARRINGTON BOROUGH COUNCIL,http://opendatacommunities.org/id/unitary-authority/warrington,EE0,Primary Schools BMP External Income,45435,Servicing Contracts,200150,02/02/2019,5100382953,513.13,Mears Limited,114197
WARRINGTON BOROUGH COUNCIL,http://opendatacommunities.org/id/unitary-authority/warrington,EE0,Primary Schools BMP External Income,45435,Servicing Contracts,200150,02/02/2019,5100382967,544.01,Mears Limited,114197
WARRINGTON BOROUGH COUNCIL,http://opendatacommunities.org/id/unitary-authority/warrington,EE0,Bus Interchange,44460,Servicing Contracts,200150,02/02/2019,5100382971,2017.74,Mears Limited,114197
WARRINGTON BOROUGH COUNCIL,http://opendatacommunities.org/id/unitary-authority/warrington,EE0,Woolston Depot,41331,Servicing Contracts,200150,02/02/2019,5100382972,733.41,Mears Limited,114197
WARRINGTON BOROUGH COUNCIL,http://opendatacommunities.org/id/unitary-authority/warrington,EE0,Woodleigh Care Home & Day Centre,45059,Servicing Contracts,200150,02/02/2019,5100382976,546.26,Mears Limited,114197
WARRINGTON BOROUGH COUNCIL,http://opendatacommunities.org/id/unitary-authority/warrington,EE0,Catalyst Choices - Gorse Covert - ext,45428,Servicing Contracts,200150,02/02/2019,5100382977,567.2,Mears Limited,114197
WARRINGTON BOROUGH COUNCIL,http://opendatacommunities.org/id/unitary-authority/warrington,EE0,Trust Cultural,45432,Servicing Contracts,200150,02/02/2019,5100382990,1136.55,Mears Limited,114197
WARRINGTON BOROUGH COUNCIL,http://opendatacommunities.org/id/unitary-authority/warrington,EE0,Pyramid Art Centre,45125,Servicing Contracts,200150,02/02/2019,5100382996,1120.35,Mears Limited,114197
WARRINGTON BOROUGH COUNCIL,http://opendatacommunities.org/id/unitary-authority/warrington,EE0,Trust Livewire,45431,Servicing Contracts,200150,02/02/2019,5100383001,555.49,Mears Limited,114197
WARRINGTON BOROUGH COUNCIL,http://opendatacommunities.org/id/unitary-authority/warrington,EE0,Trust Livewire,45431,Servicing Contracts,200150,02/02/2019,5100383002,730.8,Mears Limited,114197
WARRINGTON BOROUGH COUNCIL,http://opendatacommunities.org/id/unitary-authority/warrington,EE0,Trust Livewire,45431,Servicing Contracts,200150,02/02/2019,5100383012,1866.51,Mears Limited,114197
WARRINGTON BOROUGH COUNCIL,http://opendatacommunities.org/id/unitary-authority/warrington,EE0,Broomfields Recreation Centre,45093,Servicing Contracts,200150,02/02/2019,5100383016,513.07,Mears Limited,114197
WARRINGTON BOROUGH COUNCIL,http://opendatacommunities.org/id/unitary-authority/warrington,EE0,UPRN 27175 Orford Hub,45233,Servicing Contracts,200150,02/02/2019,5100383020,2727.19,Mears Limited,114197
WARRINGTON BOROUGH COUNCIL,http://opendatacommunities.org/id/unitary-authority/warrington,EE0,Woolston Leisure Centre - Hall Road,45092,Servicing Contracts,200150,02/02/2019,5100383026,2066.87,Mears Limited,114197
WARRINGTON BOROUGH COUNCIL,http://opendatacommunities.org/id/unitary-authority/warrington,EE0,Trust Livewire,45431,Servicing Contracts,200150,02/02/2019,5100383067,6701.52,Mears Limited,114197
WARRINGTON BOROUGH COUNCIL,http://opendatacommunities.org/id/unitary-authority/warrington,EE0,Customer Contact Centre,45163,Servicing Contracts,200150,02/02/2019,5100383093,575.25,Mears Limited,114197
WARRINGTON BOROUGH COUNCIL,http://opendatacommunities.org/id/unitary-authority/warrington,EE0,Dallam Changing Room UPRN 27594,45434,Servicing Contracts,200150,02/02/2019,5100383094,645.52,Mears Limited,114197
WARRINGTON BOROUGH COUNCIL,http://opendatacommunities.org/id/unitary-authority/warrington,EE0,East Annexe & Drill Hall,45169,Servicing Contracts,200150,02/02/2019,5100383095,572.92,Mears Limited,114197
WARRINGTON BOROUGH COUNCIL,http://opendatacommunities.org/id/unitary-authority/warrington,EE0,New Town House,45168,Servicing Contracts,200150,02/02/2019,5100383110,2261.71,Mears Limited,114197
WARRINGTON BOROUGH COUNCIL,http://opendatacommunities.org/id/unitary-authority/warrington,EE0,Orford Community Cafe Hub,45074,Servicing Contracts,200150,02/02/2019,5100383114,815.9,Mears Limited,114197
WARRINGTON BOROUGH COUNCIL,http://opendatacommunities.org/id/unitary-authority/warrington,EE0,Padgate/Fearnhead Cross Youth Centre,45080,Servicing Contracts,200150,02/02/2019,5100383119,718.44,Mears Limited,114197
WARRINGTON BOROUGH COUNCIL,http://opendatacommunities.org/id/unitary-authority/warrington,EE0,Padgate House,45061,Servicing Contracts,200150,02/02/2019,5100383120,1049.68,Mears Limited,114197
WARRINGTON BOROUGH COUNCIL,http://opendatacommunities.org/id/unitary-authority/warrington,EE0,Quattro,45162,Servicing Contracts,200150,02/02/2019,5100383126,1399.82,Mears Limited,114197
WARRINGTON BOROUGH COUNCIL,http://opendatacommunities.org/id/unitary-authority/warrington,EE0,Registrar Office,45188,Servicing Contracts,200150,02/02/2019,5100383128,643.82,Mears Limited,114197
WARRINGTON BOROUGH COUNCIL,http://opendatacommunities.org/id/unitary-authority/warrington,EE0,St Werburgh's Social Services Offices,45160,Servicing Contracts,200150,02/02/2019,5100383140,642.25,Mears Limited,114197
WARRINGTON BOROUGH COUNCIL,http://opendatacommunities.org/id/unitary-authority/warrington,EE0,Retail Market,45219,Servicing Contracts,200150,02/02/2019,5100383142,1578.78,Mears Limited,114197
WARRINGTON BOROUGH COUNCIL,http://opendatacommunities.org/id/unitary-authority/warrington,EE0,Town Hall,45167,Servicing Contracts,200150,02/02/2019,5100383144,679.94,Mears Limited,114197
WARRINGTON BOROUGH COUNCIL,http://opendatacommunities.org/id/unitary-authority/warrington,EE0,Victoria Park Sports Area,45244,Servicing Contracts,200150,02/02/2019,5100383151,746.02,Mears Limited,114197
WARRINGTON BOROUGH COUNCIL,http://opendatacommunities.org/id/unitary-authority/warrington,EE0,Walton Golf Course (Clubhouse),45114,Servicing Contracts,200150,02/02/2019,5100383153,929.75,Mears Limited,114197
WARRINGTON BOROUGH COUNCIL,http://opendatacommunities.org/id/unitary-authority/warrington,EE0,Walton Hall,45123,Servicing Contracts,200150,02/02/2019,5100383154,1041.68,Mears Limited,114197
WARRINGTON BOROUGH COUNCIL,http://opendatacommunities.org/id/unitary-authority/warrington,EE0,Westy Community Centre,45069,Servicing Contracts,200150,02/02/2019,5100383168,545.48,Mears Limited,114197
WARRINGTON BOROUGH COUNCIL,http://opendatacommunities.org/id/unitary-authority/warrington,EE0,Catalyst Choices - Mosslands - ext,45426,Servicing Contracts,200150,02/02/2019,5100383177,1507.41,Mears Limited,114197
WARRINGTON BOROUGH COUNCIL,http://opendatacommunities.org/id/unitary-authority/warrington,EE0,BMP Ext Bridgewater HS,45458,Servicing Contracts,200150,02/02/2019,5100383178,757.28,Mears Limited,114197
WARRINGTON BOROUGH COUNCIL,http://opendatacommunities.org/id/unitary-authority/warrington,RSC,Recruitment & Advertising,52123,CRB Checks,190050,21/02/2019,1900403479,9266,Disclosure & Barring Service,440085
WARRINGTON BOROUGH COUNCIL,http://opendatacommunities.org/id/unitary-authority/warrington,FWB,Temporary Accomodation,43652,NNDR,230000,18/02/2019,1900402194,706.72,Warrington Borough Council,440006
WARRINGTON BOROUGH COUNCIL,http://opendatacommunities.org/id/unitary-authority/warrington,FWB,Permanence Team,31100,Looked after children in Warrington,301000,15/02/2019,1900402190,1100,Brooks & Brooks Recruitment Easypay,116689
WARRINGTON BOROUGH COUNCIL,http://opendatacommunities.org/id/unitary-authority/warrington,FWB,Permanence Team,31100,Looked after children in Warrington,301000,26/02/2019,1900404066,562.6,Redacted Personal Data,460823
WARRINGTON BOROUGH COUNCIL,http://opendatacommunities.org/id/unitary-authority/warrington,FWB,Permanence Team,31100,Looked after children in Warrington,301000,26/02/2019,1900404073,1404.82,Brooks & Brooks Recruitment Easypay,116689
WARRINGTON BOROUGH COUNCIL,http://opendatacommunities.org/id/unitary-authority/warrington,FWB,Child Arrangement Orders,31114,Travelling Allowance,330000,19/02/2019,1900402539,1028.84,Redacted Personal Data,461083
WARRINGTON BOROUGH COUNCIL,http://opendatacommunities.org/id/unitary-authority/warrington,FWB,Care Purchase West Team,54080,Respite Residential EMI,441140,04/02/2019,1900399800,3516,Minster Care Management Ltd,105179
WARRINGTON BOROUGH COUNCIL,http://opendatacommunities.org/id/unitary-authority/warrington,FWB,Temporary Accomodation,43652,Annual Maintenance,442100,13/02/2019,1900401079,2500,PCM Services,113480
WARRINGTON BOROUGH COUNCIL,http://opendatacommunities.org/id/unitary-authority/warrington,FWB,Care Purchase Budget,54490,CP Free Nursing Care External,443500,04/02/2019,1900398800,632.64,Orchard Care Homes Ltd (Three bridg,115239
WARRINGTON BOROUGH COUNCIL,http://opendatacommunities.org/id/unitary-authority/warrington,FWB,Care Purchase Budget,54490,CP Free Nursing Care External,443500,04/02/2019,1900398835,632.64,HC-One Limited Callands,109640
WARRINGTON BOROUGH COUNCIL,http://opendatacommunities.org/id/unitary-authority/warrington,FWB,Care Purchase Budget,54490,CP Free Nursing Care External,443500,04/02/2019,1900398846,632.64,Ashberry Healthcare Ltd,104776
WARRINGTON BOROUGH COUNCIL,http://opendatacommunities.org/id/unitary-authority/warrington,FWB,Care Purchase Budget,54490,CP Free Nursing Care External,443500,04/02/2019,1900398852,632.64,HC-One Limited Callands,109640
WARRINGTON BOROUGH COUNCIL,http://opendatacommunities.org/id/unitary-authority/warrington,FWB,Care Purchase Budget,54490,CP Free Nursing Care External,443500,04/02/2019,1900398861,632.64,HC-One Oval Ltd Birch Court,104572
WARRINGTON BOROUGH COUNCIL,http://opendatacommunities.org/id/unitary-authority/warrington,FWB,Care Purchase Budget,54490,CP Free Nursing Care External,443500,04/02/2019,1900398874,632.64,HC-One Limited Callands,109640
WARRINGTON BOROUGH COUNCIL,http://opendatacommunities.org/id/unitary-authority/warrington,FWB,Care Purchase Budget,54490,CP Free Nursing Care External,443500,04/02/2019,1900398881,632.64,Barchester Homes Westvale House,105246
WARRINGTON BOROUGH COUNCIL,http://opendatacommunities.org/id/unitary-authority/warrington,FWB,Care Purchase Budget,54490,CP Free Nursing Care External,443500,04/02/2019,1900398884,632.64,London & Manchester Healthcare Ltd,109185
WARRINGTON BOROUGH COUNCIL,http://opendatacommunities.org/id/unitary-authority/warrington,FWB,Care Purchase Budget,54490,CP Free Nursing Care External,443500,04/02/2019,1900398893,632.64,HC-One Oval Ltd Birch Court,104572
WARRINGTON BOROUGH COUNCIL,http://opendatacommunities.org/id/unitary-authority/warrington,FWB,Care Purchase Budget,54490,CP Free Nursing Care External,443500,04/02/2019,1900398898,632.64,London & Manchester Healthcare Ltd,109185
WARRINGTON BOROUGH COUNCIL,http://opendatacommunities.org/id/unitary-authority/warrington,FWB,Care Purchase Budget,54490,CP Free Nursing Care External,443500,04/02/2019,1900398967,632.64,HC-One Oval Ltd Birch Court,104572
WARRINGTON BOROUGH COUNCIL,http://opendatacommunities.org/id/unitary-authority/warrington,FWB,Care Purchase Central Team,54050,CP Free Nursing Care External,443500,04/02/2019,1900398972,632.64,HC-One Limited Callands,109640
WARRINGTON BOROUGH COUNCIL,http://opendatacommunities.org/id/unitary-authority/warrington,FWB,Care Purchase South Team,54070,CP Free Nursing Care External,443500,04/02/2019,1900399065,632.64,Orchard Care Homes Limited (Green P,114976
WARRINGTON BOROUGH COUNCIL,http://opendatacommunities.org/id/unitary-authority/warrington,FWB,Care Purchase West Team,54080,CP Free Nursing Care External,443500,04/02/2019,1900399070,632.64,Orchard Care Homes Limited (Green P,114976
WARRINGTON BOROUGH COUNCIL,http://opendatacommunities.org/id/unitary-authority/warrington,FWB,Care Purchase Budget,54490,CP Free Nursing Care External,443500,04/02/2019,1900399109,632.64,Barchester Homes Westvale House,105246
WARRINGTON BOROUGH COUNCIL,http://opendatacommunities.org/id/unitary-authority/warrington,FWB,Care Purchase Budget,54490,CP Free Nursing Care External,443500,04/02/2019,1900399175,632.64,HC-One Limited Callands,109640
WARRINGTON BOROUGH COUNCIL,http://opendatacommunities.org/id/unitary-authority/warrington,FWB,Care Purchase Budget,54490,CP Free Nursing Care External,443500,04/02/2019,1900399195,632.64,HC-One Limited Callands,109640
WARRINGTON BOROUGH COUNCIL,http://opendatacommunities.org/id/unitary-authority/warrington,FWB,Care Purchase Budget,54490,CP Free Nursing Care External,443500,04/02/2019,1900399208,632.64,HC-One Oval Ltd Birch Court,104572
WARRINGTON BOROUGH COUNCIL,http://opendatacommunities.org/id/unitary-authority/warrington,FWB,Care Purchase Budget,54490,CP Free Nursing Care External,443500,04/02/2019,1900399411,632.64,Embrace Care,109675
